Workbook

Sheet MENU
B2: AGENCIA DE REGULACIÓN Y CONTROL DE LAS TELECOMUNICACIONES - ARCOTEL
B5: FORMATOS TÉCNICOS OTH DE FRECUENCIAS DEL ESPECTRO RADIOELÉCTRICO
B6: INFORMACIÓN DE RADIOLOCALIZACIÓN - RADARES
B9: 1 | D9: INFORMACIÓN DE LA ESTRUCTURA DEL SISTEMA DE RADIOCOMUNICACIONES | F9: FO-DRE-01
B11: 2 | D11: INFORMACIÓN DE ANTENAS | F11: FO-DRE-21
B13: 7 | D13: ESTUDIO TÉCNICO DE EMISIONES DE RNI | F13: FO-DRE-16

Sheet FO-DRE-01
A1: Código: FO-DRE-01 Versión: 01 | C1: FORMULARIO PARA INFORMACION DE LA INFRAESTRUCTURA DEL SISTEMA DE RADIOCOMUNICACIONES
A3: 1 | B3: 2 | C3: 3 | D3: 4 | E3: 5 | F3: 6 | G3: 7 | H3: 8 | I3: 9 | J3: 10 | K3: 11 | S3: 12
A4: CODIGO ESTRUCTURA | B4: TIPO DE ESTRUCTURA DE SOPORTE | C4: ALTURA DE LA ESTRUCTURA s.n.m. (m): | D4: ALTURA DE LA ESTRUCTURA (BASE-CIMA) (m): | E4: NOMBRE DEL SITIO | F4: PROVINCIA | G4: CANTÓN | H4: CIUDAD | I4: PARROQUIA | J4: DIRECCIÓN ( Calle y No.) / LOCALIDAD | K4: COORDENADAS WGS84
K5: LATITUD | O5: LONGITUD | S5: PROPIETARIO DE LA ESTRUCTURA
K6: GRADOS | L6: MINUTOS | M6: SEGUNDOS | N6: N/S | O6: GRADOS | P6: MINUTOS | Q6: SEGUNDOS | R6: W
A7: S1 | B7: Torre Autosopotada | C7: 2500 | D7: 10 | F7: Pichincha | G7: QUITO | H7: CAYAMBE | I7: ALANGASI | J7: CERRO CAYAMBE | K7: 0 | L7: 3 | M7: 14.2 | N7: S | O7: 79 | P7: 14 | Q7: 15.3 | R7: W | S7: JUAN PEREZ
A8: S2 | B8: Mastil | C8: 2500 | D8: 15 | F8: Tungurahua | G8: AMBATO | H8: AMBATO | I8: PUELLARO | J8: CERRO ATACAZO | K8: 0 | L8: 3 | M8: 14.2 | N8: S | O8: 79 | P8: 14 | Q8: 15.3 | R8: W
A9: S3 | B9: Empotrada en edificación | C9: 2500 | D9: 20 | F9: Pastaza | G9: CHIMBO | H9: CHIMBO | I9: ATOCHA | J9: CERRO PILISURCO | K9: 0 | L9: 3 | M9: 14.2 | N9: S | O9: 79 | P9: 14 | Q9: 15.3 | R9: W
A10: S4 | B10: Otras | C10: 2500 | D10: 25 | F10: Santo Domingo de los Tsáchilas | G10: RIOBAMBA | H10: RIOBAMBA | I10: MOCHA | J10: CERRO NITON | K10: 0 | L10: 3 | M10: 14.2 | N10: S | O10: 78 | P10: 7 | Q10: 12.2 | R10: W
A11: S5 | B11: Otras | C11: 2500 | D11: 30 | F11: Pastaza | G11: PUYO | H11: PUYO | I11: SHELL | J11: CERRO PICHINCHA | K11: 0 | L11: 3 | M11: 15.2 | N11: S | O11: 78 | P11: 8 | Q11: 13.2 | R11: W
A12: S6 | B12: Otras | C12: 2500 | D12: 35 | F12: Tungurahua | G12: AMBATO | H12: AMBATO | I12: HUACHI | J12: CERRO NITON | K12: 0 | L12: 3 | M12: 16.2 | N12: S | O12: 78 | P12: 9 | Q12: 14.2 | R12: W
A13: S7 | B13: Otras | C13: 2500 | D13: 40 | F13: Zamora Chinchipe | G13: RIOBAMBA | H13: RIOBAMBA | I13: BENALCAZAR | J13: CERRO ATUCUCHO | K13: 0 | L13: 3 | M13: 17.2 | N13: S | O13: 78 | P13: 12 | Q13: 15.2 | R13: W
A14: S8 | B14: Otras | C14: 2500 | D14: 45 | F14: Orellana | G14: FRANCISCO DE ORELLANA | H14: FRANCISCO DE ORELLANA | I14: COCA | J14: CERRO HITO CRIZ | K14: 0 | L14: 3 | M14: 18.2 | N14: S | O14: 79 | P14: 58 | Q14: 16.2 | R14: W
R15: W
R16: W
R17: W
R18: W
R19: W
R20: W
R21: W
R22: W
R23: W
R24: W
R25: W
R26: W
R27: W
R28: W
R29: W
R30: W
R31: W
R32: W
R33: W
R34: W
R35: W
R36: W
R37: W
R38: W
R39: W
R40: W
R41: W
R42: W
R43: W
R44: W
R45: W
R46: W
R47: W
R48: W
R49: W
R50: W
R51: W
R52: W
R53: W
R54: W
R55: W
R56: W
R57: W
R58: W
R59: W
R60: W
R61: W
R62: W
R63: W
R64: W
R65: W
R66: W
R67: W
R68: W
R69: W
R70: W
R71: W
R72: W
R73: W
R74: W
R75: W
R76: W
R77: W
R78: W
R79: W
R80: W
R81: W
R82: W
R83: W
R84: W
R85: W
R86: W
R87: W
R88: W
R89: W
R90: W
R91: W
R92: W
R93: W
R94: W
R95: W
R96: W
R97: W
R98: W
R99: W
R100: W
R101: W
R102: W
R103: W

Sheet FO-DRE-21
A1: Código: FO-DRE-21 Versión: 01 | D1: INFORMACIÓN DE RADIOLOCALIZACIÓN - RADARES | BH1: FORMULARIO PARA ESTUDIO TECNICO DE EMISIONES DE RNI (CALCULO DE LA DISTANCIA DE SEGURIDAD)
BH3: NOMBRE DE LA EMPRESA: | BJ3: JONAS | BT3: 1) Cod. Cont: | CJ3: =COLUMN(CL3) -> 90 | CY3: =COLUMN(DA3) -> 105 | DA3: =COLUMN(DC3) -> 107
A4: CARACTERISTICAS DE OPERACION POR SISTEMA | R4: CARACTERISTICAS DE LAS ESTACIONES | U4: CARACTERISTICAS DE LAS ESTRUCTURAS | AJ4: CARACTERISTICAS DE LOS EQUIPOS | AN4: CARACTERISTICAS DE LAS ANTENAS | BD4: No | BE4: CODIGO DE ESTRUCTURA ASOCIADA | BF4: SOBREPASA LÍMITES POBLACIONAL | BG4: SOBREPASA LÍMITES OCUPACIONAL | BH4: ESTACION DE RADAR | BT4: =TODAY() -> 2016-10-24
A6: 1 | B6: 2 | C6: 3 | D6: 4 | E6: 5 | F6: 6 | H6: 7 | I6: 8 | J6: 8 | K6: 9 | L6: 9 | M6: 10 | N6: 11 | O6: 12 | P6: 13 | Q6: 14 | R6: 15 | S6: 16 | T6: 17 | U6: 18 | V6: 19 | W6: 20 | X6: 21 | Y6: 22 | Z6: 23 | AA6: 24 | AB6: 25 COORDENADAS WGS84 | AJ6: 18 | AK6: 19 | AL6: 20 | AM6: 21 | AN6: 22 | AO6: 23 | AP6: 24 | AQ6: 25 | AR6: 26 | AS6: 27 | AT6: 28 | AU6: 29 | AV6: 30 | AW6: 31 | AX6: 32 | BH6: Slím A CONSIDERAR | BJ6: CALCULO DE R2 | BO6: CÁLCULO DEL PIRE | BR6: Slím TEÓRICO (W/m2)
A7: NUMERO DE CONTRATO A MODIFICAR / RENOVAR | B7: No. SISTEMA | C7: BANDA DE FRECUENCIAS (MHz) | D7: TIPO DE SERVICIO: | E7: TIPO DE RADAR | F7: Frecuencias de Operación: (MHz) | H7: SEP. Tx / Rx (MHz): | I7: No. DE FRECUENCIAS POR RADAR: | L7: POTENCIA DE OPERACIÓN (kW): | M7: ANCHURA DE BANDA (MHz): | N7: ANCHO DEL PULSO (micro s): | O7: FRECUENCIA DE REPETICIÓN DEL PULSO (Hz): | P7: AREAS DE OPERACIÓN PROVINCIA(S) / CIUDAD(ES): | Q7: ALCENCE NOMINAL DEL SISTEMA (Radio de cobertura) (Km) | R7: INDICATIVO | S7: AC. (A,M,I,E) | T7: CODIGO DE ESTRUCTURA ASOCIADA | U7: TIPO DE ESTRUCTURA DE SOPORTE | V7: ALTURA DE LA ESTRUCTURA s.n.m. (m): | W7: ALTURA DE LA ESTRUCTURA (BASE-CIMA) (m): | X7: PROVINCIA | Y7: CANTÓN | Z7: CIUDAD | AA7: DIRECCIÓN (Localidad / Calle y No.) | AB7: LATITUD | AF7: LONGITUD | AJ7: MARCA | AK7: MODELO | AL7: POTENCIA MAXIMA DEL EQUIPO (kW) | AM7: SENSIBILIDAD (uV) o (dBm) | AN7: MARCA | AO7: MODELO | AP7: TIPO | AQ7: RANGO DE OPERACIÓN [MHz] | AR7: IMPEDANCIA (ohmios) | AS7: POLARIZACION | AT7: GANANCIA (dBd) | AU7: ANCHO DEL LOBULO PRINCIPAL EN LOS PUNTOS DE MEDIA POTENCIA (°) | AV7: ROTACIÓN DE LA ANTENA (rpm) | AW7: ANGULO DE ELEVACION (°) | AX7: ALTURA BASE-ANTENA (m) | BR7: Distancia (m) | BY7: ESTACIÓN DE TRANSMISIÓN | CN7: ESTACIÓN DE RECEPCIÓN | DC7: COORDENADAS MACRO GLOBAL MAPPER
F8: TX | G8: RX | AB8: GRADOS | AC8: MINUTOS | AD8: SEGUNDOS | AE8: N/S | AF8: GRADOS | AG8: MINUTOS | AH8: SEGUNDOS | AI8: W | AQ8: FREC. INICIAL - FREC. FINAL | BF8: Estación de Tx | BG8: Estación de Tx | BH8: Slím OCUPACIONAL (W/m2) | BI8: Slím POBLACIONAL (W/m2) | BJ8: 2 | BK8: 5 | BL8: 10 | BM8: 20 | BN8: 50 | BO8: Pmax (W) | BP8: Gmax | BQ8: PIRE (W) | BR8: 2 | BS8: 5 | BT8: 10 | BU8: 20 | BV8: 50 | BY8: 902 - 928 | BZ8: 2400 - 2483.5 | CB8: 5150 – 5250 | CD8: 5250 – 5350 | CE8: P-P | CF8: P-MP | CG8: 5470 – 5725 | CI8: 5725 - 5850 | CK8: Alturas Efectivas | CL8: VALIDACIÓN TX | CN8: 902 - 928 | CO8: 2400 - 2483.5 | CQ8: 5150 – 5250 | CS8: 5250 – 5350 | CT8: P-P | CU8: P-MP | CV8: 5470 – 5725 | CX8: 5725 - 5850 | CZ8: Altura Efectiva | DA8: VALIDACIÓN RX | DC8: TX | DD8: RX | DE8: TX | DF8: RX
A9: 90-9076 | B9: Sis 1 | C9: UHF | D9: Radionavegación | E9: Secundario/Onda pulsada | F9: 1090 | G9: 1030 | H9: 60 | I9: =IF(D9="","",IF(D9="SIM",1,2)) -> 2 | J9: =CONCATENATE(#REF!,"-","TX") ->  | K9: =CONCATENATE(#REF!,"-","RX") ->  | L9: 25000 | M9: 3 | N9: 1.2 | O9: 600 | P9: PICHINCHA | Q9: 120 | R9: Ra1 | S9: A | T9: s3 | U9: =IF(T9="","",VLOOKUP($T9,'FO-DRE-01'!$A$7:$Q$10002,2,FALSE)) -> Empotrada en edificación | V9: =IF(T9="","",VLOOKUP($T9,'FO-DRE-01'!$A$7:$Q$10002,3,FALSE)) -> 2500 | W9: =IF(T9="","",VLOOKUP($T9,'FO-DRE-01'!$A$7:$Q$10002,4,FALSE)) -> 20 | X9: =IF(T9="","",VLOOKUP($T9,'FO-DRE-01'!$A$7:$Q$10002,6,FALSE)) -> Pastaza | Y9: =IF(T9="","",VLOOKUP($T9,'FO-DRE-01'!$A$7:$Q$10002,7,FALSE)) -> CHIMBO | Z9: =IF(T9="","",VLOOKUP($T9,'FO-DRE-01'!$A$7:$Q$10002,8,FALSE)) -> CHIMBO | AA9: =IF(T9="","",VLOOKUP($T9,'FO-DRE-01'!$A$7:$Q$10002,10,FALSE)) -> CERRO PILISURCO | AB9: =IF(T9="","",VLOOKUP($T9,'FO-DRE-01'!$A$7:$Q$10002,11,FALSE)) -> 0 | AC9: =IF(T9="","",VLOOKUP($T9,'FO-DRE-01'!$A$7:$Q$10002,12,FALSE)) -> 3 | AD9: =IF(T9="","",VLOOKUP($T9,'FO-DRE-01'!$A$7:$Q$10002,13,FALSE)) -> 14.2 | AE9: =IF(T9="","",VLOOKUP($T9,'FO-DRE-01'!$A$7:$Q$10002,14,FALSE)) -> S | AF9: =IF(T9="","",VLOOKUP($T9,'FO-DRE-01'!$A$7:$Q$10002,15,FALSE)) -> 79 | AG9: =IF(T9="","",VLOOKUP($T9,'FO-DRE-01'!$A$7:$Q$10002,16,FALSE)) -> 14 | AH9: =IF(T9="","",VLOOKUP($T9,'FO-DRE-01'!$A$7:$Q$10002,17,FALSE)) -> 15.3 | AI9: W | AJ9: FURUNO | AK9: RTR-079 | AL9: 25000 | AM9: -90 | AN9: FURUNO | AO9: XN-24AF | AP9: ARREGLO | AQ9: 9380 - 9440 | AR9: 50 | AS9: Horizontal | AT9: 23.1 | AU9: 27 | AV9: 300 | AW9: 5 | AX9: 12 | AY9: =CONCATENATE("0",AB9,"°",IF(AC9<10,CONCATENATE("0",AC9),AC9),"'",IF(ROUND(AD9,0)=AD9,IF(AD9<10,CONCATENATE("0",AD9,".00"),CONCATENATE(AD9,".00")),IF(ROUND(AD9*10,0)=AD9*10,IF(AD9<10,CONCATENATE("0",AD9,"0"),CONCATENATE(AD9,"0")),IF(AD9<10,CONCATENATE("0",AD9),AD9))),"''",AE9) -> 00°03'14.20''S | AZ9: =CONCATENATE(AF9,"°",IF(AG9<10,CONCATENATE("0",AG9),AG9),"'",IF(ROUND(AH9,0)=AH9,IF(AH9<10,CONCATENATE("0",AH9,".00"),CONCATENATE(AH9,".00")),IF(ROUND(AH9*10,0)=AH9*10,IF(AH9<10,CONCATENATE("0",AH9,"0"),CONCATENATE(AH9,"0")),IF(AH9<10,CONCATENATE("0",AH9),AH9))),"''",AI9) -> 79°14'15.30''W | BA9: =IF(L9="902 - 928",900,IF(L9="2400 - 2483.5",2400,5000)) -> 5000 | BD9: 1 | BE9: =IF(T9="","",T9) -> s3 | BF9: =IF(OR(F9="",AL9="",AT9=""),"F/D",IF(BR9>BH9,"SI","")) -> SI | BG9: =IF(OR(F9="",AL9="",AT9=""),"F/D",IF(BR9>BI9,"SI","")) -> SI | BH9: =IF(F9="","",IF(AND(10<G9,G9<=400),10,IF(AND(400<G9,G9<=2000),(G9/40),IF(AND(2000<G9,G9<=300000),50,0)))) -> 25.75 | BI9: =IF(F9="","",IF(AND(10<G9,G9<=400),2,IF(AND(400<G9,G9<=2000),(G9/200),IF(AND(2000<G9,G9<=300000),10,0)))) -> 5.15 | BJ9: =IF(L9="","",SQRT(POWER($BJ$8,2)+POWER((AX9-1.5),2))) -> 10.68877916 | BK9: =IF(L9="","",SQRT(POWER($BK$8,2)+POWER((AX9-1.5),2))) -> 11.62970335 | BL9: =IF(L9="","",SQRT(POWER($BL$8,2)+POWER((AX9-1.5),2))) -> 14.5 | BM9: =IF(L9="","",SQRT(POWER($BM$8,2)+POWER((AX9-1.5),2))) -> 22.588714 | BN9: =IF(L9="","",SQRT(POWER($BN$8,2)+POWER((AX9-1.5),2))) -> 51.09060579 | BO9: =IF(AL9="","",AL9) -> 25000 | BP9: =IF(L9="","",POWER(10,(AT9+2.15)/10)) -> 334.9654392 | BQ9: =IF(OR(BO9="",BP9=""),"",BP9*BO9) -> 8374135.979 | BR9: =IF(L9="","",$BQ9/(PI()*BJ9^2)) -> 23331.03081 | BS9: =IF(L9="","",$BQ9/(PI()*BK9^2)) -> 19708.4678 | BT9: =IF(L9="","",$BQ9/(PI()*BL9^2)) -> 12678.09879 | BU9: =IF(L9="","",$BQ9/(PI()*BM9^2)) -> 5224.047566 | BV9: =IF(L9="","",$BQ9/(PI()*BN9^2)) -> 1021.193476 | BY9: =IF(L9=$BY$8,IF(AND(AL9<=0.25,AL9<>""),"CORRECTO","ERROR"),"") ->  | BZ9: =IF(L9=$BZ$8,IF(AND(AL9<=CA9,AL9<>"",AT9<>""),"CORRECTO","ERROR"),"") ->  | CA9: =VLOOKUP(AT9,Hoja1!$X$5:$Z$5390,3,TRUE) -> 0.2282092971 | CB9: =IF(L9=$CB$8,IF(AND(AL9<=CC9,AL9<>"",AT9<>"",BQ9<=0.2),"CORRECTO","ERROR"),"") ->  | CC9: =VLOOKUP(AT9,Hoja1!$AF$5:$AH$5390,3,TRUE) -> 0.0005942511137 | CD9: =IF(L9=$CD$8, IF(AND(#REF!="Punto - Punto",AL9<=CE9,AL9<>"",AT9<>"",BQ9<=0.2),"CORRECTO", IF(AND(#REF!="Punto - Multipunto",AL9<=CF9,AL9<>"",AT9<>"",BQ9<=1),"CORRECTO","ERROR")),"") ->  | CE9: =VLOOKUP(AT9,Hoja1!$AF$5:$AH$5390,3,TRUE) -> 0.0005942511137 | CF9: =VLOOKUP(AT9,Hoja1!$AJ$5:$AL$5390,3,TRUE) -> 0.002971255569 | CG9: =IF(L9=$CG$8,IF(AND(AL9<=CH9,AL9<>"",AT9<>"",BQ9<=1),"CORRECTO","ERROR"),"") ->  | CH9: =VLOOKUP(AT9,Hoja1!$AJ$5:$AL$5390,3,TRUE) -> 0.002971255569 | CI9: =IF(L9=$CI$8,IF(AND(AL9<=CJ9,AL9<>"",AT9<>""),"CORRECTO","ERROR"),"") ->  | CJ9: =VLOOKUP(AT9,Hoja1!$AB$5:$AD$5390,3,TRUE) -> 0.5956621435 | CK9: =IF(AX9<=W9,"CORRECTO","ERROR") -> CORRECTO | CL9: =IF(OR(BY9="ERROR",BZ9="ERROR",CB9="ERROR",CD9="ERROR",CG9="ERROR",CI9="ERROR",CK9="ERROR"),1,0) -> 0 | CN9: =IF(L9=$CN$8,IF(AND(#REF!<=0.25,#REF!<>""),"CORRECTO","ERROR"),"") ->  | CO9: =IF(L9=$CO$8,IF(AND(#REF!<=CP9,#REF!<>"",#REF!<>""),"CORRECTO","ERROR"),"") ->  | CP9: =VLOOKUP(#REF!,Hoja1!$X$5:$Z$5390,3,TRUE) ->  | CQ9: =IF(L9=$CQ$8,IF(AND(#REF!<=CR9,#REF!<>"",#REF!<>"",#REF!<=0.2),"CORRECTO","ERROR"),"") ->  | CR9: =VLOOKUP(#REF!,Hoja1!$AF$5:$AH$5390,3,TRUE) ->  | CS9: =IF(L9=$CS$8, IF(AND(#REF!="Punto - Punto",#REF!<=CT9,#REF!<>"",#REF!<>"",#REF!<=0.2),"CORRECTO", IF(AND(#REF!="Punto - Multipunto",#REF!<=CU9,#REF!<>"",#REF!<>"",#REF!<=1),"CORRECTO","ERROR")),"") ->  | CT9: =VLOOKUP(#REF!,Hoja1!$AF$5:$AH$5390,3,TRUE) ->  | CU9: =VLOOKUP(#REF!,Hoja1!$AJ$5:$AL$5390,3,TRUE) ->  | CV9: =IF(L9=$CV$8,IF(AND(#REF!<=CW9,#REF!<>"",#REF!<>"",#REF!<=1),"CORRECTO","ERROR"),"") ->  | CW9: =VLOOKUP(#REF!,Hoja1!$AJ$5:$AL$5390,3,TRUE) ->  | CX9: =IF(L9=$CX$8,IF(AND(#REF!<=CY9,#REF!<>"",#REF!<>""),"CORRECTO","ERROR"),"") ->  | CY9: =VLOOKUP(#REF!,Hoja1!$AB$5:$AD$5390,3,TRUE) ->  | CZ9: =IF(#REF!<=#REF!,"CORRECTO","ERROR") ->  | DA9: =IF(OR(CN9="ERROR",CO9="ERROR",CQ9="ERROR",CS9="ERROR",CV9="ERROR",CX9="ERROR",CZ9="ERROR"),1,0) ->  | DC9: =CONCATENATE("0",AB9,"°",IF(AC9<10,CONCATENATE("0",AC9),AC9),"'",IF(ROUND(AD9,0)=AD9,IF(AD9<10,CONCATENATE("0",AD9,".00"),CONCATENATE(AD9,".00")),IF(ROUND(AD9*10,0)=AD9*10,IF(AD9<10,CONCATENATE("0",AD9,"0"),CONCATENATE(AD9,"0")),IF(AD9<10,CONCATENATE("0",AD9),AD9))),"''",AE9) -> 00°03'14.20''S | DD9: =CONCATENATE(AF9,"°",IF(AG9<10,CONCATENATE("0",AG9),AG9),"'",IF(ROUND(AH9,0)=AH9,IF(AH9<10,CONCATENATE("0",AH9,".00"),CONCATENATE(AH9,".00")),IF(ROUND(AH9*10,0)=AH9*10,IF(AH9<10,CONCATENATE("0",AH9,"0"),CONCATENATE(AH9,"0")),IF(AH9<10,CONCATENATE("0",AH9),AH9))),"''",AI9) -> 79°14'15.30''W | DE9: =CONCATENATE("0",#REF!,"°",IF(#REF!<10,CONCATENATE("0",#REF!),#REF!),"'",IF(ROUND(#REF!,0)=#REF!,IF(#REF!<10,CONCATENATE("0",#REF!,".00"),CONCATENATE(#REF!,".00")),IF(ROUND(#REF!*10,0)=#REF!*10,IF(#REF!<10,CONCATENATE("0",#REF!,"0"),CONCATENATE(#REF!,"0")),IF(#REF!<10,CONCATENATE("0",#REF!),#REF!))),"''",#REF!) ->  | DF9: =CONCATENATE(#REF!,"°",IF(#REF!<10,CONCATENATE("0",#REF!),#REF!),"'",IF(ROUND(#REF!,0)=#REF!,IF(#REF!<10,CONCATENATE("0",#REF!,".00"),CONCATENATE(#REF!,".00")),IF(ROUND(#REF!*10,0)=#REF!*10,IF(#REF!<10,CONCATENATE("0",#REF!,"0"),CONCATENATE(#REF!,"0")),IF(#REF!<10,CONCATENATE("0",#REF!),#REF!))),"''",#REF!) -> 
I10: 2 | J10: =CONCATENATE(#REF!,"-","TX") ->  | K10: =CONCATENATE(#REF!,"-","RX") ->  | P10: PICHINCHA | S10: I | T10: S2 | U10: =IF(T10="","",VLOOKUP($T10,'FO-DRE-01'!$A$7:$Q$10002,2,FALSE)) -> Mastil | V10: =IF(T10="","",VLOOKUP($T10,'FO-DRE-01'!$A$7:$Q$10002,3,FALSE)) -> 2500 | W10: =IF(T10="","",VLOOKUP($T10,'FO-DRE-01'!$A$7:$Q$10002,4,FALSE)) -> 15 | X10: =IF(T10="","",VLOOKUP($T10,'FO-DRE-01'!$A$7:$Q$10002,6,FALSE)) -> Tungurahua | Y10: =IF(T10="","",VLOOKUP($T10,'FO-DRE-01'!$A$7:$Q$10002,7,FALSE)) -> AMBATO | Z10: =IF(T10="","",VLOOKUP($T10,'FO-DRE-01'!$A$7:$Q$10002,8,FALSE)) -> AMBATO | AA10: =IF(T10="","",VLOOKUP($T10,'FO-DRE-01'!$A$7:$Q$10002,10,FALSE)) -> CERRO ATACAZO | AB10: =IF(T10="","",VLOOKUP($T10,'FO-DRE-01'!$A$7:$Q$10002,11,FALSE)) -> 0 | AC10: =IF(T10="","",VLOOKUP($T10,'FO-DRE-01'!$A$7:$Q$10002,12,FALSE)) -> 3 | AD10: =IF(T10="","",VLOOKUP($T10,'FO-DRE-01'!$A$7:$Q$10002,13,FALSE)) -> 14.2 | AE10: =IF(T10="","",VLOOKUP($T10,'FO-DRE-01'!$A$7:$Q$10002,14,FALSE)) -> S | AF10: =IF(T10="","",VLOOKUP($T10,'FO-DRE-01'!$A$7:$Q$10002,15,FALSE)) -> 79 | AG10: =IF(T10="","",VLOOKUP($T10,'FO-DRE-01'!$A$7:$Q$10002,16,FALSE)) -> 14 | AH10: =IF(T10="","",VLOOKUP($T10,'FO-DRE-01'!$A$7:$Q$10002,17,FALSE)) -> 15.3 | AI10: W | AY10: =CONCATENATE("0",#REF!,"°",IF(#REF!<10,CONCATENATE("0",#REF!),#REF!),"'",IF(ROUND(#REF!,0)=#REF!,IF(#REF!<10,CONCATENATE("0",#REF!,".00"),CONCATENATE(#REF!,".00")),IF(ROUND(#REF!*10,0)=#REF!*10,IF(#REF!<10,CONCATENATE("0",#REF!,"0"),CONCATENATE(#REF!,"0")),IF(#REF!<10,CONCATENATE("0",#REF!),#REF!))),"''",#REF!) ->  | AZ10: =CONCATENATE(#REF!,"°",IF(#REF!<10,CONCATENATE("0",#REF!),#REF!),"'",IF(ROUND(#REF!,0)=#REF!,IF(#REF!<10,CONCATENATE("0",#REF!,".00"),CONCATENATE(#REF!,".00")),IF(ROUND(#REF!*10,0)=#REF!*10,IF(#REF!<10,CONCATENATE("0",#REF!,"0"),CONCATENATE(#REF!,"0")),IF(#REF!<10,CONCATENATE("0",#REF!),#REF!))),"''",#REF!) ->  | BA10: =IF(#REF!="902 - 928",900,IF(#REF!="2400 - 2483.5",2400,5000)) ->  | BD10: 2 | BE10: S2 | BF10: F/D | BG10: =IF(OR(F11="",AL10="",AT10=""),"F/D",IF(BR10>BI10,"SI","")) -> F/D | BO10: =IF(AL10="","",AL10) ->  | BQ10: =IF(OR(BO10="",BP10=""),"",BP10*BO10) ->  | BY10: =IF(#REF!=$BY$8,IF(AND(#REF!<=0.25,#REF!<>""),"CORRECTO","ERROR"),"") ->  | BZ10: =IF(#REF!=$BZ$8,IF(AND(#REF!<=CA10,#REF!<>"",#REF!<>""),"CORRECTO","ERROR"),"") ->  | CA10: =VLOOKUP(#REF!,Hoja1!$X$5:$Z$5390,3,TRUE) ->  | CB10: =IF(#REF!=$CB$8,IF(AND(#REF!<=CC10,#REF!<>"",#REF!<>"",BQ10<=0.2),"CORRECTO","ERROR"),"") ->  | CC10: =VLOOKUP(#REF!,Hoja1!$AF$5:$AH$5390,3,TRUE) ->  | CD10: =IF(#REF!=$CD$8, IF(AND(#REF!="Punto - Punto",#REF!<=CE10,#REF!<>"",#REF!<>"",BQ10<=0.2),"CORRECTO", IF(AND(#REF!="Punto - Multipunto",#REF!<=CF10,#REF!<>"",#REF!<>"",BQ10<=1),"CORRECTO","ERROR")),"") ->  | CE10: =VLOOKUP(#REF!,Hoja1!$AF$5:$AH$5390,3,TRUE) ->  | CF10: =VLOOKUP(#REF!,Hoja1!$AJ$5:$AL$5390,3,TRUE) ->  | CG10: =IF(#REF!=$CG$8,IF(AND(#REF!<=CH10,#REF!<>"",#REF!<>"",BQ10<=1),"CORRECTO","ERROR"),"") ->  | CH10: =VLOOKUP(#REF!,Hoja1!$AJ$5:$AL$5390,3,TRUE) ->  | CI10: =IF(#REF!=$CI$8,IF(AND(#REF!<=CJ10,#REF!<>"",#REF!<>""),"CORRECTO","ERROR"),"") ->  | CJ10: =VLOOKUP(#REF!,Hoja1!$AB$5:$AD$5390,3,TRUE) ->  | CK10: =IF(#REF!<=#REF!,"CORRECTO","ERROR") ->  | CL10: =IF(OR(BY10="ERROR",BZ10="ERROR",CB10="ERROR",CD10="ERROR",CG10="ERROR",CI10="ERROR",CK10="ERROR"),1,0) ->  | CN10: =IF(#REF!=$CN$8,IF(AND(#REF!<=0.25,#REF!<>""),"CORRECTO","ERROR"),"") ->  | CO10: =IF(#REF!=$CO$8,IF(AND(#REF!<=CP10,#REF!<>"",#REF!<>""),"CORRECTO","ERROR"),"") ->  | CP10: =VLOOKUP(#REF!,Hoja1!$X$5:$Z$5390,3,TRUE) ->  | CQ10: =IF(#REF!=$CQ$8,IF(AND(#REF!<=CR10,#REF!<>"",#REF!<>"",#REF!<=0.2),"CORRECTO","ERROR"),"") ->  | CR10: =VLOOKUP(#REF!,Hoja1!$AF$5:$AH$5390,3,TRUE) ->  | CS10: =IF(#REF!=$CS$8, IF(AND(#REF!="Punto - Punto",#REF!<=CT10,#REF!<>"",#REF!<>"",#REF!<=0.2),"CORRECTO", IF(AND(#REF!="Punto - Multipunto",#REF!<=CU10,#REF!<>"",#REF!<>"",#REF!<=1),"CORRECTO","ERROR")),"") ->  | CT10: =VLOOKUP(#REF!,Hoja1!$AF$5:$AH$5390,3,TRUE) ->  | CU10: =VLOOKUP(#REF!,Hoja1!$AJ$5:$AL$5390,3,TRUE) ->  | CV10: =IF(#REF!=$CV$8,IF(AND(#REF!<=CW10,#REF!<>"",#REF!<>"",#REF!<=1),"CORRECTO","ERROR"),"") ->  | CW10: =VLOOKUP(#REF!,Hoja1!$AJ$5:$AL$5390,3,TRUE) ->  | CX10: =IF(#REF!=$CX$8,IF(AND(#REF!<=CY10,#REF!<>"",#REF!<>""),"CORRECTO","ERROR"),"") ->  | CY10: =VLOOKUP(#REF!,Hoja1!$AB$5:$AD$5390,3,TRUE) ->  | CZ10: =IF(#REF!<=#REF!,"CORRECTO","ERROR") ->  | DA10: =IF(OR(CN10="ERROR",CO10="ERROR",CQ10="ERROR",CS10="ERROR",CV10="ERROR",CX10="ERROR",CZ10="ERROR"),1,0) ->  | DC10: =CONCATENATE("0",#REF!,"°",IF(#REF!<10,CONCATENATE("0",#REF!),#REF!),"'",IF(ROUND(#REF!,0)=#REF!,IF(#REF!<10,CONCATENATE("0",#REF!,".00"),CONCATENATE(#REF!,".00")),IF(ROUND(#REF!*10,0)=#REF!*10,IF(#REF!<10,CONCATENATE("0",#REF!,"0"),CONCATENATE(#REF!,"0")),IF(#REF!<10,CONCATENATE("0",#REF!),#REF!))),"''",#REF!) ->  | DD10: =CONCATENATE(#REF!,"°",IF(#REF!<10,CONCATENATE("0",#REF!),#REF!),"'",IF(ROUND(#REF!,0)=#REF!,IF(#REF!<10,CONCATENATE("0",#REF!,".00"),CONCATENATE(#REF!,".00")),IF(ROUND(#REF!*10,0)=#REF!*10,IF(#REF!<10,CONCATENATE("0",#REF!,"0"),CONCATENATE(#REF!,"0")),IF(#REF!<10,CONCATENATE("0",#REF!),#REF!))),"''",#REF!) ->  | DE10: =CONCATENATE("0",#REF!,"°",IF(#REF!<10,CONCATENATE("0",#REF!),#REF!),"'",IF(ROUND(#REF!,0)=#REF!,IF(#REF!<10,CONCATENATE("0",#REF!,".00"),CONCATENATE(#REF!,".00")),IF(ROUND(#REF!*10,0)=#REF!*10,IF(#REF!<10,CONCATENATE("0",#REF!,"0"),CONCATENATE(#REF!,"0")),IF(#REF!<10,CONCATENATE("0",#REF!),#REF!))),"''",#REF!) ->  | DF10: =CONCATENATE(#REF!,"°",IF(#REF!<10,CONCATENATE("0",#REF!),#REF!),"'",IF(ROUND(#REF!,0)=#REF!,IF(#REF!<10,CONCATENATE("0",#REF!,".00"),CONCATENATE(#REF!,".00")),IF(ROUND(#REF!*10,0)=#REF!*10,IF(#REF!<10,CONCATENATE("0",#REF!,"0"),CONCATENATE(#REF!,"0")),IF(#REF!<10,CONCATENATE("0",#REF!),#REF!))),"''",#REF!) ->  | DG10: INFORMACIÓN PARA FORMULARIO RNI
A11: 90-9076 | I11: =IF(D11="","",IF(D11="SIM",1,2)) ->  | J11: =CONCATENATE(#REF!,"-","TX") ->  | K11: =CONCATENATE(#REF!,"-","RX") ->  | P11: PICHINCHA | S11: A | T11: S3 | U11: =IF(T11="","",VLOOKUP($T11,'FO-DRE-01'!$A$7:$Q$10002,2,FALSE)) -> Empotrada en edificación | V11: =IF(T11="","",VLOOKUP($T11,'FO-DRE-01'!$A$7:$Q$10002,3,FALSE)) -> 2500 | W11: =IF(T11="","",VLOOKUP($T11,'FO-DRE-01'!$A$7:$Q$10002,4,FALSE)) -> 20 | X11: =IF(T11="","",VLOOKUP($T11,'FO-DRE-01'!$A$7:$Q$10002,6,FALSE)) -> Pastaza | Y11: =IF(T11="","",VLOOKUP($T11,'FO-DRE-01'!$A$7:$Q$10002,7,FALSE)) -> CHIMBO | Z11: =IF(T11="","",VLOOKUP($T11,'FO-DRE-01'!$A$7:$Q$10002,8,FALSE)) -> CHIMBO | AA11: =IF(T11="","",VLOOKUP($T11,'FO-DRE-01'!$A$7:$Q$10002,10,FALSE)) -> CERRO PILISURCO | AB11: =IF(T11="","",VLOOKUP($T11,'FO-DRE-01'!$A$7:$Q$10002,11,FALSE)) -> 0 | AC11: =IF(T11="","",VLOOKUP($T11,'FO-DRE-01'!$A$7:$Q$10002,12,FALSE)) -> 3 | AD11: =IF(T11="","",VLOOKUP($T11,'FO-DRE-01'!$A$7:$Q$10002,13,FALSE)) -> 14.2 | AE11: =IF(T11="","",VLOOKUP($T11,'FO-DRE-01'!$A$7:$Q$10002,14,FALSE)) -> S | AF11: =IF(T11="","",VLOOKUP($T11,'FO-DRE-01'!$A$7:$Q$10002,15,FALSE)) -> 79 | AG11: =IF(T11="","",VLOOKUP($T11,'FO-DRE-01'!$A$7:$Q$10002,16,FALSE)) -> 14 | AH11: =IF(T11="","",VLOOKUP($T11,'FO-DRE-01'!$A$7:$Q$10002,17,FALSE)) -> 15.3 | AI11: W | AY11: =CONCATENATE("0",AB11,"°",IF(AC11<10,CONCATENATE("0",AC11),AC11),"'",IF(ROUND(AD11,0)=AD11,IF(AD11<10,CONCATENATE("0",AD11,".00"),CONCATENATE(AD11,".00")),IF(ROUND(AD11*10,0)=AD11*10,IF(AD11<10,CONCATENATE("0",AD11,"0"),CONCATENATE(AD11,"0")),IF(AD11<10,CONCATENATE("0",AD11),AD11))),"''",AE11) -> 00°03'14.20''S | AZ11: =CONCATENATE(AF11,"°",IF(AG11<10,CONCATENATE("0",AG11),AG11),"'",IF(ROUND(AH11,0)=AH11,IF(AH11<10,CONCATENATE("0",AH11,".00"),CONCATENATE(AH11,".00")),IF(ROUND(AH11*10,0)=AH11*10,IF(AH11<10,CONCATENATE("0",AH11,"0"),CONCATENATE(AH11,"0")),IF(AH11<10,CONCATENATE("0",AH11),AH11))),"''",AI11) -> 79°14'15.30''W | BA11: =IF(#REF!="902 - 928",900,IF(#REF!="2400 - 2483.5",2400,5000)) ->  | BD11: 3 | BE11: S3 | BF11: F/D | BG11: =IF(OR(F11="",AL11="",AT11=""),"F/D",IF(BR11>BI11,"SI","")) -> F/D | BY11: =IF(#REF!=$BY$8,IF(AND(AL11<=0.25,AL11<>""),"CORRECTO","ERROR"),"") ->  | BZ11: =IF(#REF!=$BZ$8,IF(AND(AL11<=CA11,AL11<>"",AT11<>""),"CORRECTO","ERROR"),"") ->  | CA11: =VLOOKUP(AT11,Hoja1!$X$5:$Z$5390,3,TRUE) -> 1 | CB11: =IF(#REF!=$CB$8,IF(AND(AL11<=CC11,AL11<>"",AT11<>"",BQ11<=0.2),"CORRECTO","ERROR"),"") ->  | CC11: =VLOOKUP(AT11,Hoja1!$AF$5:$AH$5390,3,TRUE) -> 0.05 | CD11: =IF(#REF!=$CD$8, IF(AND(#REF!="Punto - Punto",AL11<=CE11,AL11<>"",AT11<>"",BQ11<=0.2),"CORRECTO", IF(AND(#REF!="Punto - Multipunto",AL11<=CF11,AL11<>"",AT11<>"",BQ11<=1),"CORRECTO","ERROR")),"") ->  | CE11: =VLOOKUP(AT11,Hoja1!$AF$5:$AH$5390,3,TRUE) -> 0.05 | CF11: =VLOOKUP(AT11,Hoja1!$AJ$5:$AL$5390,3,TRUE) -> 0.25 | CG11: =IF(#REF!=$CG$8,IF(AND(AL11<=CH11,AL11<>"",AT11<>"",BQ11<=1),"CORRECTO","ERROR"),"") ->  | CH11: =VLOOKUP(AT11,Hoja1!$AJ$5:$AL$5390,3,TRUE) -> 0.25 | CI11: =IF(#REF!=$CI$8,IF(AND(AL11<=CJ11,AL11<>"",AT11<>""),"CORRECTO","ERROR"),"") ->  | CJ11: =VLOOKUP(AT11,Hoja1!$AB$5:$AD$5390,3,TRUE) -> 1 | CK11: =IF(AX11<=W11,"CORRECTO","ERROR") -> CORRECTO | CN11: =IF(#REF!=$CN$8,IF(AND(#REF!<=0.25,#REF!<>""),"CORRECTO","ERROR"),"") ->  | CO11: =IF(#REF!=$CO$8,IF(AND(#REF!<=CP11,#REF!<>"",#REF!<>""),"CORRECTO","ERROR"),"") ->  | CP11: =VLOOKUP(#REF!,Hoja1!$X$5:$Z$5390,3,TRUE) ->  | CQ11: =IF(#REF!=$CQ$8,IF(AND(#REF!<=CR11,#REF!<>"",#REF!<>"",#REF!<=0.2),"CORRECTO","ERROR"),"") ->  | CR11: =VLOOKUP(#REF!,Hoja1!$AF$5:$AH$5390,3,TRUE) ->  | CS11: =IF(#REF!=$CS$8, IF(AND(#REF!="Punto - Punto",#REF!<=CT11,#REF!<>"",#REF!<>"",#REF!<=0.2),"CORRECTO", IF(AND(#REF!="Punto - Multipunto",#REF!<=CU11,#REF!<>"",#REF!<>"",#REF!<=1),"CORRECTO","ERROR")),"") ->  | CT11: =VLOOKUP(#REF!,Hoja1!$AF$5:$AH$5390,3,TRUE) ->  | CU11: =VLOOKUP(#REF!,Hoja1!$AJ$5:$AL$5390,3,TRUE) ->  | CV11: =IF(#REF!=$CV$8,IF(AND(#REF!<=CW11,#REF!<>"",#REF!<>"",#REF!<=1),"CORRECTO","ERROR"),"") ->  | CW11: =VLOOKUP(#REF!,Hoja1!$AJ$5:$AL$5390,3,TRUE) ->  | CX11: =IF(#REF!=$CX$8,IF(AND(#REF!<=CY11,#REF!<>"",#REF!<>""),"CORRECTO","ERROR"),"") ->  | CY11: =VLOOKUP(#REF!,Hoja1!$AB$5:$AD$5390,3,TRUE) ->  | CZ11: =IF(#REF!<=#REF!,"CORRECTO","ERROR") ->  | DC11: =CONCATENATE("0",AB11,"°",IF(AC11<10,CONCATENATE("0",AC11),AC11),"'",IF(ROUND(AD11,0)=AD11,IF(AD11<10,CONCATENATE("0",AD11,".00"),CONCATENATE(AD11,".00")),IF(ROUND(AD11*10,0)=AD11*10,IF(AD11<10,CONCATENATE("0",AD11,"0"),CONCATENATE(AD11,"0")),IF(AD11<10,CONCATENATE("0",AD11),AD11))),"''",AE11) -> 00°03'14.20''S | DD11: =CONCATENATE(AF11,"°",IF(AG11<10,CONCATENATE("0",AG11),AG11),"'",IF(ROUND(AH11,0)=AH11,IF(AH11<10,CONCATENATE("0",AH11,".00"),CONCATENATE(AH11,".00")),IF(ROUND(AH11*10,0)=AH11*10,IF(AH11<10,CONCATENATE("0",AH11,"0"),CONCATENATE(AH11,"0")),IF(AH11<10,CONCATENATE("0",AH11),AH11))),"''",AI11) -> 79°14'15.30''W | DE11: =CONCATENATE("0",#REF!,"°",IF(#REF!<10,CONCATENATE("0",#REF!),#REF!),"'",IF(ROUND(#REF!,0)=#REF!,IF(#REF!<10,CONCATENATE("0",#REF!,".00"),CONCATENATE(#REF!,".00")),IF(ROUND(#REF!*10,0)=#REF!*10,IF(#REF!<10,CONCATENATE("0",#REF!,"0"),CONCATENATE(#REF!,"0")),IF(#REF!<10,CONCATENATE("0",#REF!),#REF!))),"''",#REF!) ->  | DF11: =CONCATENATE(#REF!,"°",IF(#REF!<10,CONCATENATE("0",#REF!),#REF!),"'",IF(ROUND(#REF!,0)=#REF!,IF(#REF!<10,CONCATENATE("0",#REF!,".00"),CONCATENATE(#REF!,".00")),IF(ROUND(#REF!*10,0)=#REF!*10,IF(#REF!<10,CONCATENATE("0",#REF!,"0"),CONCATENATE(#REF!,"0")),IF(#REF!<10,CONCATENATE("0",#REF!),#REF!))),"''",#REF!) ->  | DG11: Representante:
I12: 2 | J12: =CONCATENATE(#REF!,"-","TX") ->  | K12: =CONCATENATE(#REF!,"-","RX") ->  | S12: I | T12: S4 | U12: =IF(T12="","",VLOOKUP($T12,'FO-DRE-01'!$A$7:$Q$10002,2,FALSE)) -> Otras | V12: =IF(T12="","",VLOOKUP($T12,'FO-DRE-01'!$A$7:$Q$10002,3,FALSE)) -> 2500 | W12: =IF(T12="","",VLOOKUP($T12,'FO-DRE-01'!$A$7:$Q$10002,4,FALSE)) -> 25 | X12: =IF(T12="","",VLOOKUP($T12,'FO-DRE-01'!$A$7:$Q$10002,6,FALSE)) -> Santo Domingo de los Tsáchilas | Y12: =IF(T12="","",VLOOKUP($T12,'FO-DRE-01'!$A$7:$Q$10002,7,FALSE)) -> RIOBAMBA | Z12: =IF(T12="","",VLOOKUP($T12,'FO-DRE-01'!$A$7:$Q$10002,8,FALSE)) -> RIOBAMBA | AA12: =IF(T12="","",VLOOKUP($T12,'FO-DRE-01'!$A$7:$Q$10002,10,FALSE)) -> CERRO NITON | AB12: =IF(T12="","",VLOOKUP($T12,'FO-DRE-01'!$A$7:$Q$10002,11,FALSE)) -> 0 | AC12: =IF(T12="","",VLOOKUP($T12,'FO-DRE-01'!$A$7:$Q$10002,12,FALSE)) -> 3 | AD12: =IF(T12="","",VLOOKUP($T12,'FO-DRE-01'!$A$7:$Q$10002,13,FALSE)) -> 14.2 | AE12: =IF(T12="","",VLOOKUP($T12,'FO-DRE-01'!$A$7:$Q$10002,14,FALSE)) -> S | AF12: =IF(T12="","",VLOOKUP($T12,'FO-DRE-01'!$A$7:$Q$10002,15,FALSE)) -> 78 | AG12: =IF(T12="","",VLOOKUP($T12,'FO-DRE-01'!$A$7:$Q$10002,16,FALSE)) -> 7 | AH12: =IF(T12="","",VLOOKUP($T12,'FO-DRE-01'!$A$7:$Q$10002,17,FALSE)) -> 12.2 | AI12: W | AY12: 00°03'14.20''S | AZ12: 78°07'12.20''W | BA12: =IF(L12="902 - 928",900,IF(L12="2400 - 2483.5",2400,5000)) -> 5000 | BD12: 4 | BE12: S4 | BF12: F/D | BG12: =IF(OR(F13="",AL12="",AT12=""),"F/D",IF(BR12>BI12,"SI","")) -> F/D | BY12: =IF(L12=$BY$8,IF(AND(AL12<=0.25,AL12<>""),"CORRECTO","ERROR"),"") ->  | BZ12: =IF(L12=$BZ$8,IF(AND(AL12<=CA12,AL12<>"",AT12<>""),"CORRECTO","ERROR"),"") ->  | CA12: =VLOOKUP(AT12,Hoja1!$X$5:$Z$5390,3,TRUE) -> 1 | CB12: =IF(L12=$CB$8,IF(AND(AL12<=CC12,AL12<>"",AT12<>"",BQ12<=0.2),"CORRECTO","ERROR"),"") ->  | CC12: =VLOOKUP(AT12,Hoja1!$AF$5:$AH$5390,3,TRUE) -> 0.05 | CD12: =IF(L12=$CD$8, IF(AND(#REF!="Punto - Punto",AL12<=CE12,AL12<>"",AT12<>"",BQ12<=0.2),"CORRECTO", IF(AND(#REF!="Punto - Multipunto",AL12<=CF12,AL12<>"",AT12<>"",BQ12<=1),"CORRECTO","ERROR")),"") ->  | CE12: =VLOOKUP(AT12,Hoja1!$AF$5:$AH$5390,3,TRUE) -> 0.05 | CF12: =VLOOKUP(AT12,Hoja1!$AJ$5:$AL$5390,3,TRUE) -> 0.25 | CG12: =IF(L12=$CG$8,IF(AND(AL12<=CH12,AL12<>"",AT12<>"",BQ12<=1),"CORRECTO","ERROR"),"") ->  | CH12: =VLOOKUP(AT12,Hoja1!$AJ$5:$AL$5390,3,TRUE) -> 0.25 | CI12: =IF(L12=$CI$8,IF(AND(AL12<=CJ12,AL12<>"",AT12<>""),"CORRECTO","ERROR"),"") ->  | CJ12: =VLOOKUP(AT12,Hoja1!$AB$5:$AD$5390,3,TRUE) -> 1 | CK12: CORRECTO | CL12: 0 | CN12: =IF(L12=$CN$8,IF(AND(#REF!<=0.25,#REF!<>""),"CORRECTO","ERROR"),"") ->  | CO12: =IF(L12=$CO$8,IF(AND(#REF!<=CP12,#REF!<>"",#REF!<>""),"CORRECTO","ERROR"),"") ->  | CP12: =VLOOKUP(#REF!,Hoja1!$X$5:$Z$5390,3,TRUE) ->  | CQ12: =IF(L12=$CQ$8,IF(AND(#REF!<=CR12,#REF!<>"",#REF!<>"",#REF!<=0.2),"CORRECTO","ERROR"),"") ->  | CR12: =VLOOKUP(#REF!,Hoja1!$AF$5:$AH$5390,3,TRUE) ->  | CS12: =IF(L12=$CS$8, IF(AND(#REF!="Punto - Punto",#REF!<=CT12,#REF!<>"",#REF!<>"",#REF!<=0.2),"CORRECTO", IF(AND(#REF!="Punto - Multipunto",#REF!<=CU12,#REF!<>"",#REF!<>"",#REF!<=1),"CORRECTO","ERROR")),"") ->  | CT12: =VLOOKUP(#REF!,Hoja1!$AF$5:$AH$5390,3,TRUE) ->  | CU12: =VLOOKUP(#REF!,Hoja1!$AJ$5:$AL$5390,3,TRUE) ->  | CV12: =IF(L12=$CV$8,IF(AND(#REF!<=CW12,#REF!<>"",#REF!<>"",#REF!<=1),"CORRECTO","ERROR"),"") ->  | CW12: =VLOOKUP(#REF!,Hoja1!$AJ$5:$AL$5390,3,TRUE) ->  | CX12: =IF(L12=$CX$8,IF(AND(#REF!<=CY12,#REF!<>"",#REF!<>""),"CORRECTO","ERROR"),"") ->  | CY12: =VLOOKUP(#REF!,Hoja1!$AB$5:$AD$5390,3,TRUE) ->  | CZ12: =IF(#REF!<=#REF!,"CORRECTO","ERROR") ->  | DC12: 00°03'14.20''S | DD12: 78°07'12.20''W | DE12: =CONCATENATE("0",#REF!,"°",IF(#REF!<10,CONCATENATE("0",#REF!),#REF!),"'",IF(ROUND(#REF!,0)=#REF!,IF(#REF!<10,CONCATENATE("0",#REF!,".00"),CONCATENATE(#REF!,".00")),IF(ROUND(#REF!*10,0)=#REF!*10,IF(#REF!<10,CONCATENATE("0",#REF!,"0"),CONCATENATE(#REF!,"0")),IF(#REF!<10,CONCATENATE("0",#REF!),#REF!))),"''",#REF!) ->  | DF12: =CONCATENATE(#REF!,"°",IF(#REF!<10,CONCATENATE("0",#REF!),#REF!),"'",IF(ROUND(#REF!,0)=#REF!,IF(#REF!<10,CONCATENATE("0",#REF!,".00"),CONCATENATE(#REF!,".00")),IF(ROUND(#REF!*10,0)=#REF!*10,IF(#REF!<10,CONCATENATE("0",#REF!,"0"),CONCATENATE(#REF!,"0")),IF(#REF!<10,CONCATENATE("0",#REF!),#REF!))),"''",#REF!) ->  | DG12: Ingeniero Responsable
J13: =CONCATENATE(#REF!,"-","TX") ->  | K13: =CONCATENATE(#REF!,"-","RX") ->  | S13: I | U13: =IF(T13="","",VLOOKUP($T13,'FO-DRE-01'!$A$7:$Q$10002,2,FALSE)) ->  | V13: =IF(T13="","",VLOOKUP($T13,'FO-DRE-01'!$A$7:$Q$10002,3,FALSE)) ->  | W13: =IF(T13="","",VLOOKUP($T13,'FO-DRE-01'!$A$7:$Q$10002,4,FALSE)) ->  | X13: =IF(T13="","",VLOOKUP($T13,'FO-DRE-01'!$A$7:$Q$10002,6,FALSE)) ->  | Y13: =IF(T13="","",VLOOKUP($T13,'FO-DRE-01'!$A$7:$Q$10002,7,FALSE)) ->  | Z13: =IF(T13="","",VLOOKUP($T13,'FO-DRE-01'!$A$7:$Q$10002,8,FALSE)) ->  | AA13: =IF(T13="","",VLOOKUP($T13,'FO-DRE-01'!$A$7:$Q$10002,10,FALSE)) ->  | AB13: =IF(T13="","",VLOOKUP($T13,'FO-DRE-01'!$A$7:$Q$10002,11,FALSE)) ->  | AC13: =IF(T13="","",VLOOKUP($T13,'FO-DRE-01'!$A$7:$Q$10002,12,FALSE)) ->  | AD13: =IF(T13="","",VLOOKUP($T13,'FO-DRE-01'!$A$7:$Q$10002,13,FALSE)) ->  | AE13: =IF(T13="","",VLOOKUP($T13,'FO-DRE-01'!$A$7:$Q$10002,14,FALSE)) ->  | AF13: =IF(T13="","",VLOOKUP($T13,'FO-DRE-01'!$A$7:$Q$10002,15,FALSE)) ->  | AG13: =IF(T13="","",VLOOKUP($T13,'FO-DRE-01'!$A$7:$Q$10002,16,FALSE)) ->  | AH13: =IF(T13="","",VLOOKUP($T13,'FO-DRE-01'!$A$7:$Q$10002,17,FALSE)) ->  | AI13: W | BA13: 5000 | BD13: 5 | BF13: F/D | BG13: =IF(OR(F13="",AL13="",AT13=""),"F/D",IF(BR13>BI13,"SI","")) -> F/D | CA13: =VLOOKUP(AT13,Hoja1!$X$5:$Z$5390,3,TRUE) -> 1 | CC13: =VLOOKUP(AT13,Hoja1!$AF$5:$AH$5390,3,TRUE) -> 0.05 | CD13: =IF(L13=$CD$8, IF(AND(#REF!="Punto - Punto",AL13<=CE13,AL13<>"",AT13<>"",BQ13<=0.2),"CORRECTO", IF(AND(#REF!="Punto - Multipunto",AL13<=CF13,AL13<>"",AT13<>"",BQ13<=1),"CORRECTO","ERROR")),"") ->  | CE13: =VLOOKUP(AT13,Hoja1!$AF$5:$AH$5390,3,TRUE) -> 0.05 | CF13: =VLOOKUP(AT13,Hoja1!$AJ$5:$AL$5390,3,TRUE) -> 0.25 | CH13: =VLOOKUP(AT13,Hoja1!$AJ$5:$AL$5390,3,TRUE) -> 0.25 | CJ13: =VLOOKUP(AT13,Hoja1!$AB$5:$AD$5390,3,TRUE) -> 1 | CK13: CORRECTO | CL13: 0 | CN13: =IF(L13=$CN$8,IF(AND(#REF!<=0.25,#REF!<>""),"CORRECTO","ERROR"),"") ->  | CO13: =IF(L13=$CO$8,IF(AND(#REF!<=CP13,#REF!<>"",#REF!<>""),"CORRECTO","ERROR"),"") ->  | CP13: =VLOOKUP(#REF!,Hoja1!$X$5:$Z$5390,3,TRUE) ->  | CQ13: =IF(L13=$CQ$8,IF(AND(#REF!<=CR13,#REF!<>"",#REF!<>"",#REF!<=0.2),"CORRECTO","ERROR"),"") ->  | CR13: =VLOOKUP(#REF!,Hoja1!$AF$5:$AH$5390,3,TRUE) ->  | CS13: =IF(L13=$CS$8, IF(AND(#REF!="Punto - Punto",#REF!<=CT13,#REF!<>"",#REF!<>"",#REF!<=0.2),"CORRECTO", IF(AND(#REF!="Punto - Multipunto",#REF!<=CU13,#REF!<>"",#REF!<>"",#REF!<=1),"CORRECTO","ERROR")),"") ->  | CT13: =VLOOKUP(#REF!,Hoja1!$AF$5:$AH$5390,3,TRUE) ->  | CU13: =VLOOKUP(#REF!,Hoja1!$AJ$5:$AL$5390,3,TRUE) ->  | CV13: =IF(L13=$CV$8,IF(AND(#REF!<=CW13,#REF!<>"",#REF!<>"",#REF!<=1),"CORRECTO","ERROR"),"") ->  | CW13: =VLOOKUP(#REF!,Hoja1!$AJ$5:$AL$5390,3,TRUE) ->  | CX13: =IF(L13=$CX$8,IF(AND(#REF!<=CY13,#REF!<>"",#REF!<>""),"CORRECTO","ERROR"),"") ->  | CY13: =VLOOKUP(#REF!,Hoja1!$AB$5:$AD$5390,3,TRUE) ->  | CZ13: =IF(#REF!<=#REF!,"CORRECTO","ERROR") ->  | DE13: =CONCATENATE("0",#REF!,"°",IF(#REF!<10,CONCATENATE("0",#REF!),#REF!),"'",IF(ROUND(#REF!,0)=#REF!,IF(#REF!<10,CONCATENATE("0",#REF!,".00"),CONCATENATE(#REF!,".00")),IF(ROUND(#REF!*10,0)=#REF!*10,IF(#REF!<10,CONCATENATE("0",#REF!,"0"),CONCATENATE(#REF!,"0")),IF(#REF!<10,CONCATENATE("0",#REF!),#REF!))),"''",#REF!) ->  | DF13: =CONCATENATE(#REF!,"°",IF(#REF!<10,CONCATENATE("0",#REF!),#REF!),"'",IF(ROUND(#REF!,0)=#REF!,IF(#REF!<10,CONCATENATE("0",#REF!,".00"),CONCATENATE(#REF!,".00")),IF(ROUND(#REF!*10,0)=#REF!*10,IF(#REF!<10,CONCATENATE("0",#REF!,"0"),CONCATENATE(#REF!,"0")),IF(#REF!<10,CONCATENATE("0",#REF!),#REF!))),"''",#REF!) -> 
J14: =CONCATENATE(#REF!,"-","TX") ->  | K14: =CONCATENATE(#REF!,"-","RX") ->  | S14: I | U14: =IF(T14="","",VLOOKUP($T14,'FO-DRE-01'!$A$7:$Q$10002,2,FALSE)) ->  | V14: =IF(T14="","",VLOOKUP($T14,'FO-DRE-01'!$A$7:$Q$10002,3,FALSE)) ->  | W14: =IF(T14="","",VLOOKUP($T14,'FO-DRE-01'!$A$7:$Q$10002,4,FALSE)) ->  | X14: =IF(T14="","",VLOOKUP($T14,'FO-DRE-01'!$A$7:$Q$10002,6,FALSE)) ->  | Y14: =IF(T14="","",VLOOKUP($T14,'FO-DRE-01'!$A$7:$Q$10002,7,FALSE)) ->  | Z14: =IF(T14="","",VLOOKUP($T14,'FO-DRE-01'!$A$7:$Q$10002,8,FALSE)) ->  | AA14: =IF(T14="","",VLOOKUP($T14,'FO-DRE-01'!$A$7:$Q$10002,10,FALSE)) ->  | AB14: =IF(T14="","",VLOOKUP($T14,'FO-DRE-01'!$A$7:$Q$10002,11,FALSE)) ->  | AC14: =IF(T14="","",VLOOKUP($T14,'FO-DRE-01'!$A$7:$Q$10002,12,FALSE)) ->  | AD14: =IF(T14="","",VLOOKUP($T14,'FO-DRE-01'!$A$7:$Q$10002,13,FALSE)) ->  | AE14: =IF(T14="","",VLOOKUP($T14,'FO-DRE-01'!$A$7:$Q$10002,14,FALSE)) ->  | AF14: =IF(T14="","",VLOOKUP($T14,'FO-DRE-01'!$A$7:$Q$10002,15,FALSE)) ->  | AG14: =IF(T14="","",VLOOKUP($T14,'FO-DRE-01'!$A$7:$Q$10002,16,FALSE)) ->  | AH14: =IF(T14="","",VLOOKUP($T14,'FO-DRE-01'!$A$7:$Q$10002,17,FALSE)) ->  | AI14: W | BA14: 5000 | BD14: 6 | BF14: F/D | BG14: =IF(OR(F15="",AL14="",AT14=""),"F/D",IF(BR14>BI14,"SI","")) -> F/D | CA14: =VLOOKUP(AT14,Hoja1!$X$5:$Z$5390,3,TRUE) -> 1 | CC14: =VLOOKUP(AT14,Hoja1!$AF$5:$AH$5390,3,TRUE) -> 0.05 | CD14: =IF(L14=$CD$8, IF(AND(#REF!="Punto - Punto",AL14<=CE14,AL14<>"",AT14<>"",BQ14<=0.2),"CORRECTO", IF(AND(#REF!="Punto - Multipunto",AL14<=CF14,AL14<>"",AT14<>"",BQ14<=1),"CORRECTO","ERROR")),"") ->  | CE14: =VLOOKUP(AT14,Hoja1!$AF$5:$AH$5390,3,TRUE) -> 0.05 | CF14: =VLOOKUP(AT14,Hoja1!$AJ$5:$AL$5390,3,TRUE) -> 0.25 | CH14: =VLOOKUP(AT14,Hoja1!$AJ$5:$AL$5390,3,TRUE) -> 0.25 | CJ14: =VLOOKUP(AT14,Hoja1!$AB$5:$AD$5390,3,TRUE) -> 1 | CK14: CORRECTO | CL14: 0 | CN14: =IF(L14=$CN$8,IF(AND(#REF!<=0.25,#REF!<>""),"CORRECTO","ERROR"),"") ->  | CO14: =IF(L14=$CO$8,IF(AND(#REF!<=CP14,#REF!<>"",#REF!<>""),"CORRECTO","ERROR"),"") ->  | CP14: =VLOOKUP(#REF!,Hoja1!$X$5:$Z$5390,3,TRUE) ->  | CQ14: =IF(L14=$CQ$8,IF(AND(#REF!<=CR14,#REF!<>"",#REF!<>"",#REF!<=0.2),"CORRECTO","ERROR"),"") ->  | CR14: =VLOOKUP(#REF!,Hoja1!$AF$5:$AH$5390,3,TRUE) ->  | CS14: =IF(L14=$CS$8, IF(AND(#REF!="Punto - Punto",#REF!<=CT14,#REF!<>"",#REF!<>"",#REF!<=0.2),"CORRECTO", IF(AND(#REF!="Punto - Multipunto",#REF!<=CU14,#REF!<>"",#REF!<>"",#REF!<=1),"CORRECTO","ERROR")),"") ->  | CT14: =VLOOKUP(#REF!,Hoja1!$AF$5:$AH$5390,3,TRUE) ->  | CU14: =VLOOKUP(#REF!,Hoja1!$AJ$5:$AL$5390,3,TRUE) ->  | CV14: =IF(L14=$CV$8,IF(AND(#REF!<=CW14,#REF!<>"",#REF!<>"",#REF!<=1),"CORRECTO","ERROR"),"") ->  | CW14: =VLOOKUP(#REF!,Hoja1!$AJ$5:$AL$5390,3,TRUE) ->  | CX14: =IF(L14=$CX$8,IF(AND(#REF!<=CY14,#REF!<>"",#REF!<>""),"CORRECTO","ERROR"),"") ->  | CY14: =VLOOKUP(#REF!,Hoja1!$AB$5:$AD$5390,3,TRUE) ->  | CZ14: =IF(#REF!<=#REF!,"CORRECTO","ERROR") ->  | DE14: =CONCATENATE("0",#REF!,"°",IF(#REF!<10,CONCATENATE("0",#REF!),#REF!),"'",IF(ROUND(#REF!,0)=#REF!,IF(#REF!<10,CONCATENATE("0",#REF!,".00"),CONCATENATE(#REF!,".00")),IF(ROUND(#REF!*10,0)=#REF!*10,IF(#REF!<10,CONCATENATE("0",#REF!,"0"),CONCATENATE(#REF!,"0")),IF(#REF!<10,CONCATENATE("0",#REF!),#REF!))),"''",#REF!) ->  | DF14: =CONCATENATE(#REF!,"°",IF(#REF!<10,CONCATENATE("0",#REF!),#REF!),"'",IF(ROUND(#REF!,0)=#REF!,IF(#REF!<10,CONCATENATE("0",#REF!,".00"),CONCATENATE(#REF!,".00")),IF(ROUND(#REF!*10,0)=#REF!*10,IF(#REF!<10,CONCATENATE("0",#REF!,"0"),CONCATENATE(#REF!,"0")),IF(#REF!<10,CONCATENATE("0",#REF!),#REF!))),"''",#REF!) -> 
J15: =CONCATENATE(#REF!,"-","TX") ->  | K15: =CONCATENATE(#REF!,"-","RX") ->  | S15: I | U15: =IF(T15="","",VLOOKUP($T15,'FO-DRE-01'!$A$7:$Q$10002,2,FALSE)) ->  | V15: =IF(T15="","",VLOOKUP($T15,'FO-DRE-01'!$A$7:$Q$10002,3,FALSE)) ->  | W15: =IF(T15="","",VLOOKUP($T15,'FO-DRE-01'!$A$7:$Q$10002,4,FALSE)) ->  | X15: =IF(T15="","",VLOOKUP($T15,'FO-DRE-01'!$A$7:$Q$10002,6,FALSE)) ->  | Y15: =IF(T15="","",VLOOKUP($T15,'FO-DRE-01'!$A$7:$Q$10002,7,FALSE)) ->  | Z15: =IF(T15="","",VLOOKUP($T15,'FO-DRE-01'!$A$7:$Q$10002,8,FALSE)) ->  | AA15: =IF(T15="","",VLOOKUP($T15,'FO-DRE-01'!$A$7:$Q$10002,10,FALSE)) ->  | AB15: =IF(T15="","",VLOOKUP($T15,'FO-DRE-01'!$A$7:$Q$10002,11,FALSE)) ->  | AC15: =IF(T15="","",VLOOKUP($T15,'FO-DRE-01'!$A$7:$Q$10002,12,FALSE)) ->  | AD15: =IF(T15="","",VLOOKUP($T15,'FO-DRE-01'!$A$7:$Q$10002,13,FALSE)) ->  | AE15: =IF(T15="","",VLOOKUP($T15,'FO-DRE-01'!$A$7:$Q$10002,14,FALSE)) ->  | AF15: =IF(T15="","",VLOOKUP($T15,'FO-DRE-01'!$A$7:$Q$10002,15,FALSE)) ->  | AG15: =IF(T15="","",VLOOKUP($T15,'FO-DRE-01'!$A$7:$Q$10002,16,FALSE)) ->  | AH15: =IF(T15="","",VLOOKUP($T15,'FO-DRE-01'!$A$7:$Q$10002,17,FALSE)) ->  | AI15: W | BA15: 5000 | BD15: 7 | BF15: F/D | BG15: =IF(OR(F15="",AL15="",AT15=""),"F/D",IF(BR15>BI15,"SI","")) -> F/D | CA15: =VLOOKUP(AT15,Hoja1!$X$5:$Z$5390,3,TRUE) -> 1 | CC15: =VLOOKUP(AT15,Hoja1!$AF$5:$AH$5390,3,TRUE) -> 0.05 | CD15: =IF(L15=$CD$8, IF(AND(#REF!="Punto - Punto",AL15<=CE15,AL15<>"",AT15<>"",BQ15<=0.2),"CORRECTO", IF(AND(#REF!="Punto - Multipunto",AL15<=CF15,AL15<>"",AT15<>"",BQ15<=1),"CORRECTO","ERROR")),"") ->  | CE15: =VLOOKUP(AT15,Hoja1!$AF$5:$AH$5390,3,TRUE) -> 0.05 | CF15: =VLOOKUP(AT15,Hoja1!$AJ$5:$AL$5390,3,TRUE) -> 0.25 | CH15: =VLOOKUP(AT15,Hoja1!$AJ$5:$AL$5390,3,TRUE) -> 0.25 | CJ15: =VLOOKUP(AT15,Hoja1!$AB$5:$AD$5390,3,TRUE) -> 1 | CK15: CORRECTO | CL15: 0 | CN15: =IF(L15=$CN$8,IF(AND(#REF!<=0.25,#REF!<>""),"CORRECTO","ERROR"),"") ->  | CO15: =IF(L15=$CO$8,IF(AND(#REF!<=CP15,#REF!<>"",#REF!<>""),"CORRECTO","ERROR"),"") ->  | CP15: =VLOOKUP(#REF!,Hoja1!$X$5:$Z$5390,3,TRUE) ->  | CQ15: =IF(L15=$CQ$8,IF(AND(#REF!<=CR15,#REF!<>"",#REF!<>"",#REF!<=0.2),"CORRECTO","ERROR"),"") ->  | CR15: =VLOOKUP(#REF!,Hoja1!$AF$5:$AH$5390,3,TRUE) ->  | CS15: =IF(L15=$CS$8, IF(AND(#REF!="Punto - Punto",#REF!<=CT15,#REF!<>"",#REF!<>"",#REF!<=0.2),"CORRECTO", IF(AND(#REF!="Punto - Multipunto",#REF!<=CU15,#REF!<>"",#REF!<>"",#REF!<=1),"CORRECTO","ERROR")),"") ->  | CT15: =VLOOKUP(#REF!,Hoja1!$AF$5:$AH$5390,3,TRUE) ->  | CU15: =VLOOKUP(#REF!,Hoja1!$AJ$5:$AL$5390,3,TRUE) ->  | CV15: =IF(L15=$CV$8,IF(AND(#REF!<=CW15,#REF!<>"",#REF!<>"",#REF!<=1),"CORRECTO","ERROR"),"") ->  | CW15: =VLOOKUP(#REF!,Hoja1!$AJ$5:$AL$5390,3,TRUE) ->  | CX15: =IF(L15=$CX$8,IF(AND(#REF!<=CY15,#REF!<>"",#REF!<>""),"CORRECTO","ERROR"),"") ->  | CY15: =VLOOKUP(#REF!,Hoja1!$AB$5:$AD$5390,3,TRUE) ->  | CZ15: =IF(#REF!<=#REF!,"CORRECTO","ERROR") ->  | DE15: =CONCATENATE("0",#REF!,"°",IF(#REF!<10,CONCATENATE("0",#REF!),#REF!),"'",IF(ROUND(#REF!,0)=#REF!,IF(#REF!<10,CONCATENATE("0",#REF!,".00"),CONCATENATE(#REF!,".00")),IF(ROUND(#REF!*10,0)=#REF!*10,IF(#REF!<10,CONCATENATE("0",#REF!,"0"),CONCATENATE(#REF!,"0")),IF(#REF!<10,CONCATENATE("0",#REF!),#REF!))),"''",#REF!) ->  | DF15: =CONCATENATE(#REF!,"°",IF(#REF!<10,CONCATENATE("0",#REF!),#REF!),"'",IF(ROUND(#REF!,0)=#REF!,IF(#REF!<10,CONCATENATE("0",#REF!,".00"),CONCATENATE(#REF!,".00")),IF(ROUND(#REF!*10,0)=#REF!*10,IF(#REF!<10,CONCATENATE("0",#REF!,"0"),CONCATENATE(#REF!,"0")),IF(#REF!<10,CONCATENATE("0",#REF!),#REF!))),"''",#REF!) -> 
J16: =CONCATENATE(#REF!,"-","TX") ->  | K16: =CONCATENATE(#REF!,"-","RX") ->  | S16: I | U16: =IF(T16="","",VLOOKUP($T16,'FO-DRE-01'!$A$7:$Q$10002,2,FALSE)) ->  | V16: =IF(T16="","",VLOOKUP($T16,'FO-DRE-01'!$A$7:$Q$10002,3,FALSE)) ->  | W16: =IF(T16="","",VLOOKUP($T16,'FO-DRE-01'!$A$7:$Q$10002,4,FALSE)) ->  | X16: =IF(T16="","",VLOOKUP($T16,'FO-DRE-01'!$A$7:$Q$10002,6,FALSE)) ->  | Y16: =IF(T16="","",VLOOKUP($T16,'FO-DRE-01'!$A$7:$Q$10002,7,FALSE)) ->  | Z16: =IF(T16="","",VLOOKUP($T16,'FO-DRE-01'!$A$7:$Q$10002,8,FALSE)) ->  | AA16: =IF(T16="","",VLOOKUP($T16,'FO-DRE-01'!$A$7:$Q$10002,10,FALSE)) ->  | AB16: =IF(T16="","",VLOOKUP($T16,'FO-DRE-01'!$A$7:$Q$10002,11,FALSE)) ->  | AC16: =IF(T16="","",VLOOKUP($T16,'FO-DRE-01'!$A$7:$Q$10002,12,FALSE)) ->  | AD16: =IF(T16="","",VLOOKUP($T16,'FO-DRE-01'!$A$7:$Q$10002,13,FALSE)) ->  | AE16: =IF(T16="","",VLOOKUP($T16,'FO-DRE-01'!$A$7:$Q$10002,14,FALSE)) ->  | AF16: =IF(T16="","",VLOOKUP($T16,'FO-DRE-01'!$A$7:$Q$10002,15,FALSE)) ->  | AG16: =IF(T16="","",VLOOKUP($T16,'FO-DRE-01'!$A$7:$Q$10002,16,FALSE)) ->  | AH16: =IF(T16="","",VLOOKUP($T16,'FO-DRE-01'!$A$7:$Q$10002,17,FALSE)) ->  | AI16: W | BA16: 5000 | BD16: 8 | BF16: F/D | BG16: =IF(OR(F17="",AL16="",AT16=""),"F/D",IF(BR16>BI16,"SI","")) -> F/D | CA16: =VLOOKUP(AT16,Hoja1!$X$5:$Z$5390,3,TRUE) -> 1 | CC16: =VLOOKUP(AT16,Hoja1!$AF$5:$AH$5390,3,TRUE) -> 0.05 | CD16: =IF(L16=$CD$8, IF(AND(#REF!="Punto - Punto",AL16<=CE16,AL16<>"",AT16<>"",BQ16<=0.2),"CORRECTO", IF(AND(#REF!="Punto - Multipunto",AL16<=CF16,AL16<>"",AT16<>"",BQ16<=1),"CORRECTO","ERROR")),"") ->  | CE16: =VLOOKUP(AT16,Hoja1!$AF$5:$AH$5390,3,TRUE) -> 0.05 | CF16: =VLOOKUP(AT16,Hoja1!$AJ$5:$AL$5390,3,TRUE) -> 0.25 | CH16: =VLOOKUP(AT16,Hoja1!$AJ$5:$AL$5390,3,TRUE) -> 0.25 | CJ16: =VLOOKUP(AT16,Hoja1!$AB$5:$AD$5390,3,TRUE) -> 1 | CK16: CORRECTO | CL16: 0 | CN16: =IF(L16=$CN$8,IF(AND(#REF!<=0.25,#REF!<>""),"CORRECTO","ERROR"),"") ->  | CO16: =IF(L16=$CO$8,IF(AND(#REF!<=CP16,#REF!<>"",#REF!<>""),"CORRECTO","ERROR"),"") ->  | CP16: =VLOOKUP(#REF!,Hoja1!$X$5:$Z$5390,3,TRUE) ->  | CQ16: =IF(L16=$CQ$8,IF(AND(#REF!<=CR16,#REF!<>"",#REF!<>"",#REF!<=0.2),"CORRECTO","ERROR"),"") ->  | CR16: =VLOOKUP(#REF!,Hoja1!$AF$5:$AH$5390,3,TRUE) ->  | CS16: =IF(L16=$CS$8, IF(AND(#REF!="Punto - Punto",#REF!<=CT16,#REF!<>"",#REF!<>"",#REF!<=0.2),"CORRECTO", IF(AND(#REF!="Punto - Multipunto",#REF!<=CU16,#REF!<>"",#REF!<>"",#REF!<=1),"CORRECTO","ERROR")),"") ->  | CT16: =VLOOKUP(#REF!,Hoja1!$AF$5:$AH$5390,3,TRUE) ->  | CU16: =VLOOKUP(#REF!,Hoja1!$AJ$5:$AL$5390,3,TRUE) ->  | CV16: =IF(L16=$CV$8,IF(AND(#REF!<=CW16,#REF!<>"",#REF!<>"",#REF!<=1),"CORRECTO","ERROR"),"") ->  | CW16: =VLOOKUP(#REF!,Hoja1!$AJ$5:$AL$5390,3,TRUE) ->  | CX16: =IF(L16=$CX$8,IF(AND(#REF!<=CY16,#REF!<>"",#REF!<>""),"CORRECTO","ERROR"),"") ->  | CY16: =VLOOKUP(#REF!,Hoja1!$AB$5:$AD$5390,3,TRUE) ->  | CZ16: =IF(#REF!<=#REF!,"CORRECTO","ERROR") ->  | DE16: =CONCATENATE("0",#REF!,"°",IF(#REF!<10,CONCATENATE("0",#REF!),#REF!),"'",IF(ROUND(#REF!,0)=#REF!,IF(#REF!<10,CONCATENATE("0",#REF!,".00"),CONCATENATE(#REF!,".00")),IF(ROUND(#REF!*10,0)=#REF!*10,IF(#REF!<10,CONCATENATE("0",#REF!,"0"),CONCATENATE(#REF!,"0")),IF(#REF!<10,CONCATENATE("0",#REF!),#REF!))),"''",#REF!) ->  | DF16: =CONCATENATE(#REF!,"°",IF(#REF!<10,CONCATENATE("0",#REF!),#REF!),"'",IF(ROUND(#REF!,0)=#REF!,IF(#REF!<10,CONCATENATE("0",#REF!,".00"),CONCATENATE(#REF!,".00")),IF(ROUND(#REF!*10,0)=#REF!*10,IF(#REF!<10,CONCATENATE("0",#REF!,"0"),CONCATENATE(#REF!,"0")),IF(#REF!<10,CONCATENATE("0",#REF!),#REF!))),"''",#REF!) -> 
J17: =CONCATENATE(#REF!,"-","TX") ->  | K17: =CONCATENATE(#REF!,"-","RX") ->  | S17: I | U17: =IF(T17="","",VLOOKUP($T17,'FO-DRE-01'!$A$7:$Q$10002,2,FALSE)) ->  | V17: =IF(T17="","",VLOOKUP($T17,'FO-DRE-01'!$A$7:$Q$10002,3,FALSE)) ->  | W17: =IF(T17="","",VLOOKUP($T17,'FO-DRE-01'!$A$7:$Q$10002,4,FALSE)) ->  | X17: =IF(T17="","",VLOOKUP($T17,'FO-DRE-01'!$A$7:$Q$10002,6,FALSE)) ->  | Y17: =IF(T17="","",VLOOKUP($T17,'FO-DRE-01'!$A$7:$Q$10002,7,FALSE)) ->  | Z17: =IF(T17="","",VLOOKUP($T17,'FO-DRE-01'!$A$7:$Q$10002,8,FALSE)) ->  | AA17: =IF(T17="","",VLOOKUP($T17,'FO-DRE-01'!$A$7:$Q$10002,10,FALSE)) ->  | AB17: =IF(T17="","",VLOOKUP($T17,'FO-DRE-01'!$A$7:$Q$10002,11,FALSE)) ->  | AC17: =IF(T17="","",VLOOKUP($T17,'FO-DRE-01'!$A$7:$Q$10002,12,FALSE)) ->  | AD17: =IF(T17="","",VLOOKUP($T17,'FO-DRE-01'!$A$7:$Q$10002,13,FALSE)) ->  | AE17: =IF(T17="","",VLOOKUP($T17,'FO-DRE-01'!$A$7:$Q$10002,14,FALSE)) ->  | AF17: =IF(T17="","",VLOOKUP($T17,'FO-DRE-01'!$A$7:$Q$10002,15,FALSE)) ->  | AG17: =IF(T17="","",VLOOKUP($T17,'FO-DRE-01'!$A$7:$Q$10002,16,FALSE)) ->  | AH17: =IF(T17="","",VLOOKUP($T17,'FO-DRE-01'!$A$7:$Q$10002,17,FALSE)) ->  | AI17: W | BA17: 5000 | BD17: 9 | BF17: F/D | BG17: =IF(OR(F17="",AL17="",AT17=""),"F/D",IF(BR17>BI17,"SI","")) -> F/D | CA17: =VLOOKUP(AT17,Hoja1!$X$5:$Z$5390,3,TRUE) -> 1 | CC17: =VLOOKUP(AT17,Hoja1!$AF$5:$AH$5390,3,TRUE) -> 0.05 | CD17: =IF(L17=$CD$8, IF(AND(#REF!="Punto - Punto",AL17<=CE17,AL17<>"",AT17<>"",BQ17<=0.2),"CORRECTO", IF(AND(#REF!="Punto - Multipunto",AL17<=CF17,AL17<>"",AT17<>"",BQ17<=1),"CORRECTO","ERROR")),"") ->  | CE17: =VLOOKUP(AT17,Hoja1!$AF$5:$AH$5390,3,TRUE) -> 0.05 | CF17: =VLOOKUP(AT17,Hoja1!$AJ$5:$AL$5390,3,TRUE) -> 0.25 | CH17: =VLOOKUP(AT17,Hoja1!$AJ$5:$AL$5390,3,TRUE) -> 0.25 | CJ17: =VLOOKUP(AT17,Hoja1!$AB$5:$AD$5390,3,TRUE) -> 1 | CK17: CORRECTO | CL17: 0 | CN17: =IF(L17=$CN$8,IF(AND(#REF!<=0.25,#REF!<>""),"CORRECTO","ERROR"),"") ->  | CO17: =IF(L17=$CO$8,IF(AND(#REF!<=CP17,#REF!<>"",#REF!<>""),"CORRECTO","ERROR"),"") ->  | CP17: =VLOOKUP(#REF!,Hoja1!$X$5:$Z$5390,3,TRUE) ->  | CQ17: =IF(L17=$CQ$8,IF(AND(#REF!<=CR17,#REF!<>"",#REF!<>"",#REF!<=0.2),"CORRECTO","ERROR"),"") ->  | CR17: =VLOOKUP(#REF!,Hoja1!$AF$5:$AH$5390,3,TRUE) ->  | CS17: =IF(L17=$CS$8, IF(AND(#REF!="Punto - Punto",#REF!<=CT17,#REF!<>"",#REF!<>"",#REF!<=0.2),"CORRECTO", IF(AND(#REF!="Punto - Multipunto",#REF!<=CU17,#REF!<>"",#REF!<>"",#REF!<=1),"CORRECTO","ERROR")),"") ->  | CT17: =VLOOKUP(#REF!,Hoja1!$AF$5:$AH$5390,3,TRUE) ->  | CU17: =VLOOKUP(#REF!,Hoja1!$AJ$5:$AL$5390,3,TRUE) ->  | CV17: =IF(L17=$CV$8,IF(AND(#REF!<=CW17,#REF!<>"",#REF!<>"",#REF!<=1),"CORRECTO","ERROR"),"") ->  | CW17: =VLOOKUP(#REF!,Hoja1!$AJ$5:$AL$5390,3,TRUE) ->  | CX17: =IF(L17=$CX$8,IF(AND(#REF!<=CY17,#REF!<>"",#REF!<>""),"CORRECTO","ERROR"),"") ->  | CY17: =VLOOKUP(#REF!,Hoja1!$AB$5:$AD$5390,3,TRUE) ->  | CZ17: =IF(#REF!<=#REF!,"CORRECTO","ERROR") ->  | DE17: =CONCATENATE("0",#REF!,"°",IF(#REF!<10,CONCATENATE("0",#REF!),#REF!),"'",IF(ROUND(#REF!,0)=#REF!,IF(#REF!<10,CONCATENATE("0",#REF!,".00"),CONCATENATE(#REF!,".00")),IF(ROUND(#REF!*10,0)=#REF!*10,IF(#REF!<10,CONCATENATE("0",#REF!,"0"),CONCATENATE(#REF!,"0")),IF(#REF!<10,CONCATENATE("0",#REF!),#REF!))),"''",#REF!) ->  | DF17: =CONCATENATE(#REF!,"°",IF(#REF!<10,CONCATENATE("0",#REF!),#REF!),"'",IF(ROUND(#REF!,0)=#REF!,IF(#REF!<10,CONCATENATE("0",#REF!,".00"),CONCATENATE(#REF!,".00")),IF(ROUND(#REF!*10,0)=#REF!*10,IF(#REF!<10,CONCATENATE("0",#REF!,"0"),CONCATENATE(#REF!,"0")),IF(#REF!<10,CONCATENATE("0",#REF!),#REF!))),"''",#REF!) -> 
J18: =CONCATENATE(#REF!,"-","TX") ->  | K18: =CONCATENATE(#REF!,"-","RX") ->  | S18: I | U18: =IF(T18="","",VLOOKUP($T18,'FO-DRE-01'!$A$7:$Q$10002,2,FALSE)) ->  | V18: =IF(T18="","",VLOOKUP($T18,'FO-DRE-01'!$A$7:$Q$10002,3,FALSE)) ->  | W18: =IF(T18="","",VLOOKUP($T18,'FO-DRE-01'!$A$7:$Q$10002,4,FALSE)) ->  | X18: =IF(T18="","",VLOOKUP($T18,'FO-DRE-01'!$A$7:$Q$10002,6,FALSE)) ->  | Y18: =IF(T18="","",VLOOKUP($T18,'FO-DRE-01'!$A$7:$Q$10002,7,FALSE)) ->  | Z18: =IF(T18="","",VLOOKUP($T18,'FO-DRE-01'!$A$7:$Q$10002,8,FALSE)) ->  | AA18: =IF(T18="","",VLOOKUP($T18,'FO-DRE-01'!$A$7:$Q$10002,10,FALSE)) ->  | AB18: =IF(T18="","",VLOOKUP($T18,'FO-DRE-01'!$A$7:$Q$10002,11,FALSE)) ->  | AC18: =IF(T18="","",VLOOKUP($T18,'FO-DRE-01'!$A$7:$Q$10002,12,FALSE)) ->  | AD18: =IF(T18="","",VLOOKUP($T18,'FO-DRE-01'!$A$7:$Q$10002,13,FALSE)) ->  | AE18: =IF(T18="","",VLOOKUP($T18,'FO-DRE-01'!$A$7:$Q$10002,14,FALSE)) ->  | AF18: =IF(T18="","",VLOOKUP($T18,'FO-DRE-01'!$A$7:$Q$10002,15,FALSE)) ->  | AG18: =IF(T18="","",VLOOKUP($T18,'FO-DRE-01'!$A$7:$Q$10002,16,FALSE)) ->  | AH18: =IF(T18="","",VLOOKUP($T18,'FO-DRE-01'!$A$7:$Q$10002,17,FALSE)) ->  | AI18: W | BA18: 5000 | BD18: 10 | BF18: F/D | BG18: =IF(OR(F19="",AL18="",AT18=""),"F/D",IF(BR18>BI18,"SI","")) -> F/D | CA18: =VLOOKUP(AT18,Hoja1!$X$5:$Z$5390,3,TRUE) -> 1 | CC18: =VLOOKUP(AT18,Hoja1!$AF$5:$AH$5390,3,TRUE) -> 0.05 | CD18: =IF(L18=$CD$8, IF(AND(#REF!="Punto - Punto",AL18<=CE18,AL18<>"",AT18<>"",BQ18<=0.2),"CORRECTO", IF(AND(#REF!="Punto - Multipunto",AL18<=CF18,AL18<>"",AT18<>"",BQ18<=1),"CORRECTO","ERROR")),"") ->  | CE18: =VLOOKUP(AT18,Hoja1!$AF$5:$AH$5390,3,TRUE) -> 0.05 | CF18: =VLOOKUP(AT18,Hoja1!$AJ$5:$AL$5390,3,TRUE) -> 0.25 | CH18: =VLOOKUP(AT18,Hoja1!$AJ$5:$AL$5390,3,TRUE) -> 0.25 | CJ18: =VLOOKUP(AT18,Hoja1!$AB$5:$AD$5390,3,TRUE) -> 1 | CK18: CORRECTO | CL18: 0 | CN18: =IF(L18=$CN$8,IF(AND(#REF!<=0.25,#REF!<>""),"CORRECTO","ERROR"),"") ->  | CO18: =IF(L18=$CO$8,IF(AND(#REF!<=CP18,#REF!<>"",#REF!<>""),"CORRECTO","ERROR"),"") ->  | CP18: =VLOOKUP(#REF!,Hoja1!$X$5:$Z$5390,3,TRUE) ->  | CQ18: =IF(L18=$CQ$8,IF(AND(#REF!<=CR18,#REF!<>"",#REF!<>"",#REF!<=0.2),"CORRECTO","ERROR"),"") ->  | CR18: =VLOOKUP(#REF!,Hoja1!$AF$5:$AH$5390,3,TRUE) ->  | CS18: =IF(L18=$CS$8, IF(AND(#REF!="Punto - Punto",#REF!<=CT18,#REF!<>"",#REF!<>"",#REF!<=0.2),"CORRECTO", IF(AND(#REF!="Punto - Multipunto",#REF!<=CU18,#REF!<>"",#REF!<>"",#REF!<=1),"CORRECTO","ERROR")),"") ->  | CT18: =VLOOKUP(#REF!,Hoja1!$AF$5:$AH$5390,3,TRUE) ->  | CU18: =VLOOKUP(#REF!,Hoja1!$AJ$5:$AL$5390,3,TRUE) ->  | CV18: =IF(L18=$CV$8,IF(AND(#REF!<=CW18,#REF!<>"",#REF!<>"",#REF!<=1),"CORRECTO","ERROR"),"") ->  | CW18: =VLOOKUP(#REF!,Hoja1!$AJ$5:$AL$5390,3,TRUE) ->  | CX18: =IF(L18=$CX$8,IF(AND(#REF!<=CY18,#REF!<>"",#REF!<>""),"CORRECTO","ERROR"),"") ->  | CY18: =VLOOKUP(#REF!,Hoja1!$AB$5:$AD$5390,3,TRUE) ->  | CZ18: =IF(#REF!<=#REF!,"CORRECTO","ERROR") ->  | DE18: =CONCATENATE("0",#REF!,"°",IF(#REF!<10,CONCATENATE("0",#REF!),#REF!),"'",IF(ROUND(#REF!,0)=#REF!,IF(#REF!<10,CONCATENATE("0",#REF!,".00"),CONCATENATE(#REF!,".00")),IF(ROUND(#REF!*10,0)=#REF!*10,IF(#REF!<10,CONCATENATE("0",#REF!,"0"),CONCATENATE(#REF!,"0")),IF(#REF!<10,CONCATENATE("0",#REF!),#REF!))),"''",#REF!) ->  | DF18: =CONCATENATE(#REF!,"°",IF(#REF!<10,CONCATENATE("0",#REF!),#REF!),"'",IF(ROUND(#REF!,0)=#REF!,IF(#REF!<10,CONCATENATE("0",#REF!,".00"),CONCATENATE(#REF!,".00")),IF(ROUND(#REF!*10,0)=#REF!*10,IF(#REF!<10,CONCATENATE("0",#REF!,"0"),CONCATENATE(#REF!,"0")),IF(#REF!<10,CONCATENATE("0",#REF!),#REF!))),"''",#REF!) -> 
S19: I | U19: =IF(T19="","",VLOOKUP($T19,'FO-DRE-01'!$A$7:$Q$10002,2,FALSE)) ->  | V19: =IF(T19="","",VLOOKUP($T19,'FO-DRE-01'!$A$7:$Q$10002,3,FALSE)) ->  | W19: =IF(T19="","",VLOOKUP($T19,'FO-DRE-01'!$A$7:$Q$10002,4,FALSE)) ->  | X19: =IF(T19="","",VLOOKUP($T19,'FO-DRE-01'!$A$7:$Q$10002,6,FALSE)) ->  | Y19: =IF(T19="","",VLOOKUP($T19,'FO-DRE-01'!$A$7:$Q$10002,7,FALSE)) ->  | Z19: =IF(T19="","",VLOOKUP($T19,'FO-DRE-01'!$A$7:$Q$10002,8,FALSE)) ->  | AA19: =IF(T19="","",VLOOKUP($T19,'FO-DRE-01'!$A$7:$Q$10002,10,FALSE)) ->  | AB19: =IF(T19="","",VLOOKUP($T19,'FO-DRE-01'!$A$7:$Q$10002,11,FALSE)) ->  | AC19: =IF(T19="","",VLOOKUP($T19,'FO-DRE-01'!$A$7:$Q$10002,12,FALSE)) ->  | AD19: =IF(T19="","",VLOOKUP($T19,'FO-DRE-01'!$A$7:$Q$10002,13,FALSE)) ->  | AE19: =IF(T19="","",VLOOKUP($T19,'FO-DRE-01'!$A$7:$Q$10002,14,FALSE)) ->  | AF19: =IF(T19="","",VLOOKUP($T19,'FO-DRE-01'!$A$7:$Q$10002,15,FALSE)) ->  | AG19: =IF(T19="","",VLOOKUP($T19,'FO-DRE-01'!$A$7:$Q$10002,16,FALSE)) ->  | AH19: =IF(T19="","",VLOOKUP($T19,'FO-DRE-01'!$A$7:$Q$10002,17,FALSE)) ->  | AY19: =CONCATENATE("0",AB10,"°",IF(AC10<10,CONCATENATE("0",AC10),AC10),"'",IF(ROUND(AD10,0)=AD10,IF(AD10<10,CONCATENATE("0",AD10,".00"),CONCATENATE(AD10,".00")),IF(ROUND(AD10*10,0)=AD10*10,IF(AD10<10,CONCATENATE("0",AD10,"0"),CONCATENATE(AD10,"0")),IF(AD10<10,CONCATENATE("0",AD10),AD10))),"''",AE10) -> 00°03'14.20''S | AZ19: =CONCATENATE(AF10,"°",IF(AG10<10,CONCATENATE("0",AG10),AG10),"'",IF(ROUND(AH10,0)=AH10,IF(AH10<10,CONCATENATE("0",AH10,".00"),CONCATENATE(AH10,".00")),IF(ROUND(AH10*10,0)=AH10*10,IF(AH10<10,CONCATENATE("0",AH10,"0"),CONCATENATE(AH10,"0")),IF(AH10<10,CONCATENATE("0",AH10),AH10))),"''",AI10) -> 79°14'15.30''W | BA19: =IF(L11="902 - 928",900,IF(L11="2400 - 2483.5",2400,5000)) -> 5000 | BD19: 11 | BF19: F/D | BG19: =IF(OR(F19="",AL19="",AT19=""),"F/D",IF(BR19>BI19,"SI","")) -> F/D | BY19: =IF(L11=$BY$8,IF(AND(AL10<=0.25,AL10<>""),"CORRECTO","ERROR"),"") ->  | BZ19: =IF(L11=$BZ$8,IF(AND(AL10<=CA19,AL10<>"",AT10<>""),"CORRECTO","ERROR"),"") ->  | CA19: =VLOOKUP(AT10,Hoja1!$X$5:$Z$5390,3,TRUE) -> 1 | CB19: =IF(L11=$CB$8,IF(AND(AL10<=CC19,AL10<>"",AT10<>"",BQ19<=0.2),"CORRECTO","ERROR"),"") ->  | CC19: =VLOOKUP(AT10,Hoja1!$AF$5:$AH$5390,3,TRUE) -> 0.05 | CD19: =IF(L11=$CD$8, IF(AND(#REF!="Punto - Punto",AL10<=CE19,AL10<>"",AT10<>"",BQ19<=0.2),"CORRECTO", IF(AND(#REF!="Punto - Multipunto",AL10<=CF19,AL10<>"",AT10<>"",BQ19<=1),"CORRECTO","ERROR")),"") ->  | CE19: =VLOOKUP(AT10,Hoja1!$AF$5:$AH$5390,3,TRUE) -> 0.05 | CF19: =VLOOKUP(AT10,Hoja1!$AJ$5:$AL$5390,3,TRUE) -> 0.25 | CG19: =IF(L11=$CG$8,IF(AND(AL10<=CH19,AL10<>"",AT10<>"",BQ19<=1),"CORRECTO","ERROR"),"") ->  | CH19: =VLOOKUP(AT10,Hoja1!$AJ$5:$AL$5390,3,TRUE) -> 0.25 | CI19: =IF(L11=$CI$8,IF(AND(AL10<=CJ19,AL10<>"",AT10<>""),"CORRECTO","ERROR"),"") ->  | CJ19: =VLOOKUP(AT10,Hoja1!$AB$5:$AD$5390,3,TRUE) -> 1 | CK19: =IF(AX10<=W10,"CORRECTO","ERROR") -> CORRECTO | CL19: 0 | CN19: =IF(L11=$CN$8,IF(AND(#REF!<=0.25,#REF!<>""),"CORRECTO","ERROR"),"") ->  | CO19: =IF(L11=$CO$8,IF(AND(#REF!<=CP19,#REF!<>"",#REF!<>""),"CORRECTO","ERROR"),"") ->  | CP19: =VLOOKUP(#REF!,Hoja1!$X$5:$Z$5390,3,TRUE) ->  | CQ19: =IF(L11=$CQ$8,IF(AND(#REF!<=CR19,#REF!<>"",#REF!<>"",#REF!<=0.2),"CORRECTO","ERROR"),"") ->  | CR19: =VLOOKUP(#REF!,Hoja1!$AF$5:$AH$5390,3,TRUE) ->  | CS19: =IF(L11=$CS$8, IF(AND(#REF!="Punto - Punto",#REF!<=CT19,#REF!<>"",#REF!<>"",#REF!<=0.2),"CORRECTO", IF(AND(#REF!="Punto - Multipunto",#REF!<=CU19,#REF!<>"",#REF!<>"",#REF!<=1),"CORRECTO","ERROR")),"") ->  | CT19: =VLOOKUP(#REF!,Hoja1!$AF$5:$AH$5390,3,TRUE) ->  | CU19: =VLOOKUP(#REF!,Hoja1!$AJ$5:$AL$5390,3,TRUE) ->  | CV19: =IF(L11=$CV$8,IF(AND(#REF!<=CW19,#REF!<>"",#REF!<>"",#REF!<=1),"CORRECTO","ERROR"),"") ->  | CW19: =VLOOKUP(#REF!,Hoja1!$AJ$5:$AL$5390,3,TRUE) ->  | CX19: =IF(L11=$CX$8,IF(AND(#REF!<=CY19,#REF!<>"",#REF!<>""),"CORRECTO","ERROR"),"") ->  | CY19: =VLOOKUP(#REF!,Hoja1!$AB$5:$AD$5390,3,TRUE) ->  | CZ19: =IF(#REF!<=#REF!,"CORRECTO","ERROR") ->  | DC19: =CONCATENATE("0",AB10,"°",IF(AC10<10,CONCATENATE("0",AC10),AC10),"'",IF(ROUND(AD10,0)=AD10,IF(AD10<10,CONCATENATE("0",AD10,".00"),CONCATENATE(AD10,".00")),IF(ROUND(AD10*10,0)=AD10*10,IF(AD10<10,CONCATENATE("0",AD10,"0"),CONCATENATE(AD10,"0")),IF(AD10<10,CONCATENATE("0",AD10),AD10))),"''",AE10) -> 00°03'14.20''S | DD19: =CONCATENATE(AF10,"°",IF(AG10<10,CONCATENATE("0",AG10),AG10),"'",IF(ROUND(AH10,0)=AH10,IF(AH10<10,CONCATENATE("0",AH10,".00"),CONCATENATE(AH10,".00")),IF(ROUND(AH10*10,0)=AH10*10,IF(AH10<10,CONCATENATE("0",AH10,"0"),CONCATENATE(AH10,"0")),IF(AH10<10,CONCATENATE("0",AH10),AH10))),"''",AI10) -> 79°14'15.30''W | DE19: =CONCATENATE("0",#REF!,"°",IF(#REF!<10,CONCATENATE("0",#REF!),#REF!),"'",IF(ROUND(#REF!,0)=#REF!,IF(#REF!<10,CONCATENATE("0",#REF!,".00"),CONCATENATE(#REF!,".00")),IF(ROUND(#REF!*10,0)=#REF!*10,IF(#REF!<10,CONCATENATE("0",#REF!,"0"),CONCATENATE(#REF!,"0")),IF(#REF!<10,CONCATENATE("0",#REF!),#REF!))),"''",#REF!) ->  | DF19: =CONCATENATE(#REF!,"°",IF(#REF!<10,CONCATENATE("0",#REF!),#REF!),"'",IF(ROUND(#REF!,0)=#REF!,IF(#REF!<10,CONCATENATE("0",#REF!,".00"),CONCATENATE(#REF!,".00")),IF(ROUND(#REF!*10,0)=#REF!*10,IF(#REF!<10,CONCATENATE("0",#REF!,"0"),CONCATENATE(#REF!,"0")),IF(#REF!<10,CONCATENATE("0",#REF!),#REF!))),"''",#REF!) -> 
J20: =CONCATENATE(#REF!,"-","TX") ->  | K20: =CONCATENATE(#REF!,"-","RX") ->  | S20: I | U20: =IF(T20="","",VLOOKUP($T20,'FO-DRE-01'!$A$7:$Q$10002,2,FALSE)) ->  | V20: =IF(T20="","",VLOOKUP($T20,'FO-DRE-01'!$A$7:$Q$10002,3,FALSE)) ->  | W20: =IF(T20="","",VLOOKUP($T20,'FO-DRE-01'!$A$7:$Q$10002,4,FALSE)) ->  | X20: =IF(T20="","",VLOOKUP($T20,'FO-DRE-01'!$A$7:$Q$10002,6,FALSE)) ->  | Y20: =IF(T20="","",VLOOKUP($T20,'FO-DRE-01'!$A$7:$Q$10002,7,FALSE)) ->  | Z20: =IF(T20="","",VLOOKUP($T20,'FO-DRE-01'!$A$7:$Q$10002,8,FALSE)) ->  | AA20: =IF(T20="","",VLOOKUP($T20,'FO-DRE-01'!$A$7:$Q$10002,10,FALSE)) ->  | AB20: =IF(T20="","",VLOOKUP($T20,'FO-DRE-01'!$A$7:$Q$10002,11,FALSE)) ->  | AC20: =IF(T20="","",VLOOKUP($T20,'FO-DRE-01'!$A$7:$Q$10002,12,FALSE)) ->  | AD20: =IF(T20="","",VLOOKUP($T20,'FO-DRE-01'!$A$7:$Q$10002,13,FALSE)) ->  | AE20: =IF(T20="","",VLOOKUP($T20,'FO-DRE-01'!$A$7:$Q$10002,14,FALSE)) ->  | AF20: =IF(T20="","",VLOOKUP($T20,'FO-DRE-01'!$A$7:$Q$10002,15,FALSE)) ->  | AG20: =IF(T20="","",VLOOKUP($T20,'FO-DRE-01'!$A$7:$Q$10002,16,FALSE)) ->  | AH20: =IF(T20="","",VLOOKUP($T20,'FO-DRE-01'!$A$7:$Q$10002,17,FALSE)) ->  | AI20: W | AY20: =CONCATENATE("0",AB20,"°",IF(AC20<10,CONCATENATE("0",AC20),AC20),"'",IF(ROUND(AD20,0)=AD20,IF(AD20<10,CONCATENATE("0",AD20,".00"),CONCATENATE(AD20,".00")),IF(ROUND(AD20*10,0)=AD20*10,IF(AD20<10,CONCATENATE("0",AD20,"0"),CONCATENATE(AD20,"0")),IF(AD20<10,CONCATENATE("0",AD20),AD20))),"''",AE20) ->  | AZ20: =CONCATENATE(AF20,"°",IF(AG20<10,CONCATENATE("0",AG20),AG20),"'",IF(ROUND(AH20,0)=AH20,IF(AH20<10,CONCATENATE("0",AH20,".00"),CONCATENATE(AH20,".00")),IF(ROUND(AH20*10,0)=AH20*10,IF(AH20<10,CONCATENATE("0",AH20,"0"),CONCATENATE(AH20,"0")),IF(AH20<10,CONCATENATE("0",AH20),AH20))),"''",AI20) ->  | BA20: =IF(L20="902 - 928",900,IF(L20="2400 - 2483.5",2400,5000)) -> 5000 | BD20: 12 | BF20: F/D | BG20: =IF(OR(F21="",AL20="",AT20=""),"F/D",IF(BR20>BI20,"SI","")) -> F/D | BY20: =IF(L20=$BY$8,IF(AND(AL20<=0.25,AL20<>""),"CORRECTO","ERROR"),"") ->  | BZ20: =IF(L20=$BZ$8,IF(AND(AL20<=CA20,AL20<>"",AT20<>""),"CORRECTO","ERROR"),"") ->  | CA20: =VLOOKUP(AT20,Hoja1!$X$5:$Z$5390,3,TRUE) -> 1 | CB20: =IF(L20=$CB$8,IF(AND(AL20<=CC20,AL20<>"",AT20<>"",BQ20<=0.2),"CORRECTO","ERROR"),"") ->  | CC20: =VLOOKUP(AT20,Hoja1!$AF$5:$AH$5390,3,TRUE) -> 0.05 | CD20: =IF(L20=$CD$8, IF(AND(#REF!="Punto - Punto",AL20<=CE20,AL20<>"",AT20<>"",BQ20<=0.2),"CORRECTO", IF(AND(#REF!="Punto - Multipunto",AL20<=CF20,AL20<>"",AT20<>"",BQ20<=1),"CORRECTO","ERROR")),"") ->  | CE20: =VLOOKUP(AT20,Hoja1!$AF$5:$AH$5390,3,TRUE) -> 0.05 | CF20: =VLOOKUP(AT20,Hoja1!$AJ$5:$AL$5390,3,TRUE) -> 0.25 | CG20: =IF(L20=$CG$8,IF(AND(AL20<=CH20,AL20<>"",AT20<>"",BQ20<=1),"CORRECTO","ERROR"),"") ->  | CH20: =VLOOKUP(AT20,Hoja1!$AJ$5:$AL$5390,3,TRUE) -> 0.25 | CI20: =IF(L20=$CI$8,IF(AND(AL20<=CJ20,AL20<>"",AT20<>""),"CORRECTO","ERROR"),"") ->  | CJ20: =VLOOKUP(AT20,Hoja1!$AB$5:$AD$5390,3,TRUE) -> 1 | CK20: =IF(AX20<=W20,"CORRECTO","ERROR") -> CORRECTO | CL20: 0 | CN20: =IF(L20=$CN$8,IF(AND(#REF!<=0.25,#REF!<>""),"CORRECTO","ERROR"),"") ->  | CO20: =IF(L20=$CO$8,IF(AND(#REF!<=CP20,#REF!<>"",#REF!<>""),"CORRECTO","ERROR"),"") ->  | CP20: =VLOOKUP(#REF!,Hoja1!$X$5:$Z$5390,3,TRUE) ->  | CQ20: =IF(L20=$CQ$8,IF(AND(#REF!<=CR20,#REF!<>"",#REF!<>"",#REF!<=0.2),"CORRECTO","ERROR"),"") ->  | CR20: =VLOOKUP(#REF!,Hoja1!$AF$5:$AH$5390,3,TRUE) ->  | CS20: =IF(L20=$CS$8, IF(AND(#REF!="Punto - Punto",#REF!<=CT20,#REF!<>"",#REF!<>"",#REF!<=0.2),"CORRECTO", IF(AND(#REF!="Punto - Multipunto",#REF!<=CU20,#REF!<>"",#REF!<>"",#REF!<=1),"CORRECTO","ERROR")),"") ->  | CT20: =VLOOKUP(#REF!,Hoja1!$AF$5:$AH$5390,3,TRUE) ->  | CU20: =VLOOKUP(#REF!,Hoja1!$AJ$5:$AL$5390,3,TRUE) ->  | CV20: =IF(L20=$CV$8,IF(AND(#REF!<=CW20,#REF!<>"",#REF!<>"",#REF!<=1),"CORRECTO","ERROR"),"") ->  | CW20: =VLOOKUP(#REF!,Hoja1!$AJ$5:$AL$5390,3,TRUE) ->  | CX20: =IF(L20=$CX$8,IF(AND(#REF!<=CY20,#REF!<>"",#REF!<>""),"CORRECTO","ERROR"),"") ->  | CY20: =VLOOKUP(#REF!,Hoja1!$AB$5:$AD$5390,3,TRUE) ->  | CZ20: =IF(#REF!<=#REF!,"CORRECTO","ERROR") ->  | DC20: =CONCATENATE("0",AB20,"°",IF(AC20<10,CONCATENATE("0",AC20),AC20),"'",IF(ROUND(AD20,0)=AD20,IF(AD20<10,CONCATENATE("0",AD20,".00"),CONCATENATE(AD20,".00")),IF(ROUND(AD20*10,0)=AD20*10,IF(AD20<10,CONCATENATE("0",AD20,"0"),CONCATENATE(AD20,"0")),IF(AD20<10,CONCATENATE("0",AD20),AD20))),"''",AE20) ->  | DD20: =CONCATENATE(AF20,"°",IF(AG20<10,CONCATENATE("0",AG20),AG20),"'",IF(ROUND(AH20,0)=AH20,IF(AH20<10,CONCATENATE("0",AH20,".00"),CONCATENATE(AH20,".00")),IF(ROUND(AH20*10,0)=AH20*10,IF(AH20<10,CONCATENATE("0",AH20,"0"),CONCATENATE(AH20,"0")),IF(AH20<10,CONCATENATE("0",AH20),AH20))),"''",AI20) ->  | DE20: =CONCATENATE("0",#REF!,"°",IF(#REF!<10,CONCATENATE("0",#REF!),#REF!),"'",IF(ROUND(#REF!,0)=#REF!,IF(#REF!<10,CONCATENATE("0",#REF!,".00"),CONCATENATE(#REF!,".00")),IF(ROUND(#REF!*10,0)=#REF!*10,IF(#REF!<10,CONCATENATE("0",#REF!,"0"),CONCATENATE(#REF!,"0")),IF(#REF!<10,CONCATENATE("0",#REF!),#REF!))),"''",#REF!) ->  | DF20: =CONCATENATE(#REF!,"°",IF(#REF!<10,CONCATENATE("0",#REF!),#REF!),"'",IF(ROUND(#REF!,0)=#REF!,IF(#REF!<10,CONCATENATE("0",#REF!,".00"),CONCATENATE(#REF!,".00")),IF(ROUND(#REF!*10,0)=#REF!*10,IF(#REF!<10,CONCATENATE("0",#REF!,"0"),CONCATENATE(#REF!,"0")),IF(#REF!<10,CONCATENATE("0",#REF!),#REF!))),"''",#REF!) -> 
J21: =CONCATENATE(#REF!,"-","TX") ->  | K21: =CONCATENATE(#REF!,"-","RX") ->  | S21: I | U21: =IF(T21="","",VLOOKUP($T21,'FO-DRE-01'!$A$7:$Q$10002,2,FALSE)) ->  | V21: =IF(T21="","",VLOOKUP($T21,'FO-DRE-01'!$A$7:$Q$10002,3,FALSE)) ->  | W21: =IF(T21="","",VLOOKUP($T21,'FO-DRE-01'!$A$7:$Q$10002,4,FALSE)) ->  | X21: =IF(T21="","",VLOOKUP($T21,'FO-DRE-01'!$A$7:$Q$10002,6,FALSE)) ->  | Y21: =IF(T21="","",VLOOKUP($T21,'FO-DRE-01'!$A$7:$Q$10002,7,FALSE)) ->  | Z21: =IF(T21="","",VLOOKUP($T21,'FO-DRE-01'!$A$7:$Q$10002,8,FALSE)) ->  | AA21: =IF(T21="","",VLOOKUP($T21,'FO-DRE-01'!$A$7:$Q$10002,10,FALSE)) ->  | AB21: =IF(T21="","",VLOOKUP($T21,'FO-DRE-01'!$A$7:$Q$10002,11,FALSE)) ->  | AC21: =IF(T21="","",VLOOKUP($T21,'FO-DRE-01'!$A$7:$Q$10002,12,FALSE)) ->  | AD21: =IF(T21="","",VLOOKUP($T21,'FO-DRE-01'!$A$7:$Q$10002,13,FALSE)) ->  | AE21: =IF(T21="","",VLOOKUP($T21,'FO-DRE-01'!$A$7:$Q$10002,14,FALSE)) ->  | AF21: =IF(T21="","",VLOOKUP($T21,'FO-DRE-01'!$A$7:$Q$10002,15,FALSE)) ->  | AG21: =IF(T21="","",VLOOKUP($T21,'FO-DRE-01'!$A$7:$Q$10002,16,FALSE)) ->  | AH21: =IF(T21="","",VLOOKUP($T21,'FO-DRE-01'!$A$7:$Q$10002,17,FALSE)) ->  | AI21: W | BA21: 5000 | BD21: 13 | BF21: F/D | BG21: =IF(OR(F21="",AL21="",AT21=""),"F/D",IF(BR21>BI21,"SI","")) -> F/D | CA21: =VLOOKUP(AT21,Hoja1!$X$5:$Z$5390,3,TRUE) -> 1 | CC21: =VLOOKUP(AT21,Hoja1!$AF$5:$AH$5390,3,TRUE) -> 0.05 | CD21: =IF(L21=$CD$8, IF(AND(#REF!="Punto - Punto",AL21<=CE21,AL21<>"",AT21<>"",BQ21<=0.2),"CORRECTO", IF(AND(#REF!="Punto - Multipunto",AL21<=CF21,AL21<>"",AT21<>"",BQ21<=1),"CORRECTO","ERROR")),"") ->  | CE21: =VLOOKUP(AT21,Hoja1!$AF$5:$AH$5390,3,TRUE) -> 0.05 | CF21: =VLOOKUP(AT21,Hoja1!$AJ$5:$AL$5390,3,TRUE) -> 0.25 | CH21: =VLOOKUP(AT21,Hoja1!$AJ$5:$AL$5390,3,TRUE) -> 0.25 | CJ21: =VLOOKUP(AT21,Hoja1!$AB$5:$AD$5390,3,TRUE) -> 1 | CK21: CORRECTO | CL21: 0 | CN21: =IF(L21=$CN$8,IF(AND(#REF!<=0.25,#REF!<>""),"CORRECTO","ERROR"),"") ->  | CO21: =IF(L21=$CO$8,IF(AND(#REF!<=CP21,#REF!<>"",#REF!<>""),"CORRECTO","ERROR"),"") ->  | CP21: =VLOOKUP(#REF!,Hoja1!$X$5:$Z$5390,3,TRUE) ->  | CQ21: =IF(L21=$CQ$8,IF(AND(#REF!<=CR21,#REF!<>"",#REF!<>"",#REF!<=0.2),"CORRECTO","ERROR"),"") ->  | CR21: =VLOOKUP(#REF!,Hoja1!$AF$5:$AH$5390,3,TRUE) ->  | CS21: =IF(L21=$CS$8, IF(AND(#REF!="Punto - Punto",#REF!<=CT21,#REF!<>"",#REF!<>"",#REF!<=0.2),"CORRECTO", IF(AND(#REF!="Punto - Multipunto",#REF!<=CU21,#REF!<>"",#REF!<>"",#REF!<=1),"CORRECTO","ERROR")),"") ->  | CT21: =VLOOKUP(#REF!,Hoja1!$AF$5:$AH$5390,3,TRUE) ->  | CU21: =VLOOKUP(#REF!,Hoja1!$AJ$5:$AL$5390,3,TRUE) ->  | CV21: =IF(L21=$CV$8,IF(AND(#REF!<=CW21,#REF!<>"",#REF!<>"",#REF!<=1),"CORRECTO","ERROR"),"") ->  | CW21: =VLOOKUP(#REF!,Hoja1!$AJ$5:$AL$5390,3,TRUE) ->  | CX21: =IF(L21=$CX$8,IF(AND(#REF!<=CY21,#REF!<>"",#REF!<>""),"CORRECTO","ERROR"),"") ->  | CY21: =VLOOKUP(#REF!,Hoja1!$AB$5:$AD$5390,3,TRUE) ->  | CZ21: =IF(#REF!<=#REF!,"CORRECTO","ERROR") ->  | DE21: =CONCATENATE("0",#REF!,"°",IF(#REF!<10,CONCATENATE("0",#REF!),#REF!),"'",IF(ROUND(#REF!,0)=#REF!,IF(#REF!<10,CONCATENATE("0",#REF!,".00"),CONCATENATE(#REF!,".00")),IF(ROUND(#REF!*10,0)=#REF!*10,IF(#REF!<10,CONCATENATE("0",#REF!,"0"),CONCATENATE(#REF!,"0")),IF(#REF!<10,CONCATENATE("0",#REF!),#REF!))),"''",#REF!) ->  | DF21: =CONCATENATE(#REF!,"°",IF(#REF!<10,CONCATENATE("0",#REF!),#REF!),"'",IF(ROUND(#REF!,0)=#REF!,IF(#REF!<10,CONCATENATE("0",#REF!,".00"),CONCATENATE(#REF!,".00")),IF(ROUND(#REF!*10,0)=#REF!*10,IF(#REF!<10,CONCATENATE("0",#REF!,"0"),CONCATENATE(#REF!,"0")),IF(#REF!<10,CONCATENATE("0",#REF!),#REF!))),"''",#REF!) -> 
J22: =CONCATENATE(#REF!,"-","TX") ->  | K22: =CONCATENATE(#REF!,"-","RX") ->  | S22: I | U22: =IF(T22="","",VLOOKUP($T22,'FO-DRE-01'!$A$7:$Q$10002,2,FALSE)) ->  | V22: =IF(T22="","",VLOOKUP($T22,'FO-DRE-01'!$A$7:$Q$10002,3,FALSE)) ->  | W22: =IF(T22="","",VLOOKUP($T22,'FO-DRE-01'!$A$7:$Q$10002,4,FALSE)) ->  | X22: =IF(T22="","",VLOOKUP($T22,'FO-DRE-01'!$A$7:$Q$10002,6,FALSE)) ->  | Y22: =IF(T22="","",VLOOKUP($T22,'FO-DRE-01'!$A$7:$Q$10002,7,FALSE)) ->  | Z22: =IF(T22="","",VLOOKUP($T22,'FO-DRE-01'!$A$7:$Q$10002,8,FALSE)) ->  | AA22: =IF(T22="","",VLOOKUP($T22,'FO-DRE-01'!$A$7:$Q$10002,10,FALSE)) ->  | AB22: =IF(T22="","",VLOOKUP($T22,'FO-DRE-01'!$A$7:$Q$10002,11,FALSE)) ->  | AC22: =IF(T22="","",VLOOKUP($T22,'FO-DRE-01'!$A$7:$Q$10002,12,FALSE)) ->  | AD22: =IF(T22="","",VLOOKUP($T22,'FO-DRE-01'!$A$7:$Q$10002,13,FALSE)) ->  | AE22: =IF(T22="","",VLOOKUP($T22,'FO-DRE-01'!$A$7:$Q$10002,14,FALSE)) ->  | AF22: =IF(T22="","",VLOOKUP($T22,'FO-DRE-01'!$A$7:$Q$10002,15,FALSE)) ->  | AG22: =IF(T22="","",VLOOKUP($T22,'FO-DRE-01'!$A$7:$Q$10002,16,FALSE)) ->  | AH22: =IF(T22="","",VLOOKUP($T22,'FO-DRE-01'!$A$7:$Q$10002,17,FALSE)) ->  | AI22: W | BA22: 5000 | BD22: 14 | BF22: F/D | BG22: =IF(OR(F23="",AL22="",AT22=""),"F/D",IF(BR22>BI22,"SI","")) -> F/D | CA22: =VLOOKUP(AT22,Hoja1!$X$5:$Z$5390,3,TRUE) -> 1 | CC22: =VLOOKUP(AT22,Hoja1!$AF$5:$AH$5390,3,TRUE) -> 0.05 | CD22: =IF(L22=$CD$8, IF(AND(#REF!="Punto - Punto",AL22<=CE22,AL22<>"",AT22<>"",BQ22<=0.2),"CORRECTO", IF(AND(#REF!="Punto - Multipunto",AL22<=CF22,AL22<>"",AT22<>"",BQ22<=1),"CORRECTO","ERROR")),"") ->  | CE22: =VLOOKUP(AT22,Hoja1!$AF$5:$AH$5390,3,TRUE) -> 0.05 | CF22: =VLOOKUP(AT22,Hoja1!$AJ$5:$AL$5390,3,TRUE) -> 0.25 | CH22: =VLOOKUP(AT22,Hoja1!$AJ$5:$AL$5390,3,TRUE) -> 0.25 | CJ22: =VLOOKUP(AT22,Hoja1!$AB$5:$AD$5390,3,TRUE) -> 1 | CK22: CORRECTO | CL22: 0 | CN22: =IF(L22=$CN$8,IF(AND(#REF!<=0.25,#REF!<>""),"CORRECTO","ERROR"),"") ->  | CO22: =IF(L22=$CO$8,IF(AND(#REF!<=CP22,#REF!<>"",#REF!<>""),"CORRECTO","ERROR"),"") ->  | CP22: =VLOOKUP(#REF!,Hoja1!$X$5:$Z$5390,3,TRUE) ->  | CQ22: =IF(L22=$CQ$8,IF(AND(#REF!<=CR22,#REF!<>"",#REF!<>"",#REF!<=0.2),"CORRECTO","ERROR"),"") ->  | CR22: =VLOOKUP(#REF!,Hoja1!$AF$5:$AH$5390,3,TRUE) ->  | CS22: =IF(L22=$CS$8, IF(AND(#REF!="Punto - Punto",#REF!<=CT22,#REF!<>"",#REF!<>"",#REF!<=0.2),"CORRECTO", IF(AND(#REF!="Punto - Multipunto",#REF!<=CU22,#REF!<>"",#REF!<>"",#REF!<=1),"CORRECTO","ERROR")),"") ->  | CT22: =VLOOKUP(#REF!,Hoja1!$AF$5:$AH$5390,3,TRUE) ->  | CU22: =VLOOKUP(#REF!,Hoja1!$AJ$5:$AL$5390,3,TRUE) ->  | CV22: =IF(L22=$CV$8,IF(AND(#REF!<=CW22,#REF!<>"",#REF!<>"",#REF!<=1),"CORRECTO","ERROR"),"") ->  | CW22: =VLOOKUP(#REF!,Hoja1!$AJ$5:$AL$5390,3,TRUE) ->  | CX22: =IF(L22=$CX$8,IF(AND(#REF!<=CY22,#REF!<>"",#REF!<>""),"CORRECTO","ERROR"),"") ->  | CY22: =VLOOKUP(#REF!,Hoja1!$AB$5:$AD$5390,3,TRUE) ->  | CZ22: =IF(#REF!<=#REF!,"CORRECTO","ERROR") ->  | DE22: =CONCATENATE("0",#REF!,"°",IF(#REF!<10,CONCATENATE("0",#REF!),#REF!),"'",IF(ROUND(#REF!,0)=#REF!,IF(#REF!<10,CONCATENATE("0",#REF!,".00"),CONCATENATE(#REF!,".00")),IF(ROUND(#REF!*10,0)=#REF!*10,IF(#REF!<10,CONCATENATE("0",#REF!,"0"),CONCATENATE(#REF!,"0")),IF(#REF!<10,CONCATENATE("0",#REF!),#REF!))),"''",#REF!) ->  | DF22: =CONCATENATE(#REF!,"°",IF(#REF!<10,CONCATENATE("0",#REF!),#REF!),"'",IF(ROUND(#REF!,0)=#REF!,IF(#REF!<10,CONCATENATE("0",#REF!,".00"),CONCATENATE(#REF!,".00")),IF(ROUND(#REF!*10,0)=#REF!*10,IF(#REF!<10,CONCATENATE("0",#REF!,"0"),CONCATENATE(#REF!,"0")),IF(#REF!<10,CONCATENATE("0",#REF!),#REF!))),"''",#REF!) -> 
J23: =CONCATENATE(#REF!,"-","TX") ->  | K23: =CONCATENATE(#REF!,"-","RX") ->  | S23: I | U23: =IF(T23="","",VLOOKUP($T23,'FO-DRE-01'!$A$7:$Q$10002,2,FALSE)) ->  | V23: =IF(T23="","",VLOOKUP($T23,'FO-DRE-01'!$A$7:$Q$10002,3,FALSE)) ->  | W23: =IF(T23="","",VLOOKUP($T23,'FO-DRE-01'!$A$7:$Q$10002,4,FALSE)) ->  | X23: =IF(T23="","",VLOOKUP($T23,'FO-DRE-01'!$A$7:$Q$10002,6,FALSE)) ->  | Y23: =IF(T23="","",VLOOKUP($T23,'FO-DRE-01'!$A$7:$Q$10002,7,FALSE)) ->  | Z23: =IF(T23="","",VLOOKUP($T23,'FO-DRE-01'!$A$7:$Q$10002,8,FALSE)) ->  | AA23: =IF(T23="","",VLOOKUP($T23,'FO-DRE-01'!$A$7:$Q$10002,10,FALSE)) ->  | AB23: =IF(T23="","",VLOOKUP($T23,'FO-DRE-01'!$A$7:$Q$10002,11,FALSE)) ->  | AC23: =IF(T23="","",VLOOKUP($T23,'FO-DRE-01'!$A$7:$Q$10002,12,FALSE)) ->  | AD23: =IF(T23="","",VLOOKUP($T23,'FO-DRE-01'!$A$7:$Q$10002,13,FALSE)) ->  | AE23: =IF(T23="","",VLOOKUP($T23,'FO-DRE-01'!$A$7:$Q$10002,14,FALSE)) ->  | AF23: =IF(T23="","",VLOOKUP($T23,'FO-DRE-01'!$A$7:$Q$10002,15,FALSE)) ->  | AG23: =IF(T23="","",VLOOKUP($T23,'FO-DRE-01'!$A$7:$Q$10002,16,FALSE)) ->  | AH23: =IF(T23="","",VLOOKUP($T23,'FO-DRE-01'!$A$7:$Q$10002,17,FALSE)) ->  | AI23: W | BA23: 5000 | BD23: 15 | BF23: F/D | BG23: =IF(OR(F23="",AL23="",AT23=""),"F/D",IF(BR23>BI23,"SI","")) -> F/D | CA23: =VLOOKUP(AT23,Hoja1!$X$5:$Z$5390,3,TRUE) -> 1 | CC23: =VLOOKUP(AT23,Hoja1!$AF$5:$AH$5390,3,TRUE) -> 0.05 | CD23: =IF(L23=$CD$8, IF(AND(#REF!="Punto - Punto",AL23<=CE23,AL23<>"",AT23<>"",BQ23<=0.2),"CORRECTO", IF(AND(#REF!="Punto - Multipunto",AL23<=CF23,AL23<>"",AT23<>"",BQ23<=1),"CORRECTO","ERROR")),"") ->  | CE23: =VLOOKUP(AT23,Hoja1!$AF$5:$AH$5390,3,TRUE) -> 0.05 | CF23: =VLOOKUP(AT23,Hoja1!$AJ$5:$AL$5390,3,TRUE) -> 0.25 | CH23: =VLOOKUP(AT23,Hoja1!$AJ$5:$AL$5390,3,TRUE) -> 0.25 | CJ23: =VLOOKUP(AT23,Hoja1!$AB$5:$AD$5390,3,TRUE) -> 1 | CK23: CORRECTO | CL23: 0 | CN23: =IF(L23=$CN$8,IF(AND(#REF!<=0.25,#REF!<>""),"CORRECTO","ERROR"),"") ->  | CO23: =IF(L23=$CO$8,IF(AND(#REF!<=CP23,#REF!<>"",#REF!<>""),"CORRECTO","ERROR"),"") ->  | CP23: =VLOOKUP(#REF!,Hoja1!$X$5:$Z$5390,3,TRUE) ->  | CQ23: =IF(L23=$CQ$8,IF(AND(#REF!<=CR23,#REF!<>"",#REF!<>"",#REF!<=0.2),"CORRECTO","ERROR"),"") ->  | CR23: =VLOOKUP(#REF!,Hoja1!$AF$5:$AH$5390,3,TRUE) ->  | CS23: =IF(L23=$CS$8, IF(AND(#REF!="Punto - Punto",#REF!<=CT23,#REF!<>"",#REF!<>"",#REF!<=0.2),"CORRECTO", IF(AND(#REF!="Punto - Multipunto",#REF!<=CU23,#REF!<>"",#REF!<>"",#REF!<=1),"CORRECTO","ERROR")),"") ->  | CT23: =VLOOKUP(#REF!,Hoja1!$AF$5:$AH$5390,3,TRUE) ->  | CU23: =VLOOKUP(#REF!,Hoja1!$AJ$5:$AL$5390,3,TRUE) ->  | CV23: =IF(L23=$CV$8,IF(AND(#REF!<=CW23,#REF!<>"",#REF!<>"",#REF!<=1),"CORRECTO","ERROR"),"") ->  | CW23: =VLOOKUP(#REF!,Hoja1!$AJ$5:$AL$5390,3,TRUE) ->  | CX23: =IF(L23=$CX$8,IF(AND(#REF!<=CY23,#REF!<>"",#REF!<>""),"CORRECTO","ERROR"),"") ->  | CY23: =VLOOKUP(#REF!,Hoja1!$AB$5:$AD$5390,3,TRUE) ->  | CZ23: =IF(#REF!<=#REF!,"CORRECTO","ERROR") ->  | DE23: =CONCATENATE("0",#REF!,"°",IF(#REF!<10,CONCATENATE("0",#REF!),#REF!),"'",IF(ROUND(#REF!,0)=#REF!,IF(#REF!<10,CONCATENATE("0",#REF!,".00"),CONCATENATE(#REF!,".00")),IF(ROUND(#REF!*10,0)=#REF!*10,IF(#REF!<10,CONCATENATE("0",#REF!,"0"),CONCATENATE(#REF!,"0")),IF(#REF!<10,CONCATENATE("0",#REF!),#REF!))),"''",#REF!) ->  | DF23: =CONCATENATE(#REF!,"°",IF(#REF!<10,CONCATENATE("0",#REF!),#REF!),"'",IF(ROUND(#REF!,0)=#REF!,IF(#REF!<10,CONCATENATE("0",#REF!,".00"),CONCATENATE(#REF!,".00")),IF(ROUND(#REF!*10,0)=#REF!*10,IF(#REF!<10,CONCATENATE("0",#REF!,"0"),CONCATENATE(#REF!,"0")),IF(#REF!<10,CONCATENATE("0",#REF!),#REF!))),"''",#REF!) -> 
J24: =CONCATENATE(#REF!,"-","TX") ->  | K24: =CONCATENATE(#REF!,"-","RX") ->  | S24: I | U24: =IF(T24="","",VLOOKUP($T24,'FO-DRE-01'!$A$7:$Q$10002,2,FALSE)) ->  | V24: =IF(T24="","",VLOOKUP($T24,'FO-DRE-01'!$A$7:$Q$10002,3,FALSE)) ->  | W24: =IF(T24="","",VLOOKUP($T24,'FO-DRE-01'!$A$7:$Q$10002,4,FALSE)) ->  | X24: =IF(T24="","",VLOOKUP($T24,'FO-DRE-01'!$A$7:$Q$10002,6,FALSE)) ->  | Y24: =IF(T24="","",VLOOKUP($T24,'FO-DRE-01'!$A$7:$Q$10002,7,FALSE)) ->  | Z24: =IF(T24="","",VLOOKUP($T24,'FO-DRE-01'!$A$7:$Q$10002,8,FALSE)) ->  | AA24: =IF(T24="","",VLOOKUP($T24,'FO-DRE-01'!$A$7:$Q$10002,10,FALSE)) ->  | AB24: =IF(T24="","",VLOOKUP($T24,'FO-DRE-01'!$A$7:$Q$10002,11,FALSE)) ->  | AC24: =IF(T24="","",VLOOKUP($T24,'FO-DRE-01'!$A$7:$Q$10002,12,FALSE)) ->  | AD24: =IF(T24="","",VLOOKUP($T24,'FO-DRE-01'!$A$7:$Q$10002,13,FALSE)) ->  | AE24: =IF(T24="","",VLOOKUP($T24,'FO-DRE-01'!$A$7:$Q$10002,14,FALSE)) ->  | AF24: =IF(T24="","",VLOOKUP($T24,'FO-DRE-01'!$A$7:$Q$10002,15,FALSE)) ->  | AG24: =IF(T24="","",VLOOKUP($T24,'FO-DRE-01'!$A$7:$Q$10002,16,FALSE)) ->  | AH24: =IF(T24="","",VLOOKUP($T24,'FO-DRE-01'!$A$7:$Q$10002,17,FALSE)) ->  | AI24: W | BA24: 5000 | BD24: 16 | BF24: F/D | BG24: =IF(OR(F25="",AL24="",AT24=""),"F/D",IF(BR24>BI24,"SI","")) -> F/D | CA24: =VLOOKUP(AT24,Hoja1!$X$5:$Z$5390,3,TRUE) -> 1 | CC24: =VLOOKUP(AT24,Hoja1!$AF$5:$AH$5390,3,TRUE) -> 0.05 | CD24: =IF(L24=$CD$8, IF(AND(#REF!="Punto - Punto",AL24<=CE24,AL24<>"",AT24<>"",BQ24<=0.2),"CORRECTO", IF(AND(#REF!="Punto - Multipunto",AL24<=CF24,AL24<>"",AT24<>"",BQ24<=1),"CORRECTO","ERROR")),"") ->  | CE24: =VLOOKUP(AT24,Hoja1!$AF$5:$AH$5390,3,TRUE) -> 0.05 | CF24: =VLOOKUP(AT24,Hoja1!$AJ$5:$AL$5390,3,TRUE) -> 0.25 | CH24: =VLOOKUP(AT24,Hoja1!$AJ$5:$AL$5390,3,TRUE) -> 0.25 | CJ24: =VLOOKUP(AT24,Hoja1!$AB$5:$AD$5390,3,TRUE) -> 1 | CK24: CORRECTO | CL24: 0 | CN24: =IF(L24=$CN$8,IF(AND(#REF!<=0.25,#REF!<>""),"CORRECTO","ERROR"),"") ->  | CO24: =IF(L24=$CO$8,IF(AND(#REF!<=CP24,#REF!<>"",#REF!<>""),"CORRECTO","ERROR"),"") ->  | CP24: =VLOOKUP(#REF!,Hoja1!$X$5:$Z$5390,3,TRUE) ->  | CQ24: =IF(L24=$CQ$8,IF(AND(#REF!<=CR24,#REF!<>"",#REF!<>"",#REF!<=0.2),"CORRECTO","ERROR"),"") ->  | CR24: =VLOOKUP(#REF!,Hoja1!$AF$5:$AH$5390,3,TRUE) ->  | CS24: =IF(L24=$CS$8, IF(AND(#REF!="Punto - Punto",#REF!<=CT24,#REF!<>"",#REF!<>"",#REF!<=0.2),"CORRECTO", IF(AND(#REF!="Punto - Multipunto",#REF!<=CU24,#REF!<>"",#REF!<>"",#REF!<=1),"CORRECTO","ERROR")),"") ->  | CT24: =VLOOKUP(#REF!,Hoja1!$AF$5:$AH$5390,3,TRUE) ->  | CU24: =VLOOKUP(#REF!,Hoja1!$AJ$5:$AL$5390,3,TRUE) ->  | CV24: =IF(L24=$CV$8,IF(AND(#REF!<=CW24,#REF!<>"",#REF!<>"",#REF!<=1),"CORRECTO","ERROR"),"") ->  | CW24: =VLOOKUP(#REF!,Hoja1!$AJ$5:$AL$5390,3,TRUE) ->  | CX24: =IF(L24=$CX$8,IF(AND(#REF!<=CY24,#REF!<>"",#REF!<>""),"CORRECTO","ERROR"),"") ->  | CY24: =VLOOKUP(#REF!,Hoja1!$AB$5:$AD$5390,3,TRUE) ->  | CZ24: =IF(#REF!<=#REF!,"CORRECTO","ERROR") ->  | DE24: =CONCATENATE("0",#REF!,"°",IF(#REF!<10,CONCATENATE("0",#REF!),#REF!),"'",IF(ROUND(#REF!,0)=#REF!,IF(#REF!<10,CONCATENATE("0",#REF!,".00"),CONCATENATE(#REF!,".00")),IF(ROUND(#REF!*10,0)=#REF!*10,IF(#REF!<10,CONCATENATE("0",#REF!,"0"),CONCATENATE(#REF!,"0")),IF(#REF!<10,CONCATENATE("0",#REF!),#REF!))),"''",#REF!) ->  | DF24: =CONCATENATE(#REF!,"°",IF(#REF!<10,CONCATENATE("0",#REF!),#REF!),"'",IF(ROUND(#REF!,0)=#REF!,IF(#REF!<10,CONCATENATE("0",#REF!,".00"),CONCATENATE(#REF!,".00")),IF(ROUND(#REF!*10,0)=#REF!*10,IF(#REF!<10,CONCATENATE("0",#REF!,"0"),CONCATENATE(#REF!,"0")),IF(#REF!<10,CONCATENATE("0",#REF!),#REF!))),"''",#REF!) -> 
J25: =CONCATENATE(#REF!,"-","TX") ->  | K25: =CONCATENATE(#REF!,"-","RX") ->  | S25: I | U25: =IF(T25="","",VLOOKUP($T25,'FO-DRE-01'!$A$7:$Q$10002,2,FALSE)) ->  | V25: =IF(T25="","",VLOOKUP($T25,'FO-DRE-01'!$A$7:$Q$10002,3,FALSE)) ->  | W25: =IF(T25="","",VLOOKUP($T25,'FO-DRE-01'!$A$7:$Q$10002,4,FALSE)) ->  | X25: =IF(T25="","",VLOOKUP($T25,'FO-DRE-01'!$A$7:$Q$10002,6,FALSE)) ->  | Y25: =IF(T25="","",VLOOKUP($T25,'FO-DRE-01'!$A$7:$Q$10002,7,FALSE)) ->  | Z25: =IF(T25="","",VLOOKUP($T25,'FO-DRE-01'!$A$7:$Q$10002,8,FALSE)) ->  | AA25: =IF(T25="","",VLOOKUP($T25,'FO-DRE-01'!$A$7:$Q$10002,10,FALSE)) ->  | AB25: =IF(T25="","",VLOOKUP($T25,'FO-DRE-01'!$A$7:$Q$10002,11,FALSE)) ->  | AC25: =IF(T25="","",VLOOKUP($T25,'FO-DRE-01'!$A$7:$Q$10002,12,FALSE)) ->  | AD25: =IF(T25="","",VLOOKUP($T25,'FO-DRE-01'!$A$7:$Q$10002,13,FALSE)) ->  | AE25: =IF(T25="","",VLOOKUP($T25,'FO-DRE-01'!$A$7:$Q$10002,14,FALSE)) ->  | AF25: =IF(T25="","",VLOOKUP($T25,'FO-DRE-01'!$A$7:$Q$10002,15,FALSE)) ->  | AG25: =IF(T25="","",VLOOKUP($T25,'FO-DRE-01'!$A$7:$Q$10002,16,FALSE)) ->  | AH25: =IF(T25="","",VLOOKUP($T25,'FO-DRE-01'!$A$7:$Q$10002,17,FALSE)) ->  | AI25: W | BA25: 5000 | BD25: 17 | BF25: F/D | BG25: =IF(OR(F25="",AL25="",AT25=""),"F/D",IF(BR25>BI25,"SI","")) -> F/D | CA25: =VLOOKUP(AT25,Hoja1!$X$5:$Z$5390,3,TRUE) -> 1 | CC25: =VLOOKUP(AT25,Hoja1!$AF$5:$AH$5390,3,TRUE) -> 0.05 | CD25: =IF(L25=$CD$8, IF(AND(#REF!="Punto - Punto",AL25<=CE25,AL25<>"",AT25<>"",BQ25<=0.2),"CORRECTO", IF(AND(#REF!="Punto - Multipunto",AL25<=CF25,AL25<>"",AT25<>"",BQ25<=1),"CORRECTO","ERROR")),"") ->  | CE25: =VLOOKUP(AT25,Hoja1!$AF$5:$AH$5390,3,TRUE) -> 0.05 | CF25: =VLOOKUP(AT25,Hoja1!$AJ$5:$AL$5390,3,TRUE) -> 0.25 | CH25: =VLOOKUP(AT25,Hoja1!$AJ$5:$AL$5390,3,TRUE) -> 0.25 | CJ25: =VLOOKUP(AT25,Hoja1!$AB$5:$AD$5390,3,TRUE) -> 1 | CK25: CORRECTO | CL25: 0 | CN25: =IF(L25=$CN$8,IF(AND(#REF!<=0.25,#REF!<>""),"CORRECTO","ERROR"),"") ->  | CO25: =IF(L25=$CO$8,IF(AND(#REF!<=CP25,#REF!<>"",#REF!<>""),"CORRECTO","ERROR"),"") ->  | CP25: =VLOOKUP(#REF!,Hoja1!$X$5:$Z$5390,3,TRUE) ->  | CQ25: =IF(L25=$CQ$8,IF(AND(#REF!<=CR25,#REF!<>"",#REF!<>"",#REF!<=0.2),"CORRECTO","ERROR"),"") ->  | CR25: =VLOOKUP(#REF!,Hoja1!$AF$5:$AH$5390,3,TRUE) ->  | CS25: =IF(L25=$CS$8, IF(AND(#REF!="Punto - Punto",#REF!<=CT25,#REF!<>"",#REF!<>"",#REF!<=0.2),"CORRECTO", IF(AND(#REF!="Punto - Multipunto",#REF!<=CU25,#REF!<>"",#REF!<>"",#REF!<=1),"CORRECTO","ERROR")),"") ->  | CT25: =VLOOKUP(#REF!,Hoja1!$AF$5:$AH$5390,3,TRUE) ->  | CU25: =VLOOKUP(#REF!,Hoja1!$AJ$5:$AL$5390,3,TRUE) ->  | CV25: =IF(L25=$CV$8,IF(AND(#REF!<=CW25,#REF!<>"",#REF!<>"",#REF!<=1),"CORRECTO","ERROR"),"") ->  | CW25: =VLOOKUP(#REF!,Hoja1!$AJ$5:$AL$5390,3,TRUE) ->  | CX25: =IF(L25=$CX$8,IF(AND(#REF!<=CY25,#REF!<>"",#REF!<>""),"CORRECTO","ERROR"),"") ->  | CY25: =VLOOKUP(#REF!,Hoja1!$AB$5:$AD$5390,3,TRUE) ->  | CZ25: =IF(#REF!<=#REF!,"CORRECTO","ERROR") ->  | DE25: =CONCATENATE("0",#REF!,"°",IF(#REF!<10,CONCATENATE("0",#REF!),#REF!),"'",IF(ROUND(#REF!,0)=#REF!,IF(#REF!<10,CONCATENATE("0",#REF!,".00"),CONCATENATE(#REF!,".00")),IF(ROUND(#REF!*10,0)=#REF!*10,IF(#REF!<10,CONCATENATE("0",#REF!,"0"),CONCATENATE(#REF!,"0")),IF(#REF!<10,CONCATENATE("0",#REF!),#REF!))),"''",#REF!) ->  | DF25: =CONCATENATE(#REF!,"°",IF(#REF!<10,CONCATENATE("0",#REF!),#REF!),"'",IF(ROUND(#REF!,0)=#REF!,IF(#REF!<10,CONCATENATE("0",#REF!,".00"),CONCATENATE(#REF!,".00")),IF(ROUND(#REF!*10,0)=#REF!*10,IF(#REF!<10,CONCATENATE("0",#REF!,"0"),CONCATENATE(#REF!,"0")),IF(#REF!<10,CONCATENATE("0",#REF!),#REF!))),"''",#REF!) -> 
J26: =CONCATENATE(#REF!,"-","TX") ->  | K26: =CONCATENATE(#REF!,"-","RX") ->  | S26: I | U26: =IF(T26="","",VLOOKUP($T26,'FO-DRE-01'!$A$7:$Q$10002,2,FALSE)) ->  | V26: =IF(T26="","",VLOOKUP($T26,'FO-DRE-01'!$A$7:$Q$10002,3,FALSE)) ->  | W26: =IF(T26="","",VLOOKUP($T26,'FO-DRE-01'!$A$7:$Q$10002,4,FALSE)) ->  | X26: =IF(T26="","",VLOOKUP($T26,'FO-DRE-01'!$A$7:$Q$10002,6,FALSE)) ->  | Y26: =IF(T26="","",VLOOKUP($T26,'FO-DRE-01'!$A$7:$Q$10002,7,FALSE)) ->  | Z26: =IF(T26="","",VLOOKUP($T26,'FO-DRE-01'!$A$7:$Q$10002,8,FALSE)) ->  | AA26: =IF(T26="","",VLOOKUP($T26,'FO-DRE-01'!$A$7:$Q$10002,10,FALSE)) ->  | AB26: =IF(T26="","",VLOOKUP($T26,'FO-DRE-01'!$A$7:$Q$10002,11,FALSE)) ->  | AC26: =IF(T26="","",VLOOKUP($T26,'FO-DRE-01'!$A$7:$Q$10002,12,FALSE)) ->  | AD26: =IF(T26="","",VLOOKUP($T26,'FO-DRE-01'!$A$7:$Q$10002,13,FALSE)) ->  | AE26: =IF(T26="","",VLOOKUP($T26,'FO-DRE-01'!$A$7:$Q$10002,14,FALSE)) ->  | AF26: =IF(T26="","",VLOOKUP($T26,'FO-DRE-01'!$A$7:$Q$10002,15,FALSE)) ->  | AG26: =IF(T26="","",VLOOKUP($T26,'FO-DRE-01'!$A$7:$Q$10002,16,FALSE)) ->  | AH26: =IF(T26="","",VLOOKUP($T26,'FO-DRE-01'!$A$7:$Q$10002,17,FALSE)) ->  | AI26: W | BA26: 5000 | BD26: 18 | BF26: F/D | BG26: =IF(OR(F27="",AL26="",AT26=""),"F/D",IF(BR26>BI26,"SI","")) -> F/D | CA26: =VLOOKUP(AT26,Hoja1!$X$5:$Z$5390,3,TRUE) -> 1 | CC26: =VLOOKUP(AT26,Hoja1!$AF$5:$AH$5390,3,TRUE) -> 0.05 | CD26: =IF(L26=$CD$8, IF(AND(#REF!="Punto - Punto",AL26<=CE26,AL26<>"",AT26<>"",BQ26<=0.2),"CORRECTO", IF(AND(#REF!="Punto - Multipunto",AL26<=CF26,AL26<>"",AT26<>"",BQ26<=1),"CORRECTO","ERROR")),"") ->  | CE26: =VLOOKUP(AT26,Hoja1!$AF$5:$AH$5390,3,TRUE) -> 0.05 | CF26: =VLOOKUP(AT26,Hoja1!$AJ$5:$AL$5390,3,TRUE) -> 0.25 | CH26: =VLOOKUP(AT26,Hoja1!$AJ$5:$AL$5390,3,TRUE) -> 0.25 | CJ26: =VLOOKUP(AT26,Hoja1!$AB$5:$AD$5390,3,TRUE) -> 1 | CK26: CORRECTO | CL26: 0 | CN26: =IF(L26=$CN$8,IF(AND(#REF!<=0.25,#REF!<>""),"CORRECTO","ERROR"),"") ->  | CO26: =IF(L26=$CO$8,IF(AND(#REF!<=CP26,#REF!<>"",#REF!<>""),"CORRECTO","ERROR"),"") ->  | CP26: =VLOOKUP(#REF!,Hoja1!$X$5:$Z$5390,3,TRUE) ->  | CQ26: =IF(L26=$CQ$8,IF(AND(#REF!<=CR26,#REF!<>"",#REF!<>"",#REF!<=0.2),"CORRECTO","ERROR"),"") ->  | CR26: =VLOOKUP(#REF!,Hoja1!$AF$5:$AH$5390,3,TRUE) ->  | CS26: =IF(L26=$CS$8, IF(AND(#REF!="Punto - Punto",#REF!<=CT26,#REF!<>"",#REF!<>"",#REF!<=0.2),"CORRECTO", IF(AND(#REF!="Punto - Multipunto",#REF!<=CU26,#REF!<>"",#REF!<>"",#REF!<=1),"CORRECTO","ERROR")),"") ->  | CT26: =VLOOKUP(#REF!,Hoja1!$AF$5:$AH$5390,3,TRUE) ->  | CU26: =VLOOKUP(#REF!,Hoja1!$AJ$5:$AL$5390,3,TRUE) ->  | CV26: =IF(L26=$CV$8,IF(AND(#REF!<=CW26,#REF!<>"",#REF!<>"",#REF!<=1),"CORRECTO","ERROR"),"") ->  | CW26: =VLOOKUP(#REF!,Hoja1!$AJ$5:$AL$5390,3,TRUE) ->  | CX26: =IF(L26=$CX$8,IF(AND(#REF!<=CY26,#REF!<>"",#REF!<>""),"CORRECTO","ERROR"),"") ->  | CY26: =VLOOKUP(#REF!,Hoja1!$AB$5:$AD$5390,3,TRUE) ->  | CZ26: =IF(#REF!<=#REF!,"CORRECTO","ERROR") ->  | DE26: =CONCATENATE("0",#REF!,"°",IF(#REF!<10,CONCATENATE("0",#REF!),#REF!),"'",IF(ROUND(#REF!,0)=#REF!,IF(#REF!<10,CONCATENATE("0",#REF!,".00"),CONCATENATE(#REF!,".00")),IF(ROUND(#REF!*10,0)=#REF!*10,IF(#REF!<10,CONCATENATE("0",#REF!,"0"),CONCATENATE(#REF!,"0")),IF(#REF!<10,CONCATENATE("0",#REF!),#REF!))),"''",#REF!) ->  | DF26: =CONCATENATE(#REF!,"°",IF(#REF!<10,CONCATENATE("0",#REF!),#REF!),"'",IF(ROUND(#REF!,0)=#REF!,IF(#REF!<10,CONCATENATE("0",#REF!,".00"),CONCATENATE(#REF!,".00")),IF(ROUND(#REF!*10,0)=#REF!*10,IF(#REF!<10,CONCATENATE("0",#REF!,"0"),CONCATENATE(#REF!,"0")),IF(#REF!<10,CONCATENATE("0",#REF!),#REF!))),"''",#REF!) -> 
J27: =CONCATENATE(#REF!,"-","TX") ->  | K27: =CONCATENATE(#REF!,"-","RX") ->  | S27: I | U27: =IF(T27="","",VLOOKUP($T27,'FO-DRE-01'!$A$7:$Q$10002,2,FALSE)) ->  | V27: =IF(T27="","",VLOOKUP($T27,'FO-DRE-01'!$A$7:$Q$10002,3,FALSE)) ->  | W27: =IF(T27="","",VLOOKUP($T27,'FO-DRE-01'!$A$7:$Q$10002,4,FALSE)) ->  | X27: =IF(T27="","",VLOOKUP($T27,'FO-DRE-01'!$A$7:$Q$10002,6,FALSE)) ->  | Y27: =IF(T27="","",VLOOKUP($T27,'FO-DRE-01'!$A$7:$Q$10002,7,FALSE)) ->  | Z27: =IF(T27="","",VLOOKUP($T27,'FO-DRE-01'!$A$7:$Q$10002,8,FALSE)) ->  | AA27: =IF(T27="","",VLOOKUP($T27,'FO-DRE-01'!$A$7:$Q$10002,10,FALSE)) ->  | AB27: =IF(T27="","",VLOOKUP($T27,'FO-DRE-01'!$A$7:$Q$10002,11,FALSE)) ->  | AC27: =IF(T27="","",VLOOKUP($T27,'FO-DRE-01'!$A$7:$Q$10002,12,FALSE)) ->  | AD27: =IF(T27="","",VLOOKUP($T27,'FO-DRE-01'!$A$7:$Q$10002,13,FALSE)) ->  | AE27: =IF(T27="","",VLOOKUP($T27,'FO-DRE-01'!$A$7:$Q$10002,14,FALSE)) ->  | AF27: =IF(T27="","",VLOOKUP($T27,'FO-DRE-01'!$A$7:$Q$10002,15,FALSE)) ->  | AG27: =IF(T27="","",VLOOKUP($T27,'FO-DRE-01'!$A$7:$Q$10002,16,FALSE)) ->  | AH27: =IF(T27="","",VLOOKUP($T27,'FO-DRE-01'!$A$7:$Q$10002,17,FALSE)) ->  | AI27: W | BA27: 5000 | BD27: 19 | BF27: F/D | BG27: =IF(OR(F27="",AL27="",AT27=""),"F/D",IF(BR27>BI27,"SI","")) -> F/D | CA27: =VLOOKUP(AT27,Hoja1!$X$5:$Z$5390,3,TRUE) -> 1 | CC27: =VLOOKUP(AT27,Hoja1!$AF$5:$AH$5390,3,TRUE) -> 0.05 | CD27: =IF(L27=$CD$8, IF(AND(#REF!="Punto - Punto",AL27<=CE27,AL27<>"",AT27<>"",BQ27<=0.2),"CORRECTO", IF(AND(#REF!="Punto - Multipunto",AL27<=CF27,AL27<>"",AT27<>"",BQ27<=1),"CORRECTO","ERROR")),"") ->  | CE27: =VLOOKUP(AT27,Hoja1!$AF$5:$AH$5390,3,TRUE) -> 0.05 | CF27: =VLOOKUP(AT27,Hoja1!$AJ$5:$AL$5390,3,TRUE) -> 0.25 | CH27: =VLOOKUP(AT27,Hoja1!$AJ$5:$AL$5390,3,TRUE) -> 0.25 | CJ27: =VLOOKUP(AT27,Hoja1!$AB$5:$AD$5390,3,TRUE) -> 1 | CK27: CORRECTO | CL27: 0 | CN27: =IF(L27=$CN$8,IF(AND(#REF!<=0.25,#REF!<>""),"CORRECTO","ERROR"),"") ->  | CO27: =IF(L27=$CO$8,IF(AND(#REF!<=CP27,#REF!<>"",#REF!<>""),"CORRECTO","ERROR"),"") ->  | CP27: =VLOOKUP(#REF!,Hoja1!$X$5:$Z$5390,3,TRUE) ->  | CQ27: =IF(L27=$CQ$8,IF(AND(#REF!<=CR27,#REF!<>"",#REF!<>"",#REF!<=0.2),"CORRECTO","ERROR"),"") ->  | CR27: =VLOOKUP(#REF!,Hoja1!$AF$5:$AH$5390,3,TRUE) ->  | CS27: =IF(L27=$CS$8, IF(AND(#REF!="Punto - Punto",#REF!<=CT27,#REF!<>"",#REF!<>"",#REF!<=0.2),"CORRECTO", IF(AND(#REF!="Punto - Multipunto",#REF!<=CU27,#REF!<>"",#REF!<>"",#REF!<=1),"CORRECTO","ERROR")),"") ->  | CT27: =VLOOKUP(#REF!,Hoja1!$AF$5:$AH$5390,3,TRUE) ->  | CU27: =VLOOKUP(#REF!,Hoja1!$AJ$5:$AL$5390,3,TRUE) ->  | CV27: =IF(L27=$CV$8,IF(AND(#REF!<=CW27,#REF!<>"",#REF!<>"",#REF!<=1),"CORRECTO","ERROR"),"") ->  | CW27: =VLOOKUP(#REF!,Hoja1!$AJ$5:$AL$5390,3,TRUE) ->  | CX27: =IF(L27=$CX$8,IF(AND(#REF!<=CY27,#REF!<>"",#REF!<>""),"CORRECTO","ERROR"),"") ->  | CY27: =VLOOKUP(#REF!,Hoja1!$AB$5:$AD$5390,3,TRUE) ->  | CZ27: =IF(#REF!<=#REF!,"CORRECTO","ERROR") ->  | DE27: =CONCATENATE("0",#REF!,"°",IF(#REF!<10,CONCATENATE("0",#REF!),#REF!),"'",IF(ROUND(#REF!,0)=#REF!,IF(#REF!<10,CONCATENATE("0",#REF!,".00"),CONCATENATE(#REF!,".00")),IF(ROUND(#REF!*10,0)=#REF!*10,IF(#REF!<10,CONCATENATE("0",#REF!,"0"),CONCATENATE(#REF!,"0")),IF(#REF!<10,CONCATENATE("0",#REF!),#REF!))),"''",#REF!) ->  | DF27: =CONCATENATE(#REF!,"°",IF(#REF!<10,CONCATENATE("0",#REF!),#REF!),"'",IF(ROUND(#REF!,0)=#REF!,IF(#REF!<10,CONCATENATE("0",#REF!,".00"),CONCATENATE(#REF!,".00")),IF(ROUND(#REF!*10,0)=#REF!*10,IF(#REF!<10,CONCATENATE("0",#REF!,"0"),CONCATENATE(#REF!,"0")),IF(#REF!<10,CONCATENATE("0",#REF!),#REF!))),"''",#REF!) -> 
J28: =CONCATENATE(#REF!,"-","TX") ->  | K28: =CONCATENATE(#REF!,"-","RX") ->  | S28: I | U28: =IF(T28="","",VLOOKUP($T28,'FO-DRE-01'!$A$7:$Q$10002,2,FALSE)) ->  | V28: =IF(T28="","",VLOOKUP($T28,'FO-DRE-01'!$A$7:$Q$10002,3,FALSE)) ->  | W28: =IF(T28="","",VLOOKUP($T28,'FO-DRE-01'!$A$7:$Q$10002,4,FALSE)) ->  | X28: =IF(T28="","",VLOOKUP($T28,'FO-DRE-01'!$A$7:$Q$10002,6,FALSE)) ->  | Y28: =IF(T28="","",VLOOKUP($T28,'FO-DRE-01'!$A$7:$Q$10002,7,FALSE)) ->  | Z28: =IF(T28="","",VLOOKUP($T28,'FO-DRE-01'!$A$7:$Q$10002,8,FALSE)) ->  | AA28: =IF(T28="","",VLOOKUP($T28,'FO-DRE-01'!$A$7:$Q$10002,10,FALSE)) ->  | AB28: =IF(T28="","",VLOOKUP($T28,'FO-DRE-01'!$A$7:$Q$10002,11,FALSE)) ->  | AC28: =IF(T28="","",VLOOKUP($T28,'FO-DRE-01'!$A$7:$Q$10002,12,FALSE)) ->  | AD28: =IF(T28="","",VLOOKUP($T28,'FO-DRE-01'!$A$7:$Q$10002,13,FALSE)) ->  | AE28: =IF(T28="","",VLOOKUP($T28,'FO-DRE-01'!$A$7:$Q$10002,14,FALSE)) ->  | AF28: =IF(T28="","",VLOOKUP($T28,'FO-DRE-01'!$A$7:$Q$10002,15,FALSE)) ->  | AG28: =IF(T28="","",VLOOKUP($T28,'FO-DRE-01'!$A$7:$Q$10002,16,FALSE)) ->  | AH28: =IF(T28="","",VLOOKUP($T28,'FO-DRE-01'!$A$7:$Q$10002,17,FALSE)) ->  | AI28: W | BA28: 5000 | BD28: 20 | BF28: F/D | BG28: =IF(OR(F29="",AL28="",AT28=""),"F/D",IF(BR28>BI28,"SI","")) -> F/D | CA28: =VLOOKUP(AT28,Hoja1!$X$5:$Z$5390,3,TRUE) -> 1 | CC28: =VLOOKUP(AT28,Hoja1!$AF$5:$AH$5390,3,TRUE) -> 0.05 | CD28: =IF(L28=$CD$8, IF(AND(#REF!="Punto - Punto",AL28<=CE28,AL28<>"",AT28<>"",BQ28<=0.2),"CORRECTO", IF(AND(#REF!="Punto - Multipunto",AL28<=CF28,AL28<>"",AT28<>"",BQ28<=1),"CORRECTO","ERROR")),"") ->  | CE28: =VLOOKUP(AT28,Hoja1!$AF$5:$AH$5390,3,TRUE) -> 0.05 | CF28: =VLOOKUP(AT28,Hoja1!$AJ$5:$AL$5390,3,TRUE) -> 0.25 | CH28: =VLOOKUP(AT28,Hoja1!$AJ$5:$AL$5390,3,TRUE) -> 0.25 | CJ28: =VLOOKUP(AT28,Hoja1!$AB$5:$AD$5390,3,TRUE) -> 1 | CK28: CORRECTO | CL28: 0 | CN28: =IF(L28=$CN$8,IF(AND(#REF!<=0.25,#REF!<>""),"CORRECTO","ERROR"),"") ->  | CO28: =IF(L28=$CO$8,IF(AND(#REF!<=CP28,#REF!<>"",#REF!<>""),"CORRECTO","ERROR"),"") ->  | CP28: =VLOOKUP(#REF!,Hoja1!$X$5:$Z$5390,3,TRUE) ->  | CQ28: =IF(L28=$CQ$8,IF(AND(#REF!<=CR28,#REF!<>"",#REF!<>"",#REF!<=0.2),"CORRECTO","ERROR"),"") ->  | CR28: =VLOOKUP(#REF!,Hoja1!$AF$5:$AH$5390,3,TRUE) ->  | CS28: =IF(L28=$CS$8, IF(AND(#REF!="Punto - Punto",#REF!<=CT28,#REF!<>"",#REF!<>"",#REF!<=0.2),"CORRECTO", IF(AND(#REF!="Punto - Multipunto",#REF!<=CU28,#REF!<>"",#REF!<>"",#REF!<=1),"CORRECTO","ERROR")),"") ->  | CT28: =VLOOKUP(#REF!,Hoja1!$AF$5:$AH$5390,3,TRUE) ->  | CU28: =VLOOKUP(#REF!,Hoja1!$AJ$5:$AL$5390,3,TRUE) ->  | CV28: =IF(L28=$CV$8,IF(AND(#REF!<=CW28,#REF!<>"",#REF!<>"",#REF!<=1),"CORRECTO","ERROR"),"") ->  | CW28: =VLOOKUP(#REF!,Hoja1!$AJ$5:$AL$5390,3,TRUE) ->  | CX28: =IF(L28=$CX$8,IF(AND(#REF!<=CY28,#REF!<>"",#REF!<>""),"CORRECTO","ERROR"),"") ->  | CY28: =VLOOKUP(#REF!,Hoja1!$AB$5:$AD$5390,3,TRUE) ->  | CZ28: =IF(#REF!<=#REF!,"CORRECTO","ERROR") ->  | DE28: =CONCATENATE("0",#REF!,"°",IF(#REF!<10,CONCATENATE("0",#REF!),#REF!),"'",IF(ROUND(#REF!,0)=#REF!,IF(#REF!<10,CONCATENATE("0",#REF!,".00"),CONCATENATE(#REF!,".00")),IF(ROUND(#REF!*10,0)=#REF!*10,IF(#REF!<10,CONCATENATE("0",#REF!,"0"),CONCATENATE(#REF!,"0")),IF(#REF!<10,CONCATENATE("0",#REF!),#REF!))),"''",#REF!) ->  | DF28: =CONCATENATE(#REF!,"°",IF(#REF!<10,CONCATENATE("0",#REF!),#REF!),"'",IF(ROUND(#REF!,0)=#REF!,IF(#REF!<10,CONCATENATE("0",#REF!,".00"),CONCATENATE(#REF!,".00")),IF(ROUND(#REF!*10,0)=#REF!*10,IF(#REF!<10,CONCATENATE("0",#REF!,"0"),CONCATENATE(#REF!,"0")),IF(#REF!<10,CONCATENATE("0",#REF!),#REF!))),"''",#REF!) -> 
J29: =CONCATENATE(#REF!,"-","TX") ->  | K29: =CONCATENATE(#REF!,"-","RX") ->  | S29: I | U29: =IF(T29="","",VLOOKUP($T29,'FO-DRE-01'!$A$7:$Q$10002,2,FALSE)) ->  | V29: =IF(T29="","",VLOOKUP($T29,'FO-DRE-01'!$A$7:$Q$10002,3,FALSE)) ->  | W29: =IF(T29="","",VLOOKUP($T29,'FO-DRE-01'!$A$7:$Q$10002,4,FALSE)) ->  | X29: =IF(T29="","",VLOOKUP($T29,'FO-DRE-01'!$A$7:$Q$10002,6,FALSE)) ->  | Y29: =IF(T29="","",VLOOKUP($T29,'FO-DRE-01'!$A$7:$Q$10002,7,FALSE)) ->  | Z29: =IF(T29="","",VLOOKUP($T29,'FO-DRE-01'!$A$7:$Q$10002,8,FALSE)) ->  | AA29: =IF(T29="","",VLOOKUP($T29,'FO-DRE-01'!$A$7:$Q$10002,10,FALSE)) ->  | AB29: =IF(T29="","",VLOOKUP($T29,'FO-DRE-01'!$A$7:$Q$10002,11,FALSE)) ->  | AC29: =IF(T29="","",VLOOKUP($T29,'FO-DRE-01'!$A$7:$Q$10002,12,FALSE)) ->  | AD29: =IF(T29="","",VLOOKUP($T29,'FO-DRE-01'!$A$7:$Q$10002,13,FALSE)) ->  | AE29: =IF(T29="","",VLOOKUP($T29,'FO-DRE-01'!$A$7:$Q$10002,14,FALSE)) ->  | AF29: =IF(T29="","",VLOOKUP($T29,'FO-DRE-01'!$A$7:$Q$10002,15,FALSE)) ->  | AG29: =IF(T29="","",VLOOKUP($T29,'FO-DRE-01'!$A$7:$Q$10002,16,FALSE)) ->  | AH29: =IF(T29="","",VLOOKUP($T29,'FO-DRE-01'!$A$7:$Q$10002,17,FALSE)) ->  | AI29: W | BA29: 5000 | BD29: 21 | BF29: F/D | BG29: =IF(OR(F29="",AL29="",AT29=""),"F/D",IF(BR29>BI29,"SI","")) -> F/D | CA29: =VLOOKUP(AT29,Hoja1!$X$5:$Z$5390,3,TRUE) -> 1 | CC29: =VLOOKUP(AT29,Hoja1!$AF$5:$AH$5390,3,TRUE) -> 0.05 | CD29: =IF(L29=$CD$8, IF(AND(#REF!="Punto - Punto",AL29<=CE29,AL29<>"",AT29<>"",BQ29<=0.2),"CORRECTO", IF(AND(#REF!="Punto - Multipunto",AL29<=CF29,AL29<>"",AT29<>"",BQ29<=1),"CORRECTO","ERROR")),"") ->  | CE29: =VLOOKUP(AT29,Hoja1!$AF$5:$AH$5390,3,TRUE) -> 0.05 | CF29: =VLOOKUP(AT29,Hoja1!$AJ$5:$AL$5390,3,TRUE) -> 0.25 | CH29: =VLOOKUP(AT29,Hoja1!$AJ$5:$AL$5390,3,TRUE) -> 0.25 | CJ29: =VLOOKUP(AT29,Hoja1!$AB$5:$AD$5390,3,TRUE) -> 1 | CK29: CORRECTO | CL29: 0 | CN29: =IF(L29=$CN$8,IF(AND(#REF!<=0.25,#REF!<>""),"CORRECTO","ERROR"),"") ->  | CO29: =IF(L29=$CO$8,IF(AND(#REF!<=CP29,#REF!<>"",#REF!<>""),"CORRECTO","ERROR"),"") ->  | CP29: =VLOOKUP(#REF!,Hoja1!$X$5:$Z$5390,3,TRUE) ->  | CQ29: =IF(L29=$CQ$8,IF(AND(#REF!<=CR29,#REF!<>"",#REF!<>"",#REF!<=0.2),"CORRECTO","ERROR"),"") ->  | CR29: =VLOOKUP(#REF!,Hoja1!$AF$5:$AH$5390,3,TRUE) ->  | CS29: =IF(L29=$CS$8, IF(AND(#REF!="Punto - Punto",#REF!<=CT29,#REF!<>"",#REF!<>"",#REF!<=0.2),"CORRECTO", IF(AND(#REF!="Punto - Multipunto",#REF!<=CU29,#REF!<>"",#REF!<>"",#REF!<=1),"CORRECTO","ERROR")),"") ->  | CT29: =VLOOKUP(#REF!,Hoja1!$AF$5:$AH$5390,3,TRUE) ->  | CU29: =VLOOKUP(#REF!,Hoja1!$AJ$5:$AL$5390,3,TRUE) ->  | CV29: =IF(L29=$CV$8,IF(AND(#REF!<=CW29,#REF!<>"",#REF!<>"",#REF!<=1),"CORRECTO","ERROR"),"") ->  | CW29: =VLOOKUP(#REF!,Hoja1!$AJ$5:$AL$5390,3,TRUE) ->  | CX29: =IF(L29=$CX$8,IF(AND(#REF!<=CY29,#REF!<>"",#REF!<>""),"CORRECTO","ERROR"),"") ->  | CY29: =VLOOKUP(#REF!,Hoja1!$AB$5:$AD$5390,3,TRUE) ->  | CZ29: =IF(#REF!<=#REF!,"CORRECTO","ERROR") ->  | DE29: =CONCATENATE("0",#REF!,"°",IF(#REF!<10,CONCATENATE("0",#REF!),#REF!),"'",IF(ROUND(#REF!,0)=#REF!,IF(#REF!<10,CONCATENATE("0",#REF!,".00"),CONCATENATE(#REF!,".00")),IF(ROUND(#REF!*10,0)=#REF!*10,IF(#REF!<10,CONCATENATE("0",#REF!,"0"),CONCATENATE(#REF!,"0")),IF(#REF!<10,CONCATENATE("0",#REF!),#REF!))),"''",#REF!) ->  | DF29: =CONCATENATE(#REF!,"°",IF(#REF!<10,CONCATENATE("0",#REF!),#REF!),"'",IF(ROUND(#REF!,0)=#REF!,IF(#REF!<10,CONCATENATE("0",#REF!,".00"),CONCATENATE(#REF!,".00")),IF(ROUND(#REF!*10,0)=#REF!*10,IF(#REF!<10,CONCATENATE("0",#REF!,"0"),CONCATENATE(#REF!,"0")),IF(#REF!<10,CONCATENATE("0",#REF!),#REF!))),"''",#REF!) -> 
J30: =CONCATENATE(#REF!,"-","TX") ->  | K30: =CONCATENATE(#REF!,"-","RX") ->  | S30: I | U30: =IF(T30="","",VLOOKUP($T30,'FO-DRE-01'!$A$7:$Q$10002,2,FALSE)) ->  | V30: =IF(T30="","",VLOOKUP($T30,'FO-DRE-01'!$A$7:$Q$10002,3,FALSE)) ->  | W30: =IF(T30="","",VLOOKUP($T30,'FO-DRE-01'!$A$7:$Q$10002,4,FALSE)) ->  | X30: =IF(T30="","",VLOOKUP($T30,'FO-DRE-01'!$A$7:$Q$10002,6,FALSE)) ->  | Y30: =IF(T30="","",VLOOKUP($T30,'FO-DRE-01'!$A$7:$Q$10002,7,FALSE)) ->  | Z30: =IF(T30="","",VLOOKUP($T30,'FO-DRE-01'!$A$7:$Q$10002,8,FALSE)) ->  | AA30: =IF(T30="","",VLOOKUP($T30,'FO-DRE-01'!$A$7:$Q$10002,10,FALSE)) ->  | AB30: =IF(T30="","",VLOOKUP($T30,'FO-DRE-01'!$A$7:$Q$10002,11,FALSE)) ->  | AC30: =IF(T30="","",VLOOKUP($T30,'FO-DRE-01'!$A$7:$Q$10002,12,FALSE)) ->  | AD30: =IF(T30="","",VLOOKUP($T30,'FO-DRE-01'!$A$7:$Q$10002,13,FALSE)) ->  | AE30: =IF(T30="","",VLOOKUP($T30,'FO-DRE-01'!$A$7:$Q$10002,14,FALSE)) ->  | AF30: =IF(T30="","",VLOOKUP($T30,'FO-DRE-01'!$A$7:$Q$10002,15,FALSE)) ->  | AG30: =IF(T30="","",VLOOKUP($T30,'FO-DRE-01'!$A$7:$Q$10002,16,FALSE)) ->  | AH30: =IF(T30="","",VLOOKUP($T30,'FO-DRE-01'!$A$7:$Q$10002,17,FALSE)) ->  | AI30: W | BA30: 5000 | BD30: 22 | BF30: F/D | BG30: =IF(OR(F31="",AL30="",AT30=""),"F/D",IF(BR30>BI30,"SI","")) -> F/D | CA30: =VLOOKUP(AT30,Hoja1!$X$5:$Z$5390,3,TRUE) -> 1 | CC30: =VLOOKUP(AT30,Hoja1!$AF$5:$AH$5390,3,TRUE) -> 0.05 | CD30: =IF(L30=$CD$8, IF(AND(#REF!="Punto - Punto",AL30<=CE30,AL30<>"",AT30<>"",BQ30<=0.2),"CORRECTO", IF(AND(#REF!="Punto - Multipunto",AL30<=CF30,AL30<>"",AT30<>"",BQ30<=1),"CORRECTO","ERROR")),"") ->  | CE30: =VLOOKUP(AT30,Hoja1!$AF$5:$AH$5390,3,TRUE) -> 0.05 | CF30: =VLOOKUP(AT30,Hoja1!$AJ$5:$AL$5390,3,TRUE) -> 0.25 | CH30: =VLOOKUP(AT30,Hoja1!$AJ$5:$AL$5390,3,TRUE) -> 0.25 | CJ30: =VLOOKUP(AT30,Hoja1!$AB$5:$AD$5390,3,TRUE) -> 1 | CK30: CORRECTO | CL30: 0 | CN30: =IF(L30=$CN$8,IF(AND(#REF!<=0.25,#REF!<>""),"CORRECTO","ERROR"),"") ->  | CO30: =IF(L30=$CO$8,IF(AND(#REF!<=CP30,#REF!<>"",#REF!<>""),"CORRECTO","ERROR"),"") ->  | CP30: =VLOOKUP(#REF!,Hoja1!$X$5:$Z$5390,3,TRUE) ->  | CQ30: =IF(L30=$CQ$8,IF(AND(#REF!<=CR30,#REF!<>"",#REF!<>"",#REF!<=0.2),"CORRECTO","ERROR"),"") ->  | CR30: =VLOOKUP(#REF!,Hoja1!$AF$5:$AH$5390,3,TRUE) ->  | CS30: =IF(L30=$CS$8, IF(AND(#REF!="Punto - Punto",#REF!<=CT30,#REF!<>"",#REF!<>"",#REF!<=0.2),"CORRECTO", IF(AND(#REF!="Punto - Multipunto",#REF!<=CU30,#REF!<>"",#REF!<>"",#REF!<=1),"CORRECTO","ERROR")),"") ->  | CT30: =VLOOKUP(#REF!,Hoja1!$AF$5:$AH$5390,3,TRUE) ->  | CU30: =VLOOKUP(#REF!,Hoja1!$AJ$5:$AL$5390,3,TRUE) ->  | CV30: =IF(L30=$CV$8,IF(AND(#REF!<=CW30,#REF!<>"",#REF!<>"",#REF!<=1),"CORRECTO","ERROR"),"") ->  | CW30: =VLOOKUP(#REF!,Hoja1!$AJ$5:$AL$5390,3,TRUE) ->  | CX30: =IF(L30=$CX$8,IF(AND(#REF!<=CY30,#REF!<>"",#REF!<>""),"CORRECTO","ERROR"),"") ->  | CY30: =VLOOKUP(#REF!,Hoja1!$AB$5:$AD$5390,3,TRUE) ->  | CZ30: =IF(#REF!<=#REF!,"CORRECTO","ERROR") ->  | DE30: =CONCATENATE("0",#REF!,"°",IF(#REF!<10,CONCATENATE("0",#REF!),#REF!),"'",IF(ROUND(#REF!,0)=#REF!,IF(#REF!<10,CONCATENATE("0",#REF!,".00"),CONCATENATE(#REF!,".00")),IF(ROUND(#REF!*10,0)=#REF!*10,IF(#REF!<10,CONCATENATE("0",#REF!,"0"),CONCATENATE(#REF!,"0")),IF(#REF!<10,CONCATENATE("0",#REF!),#REF!))),"''",#REF!) ->  | DF30: =CONCATENATE(#REF!,"°",IF(#REF!<10,CONCATENATE("0",#REF!),#REF!),"'",IF(ROUND(#REF!,0)=#REF!,IF(#REF!<10,CONCATENATE("0",#REF!,".00"),CONCATENATE(#REF!,".00")),IF(ROUND(#REF!*10,0)=#REF!*10,IF(#REF!<10,CONCATENATE("0",#REF!,"0"),CONCATENATE(#REF!,"0")),IF(#REF!<10,CONCATENATE("0",#REF!),#REF!))),"''",#REF!) -> 
J31: =CONCATENATE(#REF!,"-","TX") ->  | K31: =CONCATENATE(#REF!,"-","RX") ->  | S31: I | U31: =IF(T31="","",VLOOKUP($T31,'FO-DRE-01'!$A$7:$Q$10002,2,FALSE)) ->  | V31: =IF(T31="","",VLOOKUP($T31,'FO-DRE-01'!$A$7:$Q$10002,3,FALSE)) ->  | W31: =IF(T31="","",VLOOKUP($T31,'FO-DRE-01'!$A$7:$Q$10002,4,FALSE)) ->  | X31: =IF(T31="","",VLOOKUP($T31,'FO-DRE-01'!$A$7:$Q$10002,6,FALSE)) ->  | Y31: =IF(T31="","",VLOOKUP($T31,'FO-DRE-01'!$A$7:$Q$10002,7,FALSE)) ->  | Z31: =IF(T31="","",VLOOKUP($T31,'FO-DRE-01'!$A$7:$Q$10002,8,FALSE)) ->  | AA31: =IF(T31="","",VLOOKUP($T31,'FO-DRE-01'!$A$7:$Q$10002,10,FALSE)) ->  | AB31: =IF(T31="","",VLOOKUP($T31,'FO-DRE-01'!$A$7:$Q$10002,11,FALSE)) ->  | AC31: =IF(T31="","",VLOOKUP($T31,'FO-DRE-01'!$A$7:$Q$10002,12,FALSE)) ->  | AD31: =IF(T31="","",VLOOKUP($T31,'FO-DRE-01'!$A$7:$Q$10002,13,FALSE)) ->  | AE31: =IF(T31="","",VLOOKUP($T31,'FO-DRE-01'!$A$7:$Q$10002,14,FALSE)) ->  | AF31: =IF(T31="","",VLOOKUP($T31,'FO-DRE-01'!$A$7:$Q$10002,15,FALSE)) ->  | AG31: =IF(T31="","",VLOOKUP($T31,'FO-DRE-01'!$A$7:$Q$10002,16,FALSE)) ->  | AH31: =IF(T31="","",VLOOKUP($T31,'FO-DRE-01'!$A$7:$Q$10002,17,FALSE)) ->  | AI31: W | BA31: 5000 | BD31: 23 | BF31: F/D | BG31: =IF(OR(F31="",AL31="",AT31=""),"F/D",IF(BR31>BI31,"SI","")) -> F/D | CA31: =VLOOKUP(AT31,Hoja1!$X$5:$Z$5390,3,TRUE) -> 1 | CC31: =VLOOKUP(AT31,Hoja1!$AF$5:$AH$5390,3,TRUE) -> 0.05 | CD31: =IF(L31=$CD$8, IF(AND(#REF!="Punto - Punto",AL31<=CE31,AL31<>"",AT31<>"",BQ31<=0.2),"CORRECTO", IF(AND(#REF!="Punto - Multipunto",AL31<=CF31,AL31<>"",AT31<>"",BQ31<=1),"CORRECTO","ERROR")),"") ->  | CE31: =VLOOKUP(AT31,Hoja1!$AF$5:$AH$5390,3,TRUE) -> 0.05 | CF31: =VLOOKUP(AT31,Hoja1!$AJ$5:$AL$5390,3,TRUE) -> 0.25 | CH31: =VLOOKUP(AT31,Hoja1!$AJ$5:$AL$5390,3,TRUE) -> 0.25 | CJ31: =VLOOKUP(AT31,Hoja1!$AB$5:$AD$5390,3,TRUE) -> 1 | CK31: CORRECTO | CL31: 0 | CN31: =IF(L31=$CN$8,IF(AND(#REF!<=0.25,#REF!<>""),"CORRECTO","ERROR"),"") ->  | CO31: =IF(L31=$CO$8,IF(AND(#REF!<=CP31,#REF!<>"",#REF!<>""),"CORRECTO","ERROR"),"") ->  | CP31: =VLOOKUP(#REF!,Hoja1!$X$5:$Z$5390,3,TRUE) ->  | CQ31: =IF(L31=$CQ$8,IF(AND(#REF!<=CR31,#REF!<>"",#REF!<>"",#REF!<=0.2),"CORRECTO","ERROR"),"") ->  | CR31: =VLOOKUP(#REF!,Hoja1!$AF$5:$AH$5390,3,TRUE) ->  | CS31: =IF(L31=$CS$8, IF(AND(#REF!="Punto - Punto",#REF!<=CT31,#REF!<>"",#REF!<>"",#REF!<=0.2),"CORRECTO", IF(AND(#REF!="Punto - Multipunto",#REF!<=CU31,#REF!<>"",#REF!<>"",#REF!<=1),"CORRECTO","ERROR")),"") ->  | CT31: =VLOOKUP(#REF!,Hoja1!$AF$5:$AH$5390,3,TRUE) ->  | CU31: =VLOOKUP(#REF!,Hoja1!$AJ$5:$AL$5390,3,TRUE) ->  | CV31: =IF(L31=$CV$8,IF(AND(#REF!<=CW31,#REF!<>"",#REF!<>"",#REF!<=1),"CORRECTO","ERROR"),"") ->  | CW31: =VLOOKUP(#REF!,Hoja1!$AJ$5:$AL$5390,3,TRUE) ->  | CX31: =IF(L31=$CX$8,IF(AND(#REF!<=CY31,#REF!<>"",#REF!<>""),"CORRECTO","ERROR"),"") ->  | CY31: =VLOOKUP(#REF!,Hoja1!$AB$5:$AD$5390,3,TRUE) ->  | CZ31: =IF(#REF!<=#REF!,"CORRECTO","ERROR") ->  | DE31: =CONCATENATE("0",#REF!,"°",IF(#REF!<10,CONCATENATE("0",#REF!),#REF!),"'",IF(ROUND(#REF!,0)=#REF!,IF(#REF!<10,CONCATENATE("0",#REF!,".00"),CONCATENATE(#REF!,".00")),IF(ROUND(#REF!*10,0)=#REF!*10,IF(#REF!<10,CONCATENATE("0",#REF!,"0"),CONCATENATE(#REF!,"0")),IF(#REF!<10,CONCATENATE("0",#REF!),#REF!))),"''",#REF!) ->  | DF31: =CONCATENATE(#REF!,"°",IF(#REF!<10,CONCATENATE("0",#REF!),#REF!),"'",IF(ROUND(#REF!,0)=#REF!,IF(#REF!<10,CONCATENATE("0",#REF!,".00"),CONCATENATE(#REF!,".00")),IF(ROUND(#REF!*10,0)=#REF!*10,IF(#REF!<10,CONCATENATE("0",#REF!,"0"),CONCATENATE(#REF!,"0")),IF(#REF!<10,CONCATENATE("0",#REF!),#REF!))),"''",#REF!) -> 
J32: =CONCATENATE(#REF!,"-","TX") ->  | K32: =CONCATENATE(#REF!,"-","RX") ->  | S32: I | U32: =IF(T32="","",VLOOKUP($T32,'FO-DRE-01'!$A$7:$Q$10002,2,FALSE)) ->  | V32: =IF(T32="","",VLOOKUP($T32,'FO-DRE-01'!$A$7:$Q$10002,3,FALSE)) ->  | W32: =IF(T32="","",VLOOKUP($T32,'FO-DRE-01'!$A$7:$Q$10002,4,FALSE)) ->  | X32: =IF(T32="","",VLOOKUP($T32,'FO-DRE-01'!$A$7:$Q$10002,6,FALSE)) ->  | Y32: =IF(T32="","",VLOOKUP($T32,'FO-DRE-01'!$A$7:$Q$10002,7,FALSE)) ->  | Z32: =IF(T32="","",VLOOKUP($T32,'FO-DRE-01'!$A$7:$Q$10002,8,FALSE)) ->  | AA32: =IF(T32="","",VLOOKUP($T32,'FO-DRE-01'!$A$7:$Q$10002,10,FALSE)) ->  | AB32: =IF(T32="","",VLOOKUP($T32,'FO-DRE-01'!$A$7:$Q$10002,11,FALSE)) ->  | AC32: =IF(T32="","",VLOOKUP($T32,'FO-DRE-01'!$A$7:$Q$10002,12,FALSE)) ->  | AD32: =IF(T32="","",VLOOKUP($T32,'FO-DRE-01'!$A$7:$Q$10002,13,FALSE)) ->  | AE32: =IF(T32="","",VLOOKUP($T32,'FO-DRE-01'!$A$7:$Q$10002,14,FALSE)) ->  | AF32: =IF(T32="","",VLOOKUP($T32,'FO-DRE-01'!$A$7:$Q$10002,15,FALSE)) ->  | AG32: =IF(T32="","",VLOOKUP($T32,'FO-DRE-01'!$A$7:$Q$10002,16,FALSE)) ->  | AH32: =IF(T32="","",VLOOKUP($T32,'FO-DRE-01'!$A$7:$Q$10002,17,FALSE)) ->  | AI32: W | BA32: 5000 | BD32: 24 | BF32: F/D | BG32: =IF(OR(F33="",AL32="",AT32=""),"F/D",IF(BR32>BI32,"SI","")) -> F/D | CA32: =VLOOKUP(AT32,Hoja1!$X$5:$Z$5390,3,TRUE) -> 1 | CC32: =VLOOKUP(AT32,Hoja1!$AF$5:$AH$5390,3,TRUE) -> 0.05 | CD32: =IF(L32=$CD$8, IF(AND(#REF!="Punto - Punto",AL32<=CE32,AL32<>"",AT32<>"",BQ32<=0.2),"CORRECTO", IF(AND(#REF!="Punto - Multipunto",AL32<=CF32,AL32<>"",AT32<>"",BQ32<=1),"CORRECTO","ERROR")),"") ->  | CE32: =VLOOKUP(AT32,Hoja1!$AF$5:$AH$5390,3,TRUE) -> 0.05 | CF32: =VLOOKUP(AT32,Hoja1!$AJ$5:$AL$5390,3,TRUE) -> 0.25 | CH32: =VLOOKUP(AT32,Hoja1!$AJ$5:$AL$5390,3,TRUE) -> 0.25 | CJ32: =VLOOKUP(AT32,Hoja1!$AB$5:$AD$5390,3,TRUE) -> 1 | CK32: CORRECTO | CL32: 0 | CN32: =IF(L32=$CN$8,IF(AND(#REF!<=0.25,#REF!<>""),"CORRECTO","ERROR"),"") ->  | CO32: =IF(L32=$CO$8,IF(AND(#REF!<=CP32,#REF!<>"",#REF!<>""),"CORRECTO","ERROR"),"") ->  | CP32: =VLOOKUP(#REF!,Hoja1!$X$5:$Z$5390,3,TRUE) ->  | CQ32: =IF(L32=$CQ$8,IF(AND(#REF!<=CR32,#REF!<>"",#REF!<>"",#REF!<=0.2),"CORRECTO","ERROR"),"") ->  | CR32: =VLOOKUP(#REF!,Hoja1!$AF$5:$AH$5390,3,TRUE) ->  | CS32: =IF(L32=$CS$8, IF(AND(#REF!="Punto - Punto",#REF!<=CT32,#REF!<>"",#REF!<>"",#REF!<=0.2),"CORRECTO", IF(AND(#REF!="Punto - Multipunto",#REF!<=CU32,#REF!<>"",#REF!<>"",#REF!<=1),"CORRECTO","ERROR")),"") ->  | CT32: =VLOOKUP(#REF!,Hoja1!$AF$5:$AH$5390,3,TRUE) ->  | CU32: =VLOOKUP(#REF!,Hoja1!$AJ$5:$AL$5390,3,TRUE) ->  | CV32: =IF(L32=$CV$8,IF(AND(#REF!<=CW32,#REF!<>"",#REF!<>"",#REF!<=1),"CORRECTO","ERROR"),"") ->  | CW32: =VLOOKUP(#REF!,Hoja1!$AJ$5:$AL$5390,3,TRUE) ->  | CX32: =IF(L32=$CX$8,IF(AND(#REF!<=CY32,#REF!<>"",#REF!<>""),"CORRECTO","ERROR"),"") ->  | CY32: =VLOOKUP(#REF!,Hoja1!$AB$5:$AD$5390,3,TRUE) ->  | CZ32: =IF(#REF!<=#REF!,"CORRECTO","ERROR") ->  | DE32: =CONCATENATE("0",#REF!,"°",IF(#REF!<10,CONCATENATE("0",#REF!),#REF!),"'",IF(ROUND(#REF!,0)=#REF!,IF(#REF!<10,CONCATENATE("0",#REF!,".00"),CONCATENATE(#REF!,".00")),IF(ROUND(#REF!*10,0)=#REF!*10,IF(#REF!<10,CONCATENATE("0",#REF!,"0"),CONCATENATE(#REF!,"0")),IF(#REF!<10,CONCATENATE("0",#REF!),#REF!))),"''",#REF!) ->  | DF32: =CONCATENATE(#REF!,"°",IF(#REF!<10,CONCATENATE("0",#REF!),#REF!),"'",IF(ROUND(#REF!,0)=#REF!,IF(#REF!<10,CONCATENATE("0",#REF!,".00"),CONCATENATE(#REF!,".00")),IF(ROUND(#REF!*10,0)=#REF!*10,IF(#REF!<10,CONCATENATE("0",#REF!,"0"),CONCATENATE(#REF!,"0")),IF(#REF!<10,CONCATENATE("0",#REF!),#REF!))),"''",#REF!) -> 
J33: =CONCATENATE(#REF!,"-","TX") ->  | K33: =CONCATENATE(#REF!,"-","RX") ->  | S33: I | U33: =IF(T33="","",VLOOKUP($T33,'FO-DRE-01'!$A$7:$Q$10002,2,FALSE)) ->  | V33: =IF(T33="","",VLOOKUP($T33,'FO-DRE-01'!$A$7:$Q$10002,3,FALSE)) ->  | W33: =IF(T33="","",VLOOKUP($T33,'FO-DRE-01'!$A$7:$Q$10002,4,FALSE)) ->  | X33: =IF(T33="","",VLOOKUP($T33,'FO-DRE-01'!$A$7:$Q$10002,6,FALSE)) ->  | Y33: =IF(T33="","",VLOOKUP($T33,'FO-DRE-01'!$A$7:$Q$10002,7,FALSE)) ->  | Z33: =IF(T33="","",VLOOKUP($T33,'FO-DRE-01'!$A$7:$Q$10002,8,FALSE)) ->  | AA33: =IF(T33="","",VLOOKUP($T33,'FO-DRE-01'!$A$7:$Q$10002,10,FALSE)) ->  | AB33: =IF(T33="","",VLOOKUP($T33,'FO-DRE-01'!$A$7:$Q$10002,11,FALSE)) ->  | AC33: =IF(T33="","",VLOOKUP($T33,'FO-DRE-01'!$A$7:$Q$10002,12,FALSE)) ->  | AD33: =IF(T33="","",VLOOKUP($T33,'FO-DRE-01'!$A$7:$Q$10002,13,FALSE)) ->  | AE33: =IF(T33="","",VLOOKUP($T33,'FO-DRE-01'!$A$7:$Q$10002,14,FALSE)) ->  | AF33: =IF(T33="","",VLOOKUP($T33,'FO-DRE-01'!$A$7:$Q$10002,15,FALSE)) ->  | AG33: =IF(T33="","",VLOOKUP($T33,'FO-DRE-01'!$A$7:$Q$10002,16,FALSE)) ->  | AH33: =IF(T33="","",VLOOKUP($T33,'FO-DRE-01'!$A$7:$Q$10002,17,FALSE)) ->  | AI33: W | BA33: 5000 | BD33: 25 | BF33: F/D | BG33: =IF(OR(F33="",AL33="",AT33=""),"F/D",IF(BR33>BI33,"SI","")) -> F/D | CA33: =VLOOKUP(AT33,Hoja1!$X$5:$Z$5390,3,TRUE) -> 1 | CC33: =VLOOKUP(AT33,Hoja1!$AF$5:$AH$5390,3,TRUE) -> 0.05 | CD33: =IF(L33=$CD$8, IF(AND(#REF!="Punto - Punto",AL33<=CE33,AL33<>"",AT33<>"",BQ33<=0.2),"CORRECTO", IF(AND(#REF!="Punto - Multipunto",AL33<=CF33,AL33<>"",AT33<>"",BQ33<=1),"CORRECTO","ERROR")),"") ->  | CE33: =VLOOKUP(AT33,Hoja1!$AF$5:$AH$5390,3,TRUE) -> 0.05 | CF33: =VLOOKUP(AT33,Hoja1!$AJ$5:$AL$5390,3,TRUE) -> 0.25 | CH33: =VLOOKUP(AT33,Hoja1!$AJ$5:$AL$5390,3,TRUE) -> 0.25 | CJ33: =VLOOKUP(AT33,Hoja1!$AB$5:$AD$5390,3,TRUE) -> 1 | CK33: CORRECTO | CL33: 0 | CN33: =IF(L33=$CN$8,IF(AND(#REF!<=0.25,#REF!<>""),"CORRECTO","ERROR"),"") ->  | CO33: =IF(L33=$CO$8,IF(AND(#REF!<=CP33,#REF!<>"",#REF!<>""),"CORRECTO","ERROR"),"") ->  | CP33: =VLOOKUP(#REF!,Hoja1!$X$5:$Z$5390,3,TRUE) ->  | CQ33: =IF(L33=$CQ$8,IF(AND(#REF!<=CR33,#REF!<>"",#REF!<>"",#REF!<=0.2),"CORRECTO","ERROR"),"") ->  | CR33: =VLOOKUP(#REF!,Hoja1!$AF$5:$AH$5390,3,TRUE) ->  | CS33: =IF(L33=$CS$8, IF(AND(#REF!="Punto - Punto",#REF!<=CT33,#REF!<>"",#REF!<>"",#REF!<=0.2),"CORRECTO", IF(AND(#REF!="Punto - Multipunto",#REF!<=CU33,#REF!<>"",#REF!<>"",#REF!<=1),"CORRECTO","ERROR")),"") ->  | CT33: =VLOOKUP(#REF!,Hoja1!$AF$5:$AH$5390,3,TRUE) ->  | CU33: =VLOOKUP(#REF!,Hoja1!$AJ$5:$AL$5390,3,TRUE) ->  | CV33: =IF(L33=$CV$8,IF(AND(#REF!<=CW33,#REF!<>"",#REF!<>"",#REF!<=1),"CORRECTO","ERROR"),"") ->  | CW33: =VLOOKUP(#REF!,Hoja1!$AJ$5:$AL$5390,3,TRUE) ->  | CX33: =IF(L33=$CX$8,IF(AND(#REF!<=CY33,#REF!<>"",#REF!<>""),"CORRECTO","ERROR"),"") ->  | CY33: =VLOOKUP(#REF!,Hoja1!$AB$5:$AD$5390,3,TRUE) ->  | CZ33: =IF(#REF!<=#REF!,"CORRECTO","ERROR") ->  | DE33: =CONCATENATE("0",#REF!,"°",IF(#REF!<10,CONCATENATE("0",#REF!),#REF!),"'",IF(ROUND(#REF!,0)=#REF!,IF(#REF!<10,CONCATENATE("0",#REF!,".00"),CONCATENATE(#REF!,".00")),IF(ROUND(#REF!*10,0)=#REF!*10,IF(#REF!<10,CONCATENATE("0",#REF!,"0"),CONCATENATE(#REF!,"0")),IF(#REF!<10,CONCATENATE("0",#REF!),#REF!))),"''",#REF!) ->  | DF33: =CONCATENATE(#REF!,"°",IF(#REF!<10,CONCATENATE("0",#REF!),#REF!),"'",IF(ROUND(#REF!,0)=#REF!,IF(#REF!<10,CONCATENATE("0",#REF!,".00"),CONCATENATE(#REF!,".00")),IF(ROUND(#REF!*10,0)=#REF!*10,IF(#REF!<10,CONCATENATE("0",#REF!,"0"),CONCATENATE(#REF!,"0")),IF(#REF!<10,CONCATENATE("0",#REF!),#REF!))),"''",#REF!) -> 

Sheet FO-DRE-16
A1: Código: FO-DRE-16 Versión: 01 | F1: FORMULARIO PARA ESTUDIO TECNICO DE EMISIONES DE RNI (CALCULO DE LA DISTANCIA DE SEGURIDAD)
F3: NOMBRE DE LA EMPRESA:
A4: No | B4: CODIGO DE ESTRUCTURA ASOCIADA | C4: SOBREPASA LÍMITES POBLACIONAL | D4: SOBREPASA LÍMITES OCUPACIONAL | F4: ESTACION REPETIDORA / FIJA | N4: =TODAY() -> 2016-10-24
F6: Slím A CONSIDERAR | H6: CÁLCULO DEL PIRE | K6: Slím TEÓRICO (W/m2)
K7: Distancia (m)
C8: Estación de Tx | D8: Estación de Tx | F8: Slím OCUPACIONAL (W/m2) | G8: Slím POBLACIONAL (W/m2) | H8: Pmax (W) | I8: Gmax | J8: PIRE (W) | K8: 2 | L8: 5 | M8: 10 | N8: 20 | O8: 50
A9: 1 | B9: ='FO-DRE-21'!BE9 -> s3 | C9: ='FO-DRE-21'!BF9 -> SI | D9: ='FO-DRE-21'!BG9 -> SI | F9: ='FO-DRE-21'!BH9 -> 25.75 | G9: ='FO-DRE-21'!BI9 -> 5.15 | H9: ='FO-DRE-21'!BO9 -> 25000 | I9: ='FO-DRE-21'!BP9 -> 334.9654392 | J9: ='FO-DRE-21'!BQ9 -> 8374135.979 | K9: ='FO-DRE-21'!BR9 -> 23331.03081 | L9: ='FO-DRE-21'!BS9 -> 19708.4678 | M9: ='FO-DRE-21'!BT9 -> 12678.09879 | N9: ='FO-DRE-21'!BU9 -> 5224.047566 | O9: ='FO-DRE-21'!BV9 -> 1021.193476 | P9: ='FO-DRE-21'!BW9 -> 0
A10: 2 | B10: ='FO-DRE-21'!BE10 -> S2 | C10: ='FO-DRE-21'!BF10 -> F/D | D10: ='FO-DRE-21'!BG10 -> F/D | F10: ='FO-DRE-21'!BH10 ->  | G10: ='FO-DRE-21'!BI10 ->  | H10: ='FO-DRE-21'!BO10 ->  | I10: ='FO-DRE-21'!BP10 ->  | J10: ='FO-DRE-21'!BQ10 ->  | K10: ='FO-DRE-21'!BR10 ->  | L10: ='FO-DRE-21'!BS10 ->  | M10: ='FO-DRE-21'!BT10 ->  | N10: ='FO-DRE-21'!BU10 ->  | O10: ='FO-DRE-21'!BV10 -> 
A11: 3 | B11: ='FO-DRE-21'!BE11 -> S3 | C11: ='FO-DRE-21'!BF11 -> F/D | D11: ='FO-DRE-21'!BG11 -> F/D | F11: ='FO-DRE-21'!BH11 ->  | G11: ='FO-DRE-21'!BI11 ->  | H11: ='FO-DRE-21'!BO11 ->  | I11: ='FO-DRE-21'!BP11 ->  | J11: ='FO-DRE-21'!BQ11 ->  | K11: ='FO-DRE-21'!BR11 ->  | L11: ='FO-DRE-21'!BS11 ->  | M11: ='FO-DRE-21'!BT11 ->  | N11: ='FO-DRE-21'!BU11 ->  | O11: ='FO-DRE-21'!BV11 -> 
A12: 4 | B12: ='FO-DRE-21'!BE12 -> S4 | C12: ='FO-DRE-21'!BF12 -> F/D | D12: ='FO-DRE-21'!BG12 -> F/D | F12: ='FO-DRE-21'!BH12 ->  | G12: ='FO-DRE-21'!BI12 ->  | H12: ='FO-DRE-21'!BO12 ->  | I12: ='FO-DRE-21'!BP12 ->  | J12: ='FO-DRE-21'!BQ12 ->  | K12: ='FO-DRE-21'!BR12 ->  | L12: ='FO-DRE-21'!BS12 ->  | M12: ='FO-DRE-21'!BT12 ->  | N12: ='FO-DRE-21'!BU12 ->  | O12: ='FO-DRE-21'!BV12 -> 
A13: 5 | B13: ='FO-DRE-21'!BE13 ->  | C13: ='FO-DRE-21'!BF13 -> F/D | D13: ='FO-DRE-21'!BG13 -> F/D | F13: ='FO-DRE-21'!BH13 ->  | G13: ='FO-DRE-21'!BI13 ->  | H13: ='FO-DRE-21'!BO13 ->  | I13: ='FO-DRE-21'!BP13 ->  | J13: ='FO-DRE-21'!BQ13 ->  | K13: ='FO-DRE-21'!BR13 ->  | L13: ='FO-DRE-21'!BS13 ->  | M13: ='FO-DRE-21'!BT13 ->  | N13: ='FO-DRE-21'!BU13 ->  | O13: ='FO-DRE-21'!BV13 -> 
A14: 6 | B14: ='FO-DRE-21'!BE14 ->  | C14: ='FO-DRE-21'!BF14 -> F/D | D14: ='FO-DRE-21'!BG14 -> F/D | F14: ='FO-DRE-21'!BH14 ->  | G14: ='FO-DRE-21'!BI14 ->  | H14: ='FO-DRE-21'!BO14 ->  | I14: ='FO-DRE-21'!BP14 ->  | J14: ='FO-DRE-21'!BQ14 ->  | K14: ='FO-DRE-21'!BR14 ->  | L14: ='FO-DRE-21'!BS14 ->  | M14: ='FO-DRE-21'!BT14 ->  | N14: ='FO-DRE-21'!BU14 ->  | O14: ='FO-DRE-21'!BV14 -> 
A15: 7 | B15: ='FO-DRE-21'!BE15 ->  | C15: ='FO-DRE-21'!BF15 -> F/D | D15: ='FO-DRE-21'!BG15 -> F/D | F15: ='FO-DRE-21'!BH15 ->  | G15: ='FO-DRE-21'!BI15 ->  | H15: ='FO-DRE-21'!BO15 ->  | I15: ='FO-DRE-21'!BP15 ->  | J15: ='FO-DRE-21'!BQ15 ->  | K15: ='FO-DRE-21'!BR15 ->  | L15: ='FO-DRE-21'!BS15 ->  | M15: ='FO-DRE-21'!BT15 ->  | N15: ='FO-DRE-21'!BU15 ->  | O15: ='FO-DRE-21'!BV15 -> 
A16: 8 | B16: ='FO-DRE-21'!BE16 ->  | C16: ='FO-DRE-21'!BF16 -> F/D | D16: ='FO-DRE-21'!BG16 -> F/D | F16: ='FO-DRE-21'!BH16 ->  | G16: ='FO-DRE-21'!BI16 ->  | H16: ='FO-DRE-21'!BO16 ->  | I16: ='FO-DRE-21'!BP16 ->  | J16: ='FO-DRE-21'!BQ16 ->  | K16: ='FO-DRE-21'!BR16 ->  | L16: ='FO-DRE-21'!BS16 ->  | M16: ='FO-DRE-21'!BT16 ->  | N16: ='FO-DRE-21'!BU16 ->  | O16: ='FO-DRE-21'!BV16 -> 
A17: 9 | B17: ='FO-DRE-21'!BE17 ->  | C17: ='FO-DRE-21'!BF17 -> F/D | D17: ='FO-DRE-21'!BG17 -> F/D | F17: ='FO-DRE-21'!BH17 ->  | G17: ='FO-DRE-21'!BI17 ->  | H17: ='FO-DRE-21'!BO17 ->  | I17: ='FO-DRE-21'!BP17 ->  | J17: ='FO-DRE-21'!BQ17 ->  | K17: ='FO-DRE-21'!BR17 ->  | L17: ='FO-DRE-21'!BS17 ->  | M17: ='FO-DRE-21'!BT17 ->  | N17: ='FO-DRE-21'!BU17 ->  | O17: ='FO-DRE-21'!BV17 -> 
A18: 10 | B18: ='FO-DRE-21'!BE18 ->  | C18: ='FO-DRE-21'!BF18 -> F/D | D18: ='FO-DRE-21'!BG18 -> F/D | F18: ='FO-DRE-21'!BH18 ->  | G18: ='FO-DRE-21'!BI18 ->  | H18: ='FO-DRE-21'!BO18 ->  | I18: ='FO-DRE-21'!BP18 ->  | J18: ='FO-DRE-21'!BQ18 ->  | K18: ='FO-DRE-21'!BR18 ->  | L18: ='FO-DRE-21'!BS18 ->  | M18: ='FO-DRE-21'!BT18 ->  | N18: ='FO-DRE-21'!BU18 ->  | O18: ='FO-DRE-21'!BV18 -> 
A19: 11 | B19: ='FO-DRE-21'!BE19 ->  | C19: ='FO-DRE-21'!BF19 -> F/D | D19: ='FO-DRE-21'!BG19 -> F/D | F19: ='FO-DRE-21'!BH19 ->  | G19: ='FO-DRE-21'!BI19 ->  | H19: ='FO-DRE-21'!BO19 ->  | I19: ='FO-DRE-21'!BP19 ->  | J19: ='FO-DRE-21'!BQ19 ->  | K19: ='FO-DRE-21'!BR19 ->  | L19: ='FO-DRE-21'!BS19 ->  | M19: ='FO-DRE-21'!BT19 ->  | N19: ='FO-DRE-21'!BU19 ->  | O19: ='FO-DRE-21'!BV19 -> 
A20: 12 | B20: ='FO-DRE-21'!BE20 ->  | C20: ='FO-DRE-21'!BF20 -> F/D | D20: ='FO-DRE-21'!BG20 -> F/D | F20: ='FO-DRE-21'!BH20 ->  | G20: ='FO-DRE-21'!BI20 ->  | H20: ='FO-DRE-21'!BO20 ->  | I20: ='FO-DRE-21'!BP20 ->  | J20: ='FO-DRE-21'!BQ20 ->  | K20: ='FO-DRE-21'!BR20 ->  | L20: ='FO-DRE-21'!BS20 ->  | M20: ='FO-DRE-21'!BT20 ->  | N20: ='FO-DRE-21'!BU20 ->  | O20: ='FO-DRE-21'!BV20 -> 
A21: 13 | B21: ='FO-DRE-21'!BE21 ->  | C21: ='FO-DRE-21'!BF21 -> F/D | D21: ='FO-DRE-21'!BG21 -> F/D | F21: ='FO-DRE-21'!BH21 ->  | G21: ='FO-DRE-21'!BI21 ->  | H21: ='FO-DRE-21'!BO21 ->  | I21: ='FO-DRE-21'!BP21 ->  | J21: ='FO-DRE-21'!BQ21 ->  | K21: ='FO-DRE-21'!BR21 ->  | L21: ='FO-DRE-21'!BS21 ->  | M21: ='FO-DRE-21'!BT21 ->  | N21: ='FO-DRE-21'!BU21 ->  | O21: ='FO-DRE-21'!BV21 -> 
A22: 14 | B22: ='FO-DRE-21'!BE22 ->  | C22: ='FO-DRE-21'!BF22 -> F/D | D22: ='FO-DRE-21'!BG22 -> F/D | F22: ='FO-DRE-21'!BH22 ->  | G22: ='FO-DRE-21'!BI22 ->  | H22: ='FO-DRE-21'!BO22 ->  | I22: ='FO-DRE-21'!BP22 ->  | J22: ='FO-DRE-21'!BQ22 ->  | K22: ='FO-DRE-21'!BR22 ->  | L22: ='FO-DRE-21'!BS22 ->  | M22: ='FO-DRE-21'!BT22 ->  | N22: ='FO-DRE-21'!BU22 ->  | O22: ='FO-DRE-21'!BV22 -> 
A23: 15 | B23: ='FO-DRE-21'!BE23 ->  | C23: ='FO-DRE-21'!BF23 -> F/D | D23: ='FO-DRE-21'!BG23 -> F/D | F23: ='FO-DRE-21'!BH23 ->  | G23: ='FO-DRE-21'!BI23 ->  | H23: ='FO-DRE-21'!BO23 ->  | I23: ='FO-DRE-21'!BP23 ->  | J23: ='FO-DRE-21'!BQ23 ->  | K23: ='FO-DRE-21'!BR23 ->  | L23: ='FO-DRE-21'!BS23 ->  | M23: ='FO-DRE-21'!BT23 ->  | N23: ='FO-DRE-21'!BU23 ->  | O23: ='FO-DRE-21'!BV23 -> 
A24: 16 | B24: ='FO-DRE-21'!BE24 ->  | C24: ='FO-DRE-21'!BF24 -> F/D | D24: ='FO-DRE-21'!BG24 -> F/D | F24: ='FO-DRE-21'!BH24 ->  | G24: ='FO-DRE-21'!BI24 ->  | H24: ='FO-DRE-21'!BO24 ->  | I24: ='FO-DRE-21'!BP24 ->  | J24: ='FO-DRE-21'!BQ24 ->  | K24: ='FO-DRE-21'!BR24 ->  | L24: ='FO-DRE-21'!BS24 ->  | M24: ='FO-DRE-21'!BT24 ->  | N24: ='FO-DRE-21'!BU24 ->  | O24: ='FO-DRE-21'!BV24 -> 
A25: 17 | B25: ='FO-DRE-21'!BE25 ->  | C25: ='FO-DRE-21'!BF25 -> F/D | D25: ='FO-DRE-21'!BG25 -> F/D | F25: ='FO-DRE-21'!BH25 ->  | G25: ='FO-DRE-21'!BI25 ->  | H25: ='FO-DRE-21'!BO25 ->  | I25: ='FO-DRE-21'!BP25 ->  | J25: ='FO-DRE-21'!BQ25 ->  | K25: ='FO-DRE-21'!BR25 ->  | L25: ='FO-DRE-21'!BS25 ->  | M25: ='FO-DRE-21'!BT25 ->  | N25: ='FO-DRE-21'!BU25 ->  | O25: ='FO-DRE-21'!BV25 -> 
A26: 18 | B26: ='FO-DRE-21'!BE26 ->  | C26: ='FO-DRE-21'!BF26 -> F/D | D26: ='FO-DRE-21'!BG26 -> F/D | F26: ='FO-DRE-21'!BH26 ->  | G26: ='FO-DRE-21'!BI26 ->  | H26: ='FO-DRE-21'!BO26 ->  | I26: ='FO-DRE-21'!BP26 ->  | J26: ='FO-DRE-21'!BQ26 ->  | K26: ='FO-DRE-21'!BR26 ->  | L26: ='FO-DRE-21'!BS26 ->  | M26: ='FO-DRE-21'!BT26 ->  | N26: ='FO-DRE-21'!BU26 ->  | O26: ='FO-DRE-21'!BV26 -> 
A27: 19 | B27: ='FO-DRE-21'!BE27 ->  | C27: ='FO-DRE-21'!BF27 -> F/D | D27: ='FO-DRE-21'!BG27 -> F/D | F27: ='FO-DRE-21'!BH27 ->  | G27: ='FO-DRE-21'!BI27 ->  | H27: ='FO-DRE-21'!BO27 ->  | I27: ='FO-DRE-21'!BP27 ->  | J27: ='FO-DRE-21'!BQ27 ->  | K27: ='FO-DRE-21'!BR27 ->  | L27: ='FO-DRE-21'!BS27 ->  | M27: ='FO-DRE-21'!BT27 ->  | N27: ='FO-DRE-21'!BU27 ->  | O27: ='FO-DRE-21'!BV27 -> 
A28: 20 | B28: ='FO-DRE-21'!BE28 ->  | C28: ='FO-DRE-21'!BF28 -> F/D | D28: ='FO-DRE-21'!BG28 -> F/D | F28: ='FO-DRE-21'!BH28 ->  | G28: ='FO-DRE-21'!BI28 ->  | H28: ='FO-DRE-21'!BO28 ->  | I28: ='FO-DRE-21'!BP28 ->  | J28: ='FO-DRE-21'!BQ28 ->  | K28: ='FO-DRE-21'!BR28 ->  | L28: ='FO-DRE-21'!BS28 ->  | M28: ='FO-DRE-21'!BT28 ->  | N28: ='FO-DRE-21'!BU28 ->  | O28: ='FO-DRE-21'!BV28 -> 
A29: 21 | B29: ='FO-DRE-21'!BE29 ->  | C29: ='FO-DRE-21'!BF29 -> F/D | D29: ='FO-DRE-21'!BG29 -> F/D | F29: ='FO-DRE-21'!BH29 ->  | G29: ='FO-DRE-21'!BI29 ->  | H29: ='FO-DRE-21'!BO29 ->  | I29: ='FO-DRE-21'!BP29 ->  | J29: ='FO-DRE-21'!BQ29 ->  | K29: ='FO-DRE-21'!BR29 ->  | L29: ='FO-DRE-21'!BS29 ->  | M29: ='FO-DRE-21'!BT29 ->  | N29: ='FO-DRE-21'!BU29 ->  | O29: ='FO-DRE-21'!BV29 -> 
A30: 22 | B30: ='FO-DRE-21'!BE30 ->  | C30: ='FO-DRE-21'!BF30 -> F/D | D30: ='FO-DRE-21'!BG30 -> F/D | F30: ='FO-DRE-21'!BH30 ->  | G30: ='FO-DRE-21'!BI30 ->  | H30: ='FO-DRE-21'!BO30 ->  | I30: ='FO-DRE-21'!BP30 ->  | J30: ='FO-DRE-21'!BQ30 ->  | K30: ='FO-DRE-21'!BR30 ->  | L30: ='FO-DRE-21'!BS30 ->  | M30: ='FO-DRE-21'!BT30 ->  | N30: ='FO-DRE-21'!BU30 ->  | O30: ='FO-DRE-21'!BV30 -> 
A31: 23 | B31: ='FO-DRE-21'!BE31 ->  | C31: ='FO-DRE-21'!BF31 -> F/D | D31: ='FO-DRE-21'!BG31 -> F/D | F31: ='FO-DRE-21'!BH31 ->  | G31: ='FO-DRE-21'!BI31 ->  | H31: ='FO-DRE-21'!BO31 ->  | I31: ='FO-DRE-21'!BP31 ->  | J31: ='FO-DRE-21'!BQ31 ->  | K31: ='FO-DRE-21'!BR31 ->  | L31: ='FO-DRE-21'!BS31 ->  | M31: ='FO-DRE-21'!BT31 ->  | N31: ='FO-DRE-21'!BU31 ->  | O31: ='FO-DRE-21'!BV31 -> 
A32: 24 | B32: ='FO-DRE-21'!BE32 ->  | C32: ='FO-DRE-21'!BF32 -> F/D | D32: ='FO-DRE-21'!BG32 -> F/D | F32: ='FO-DRE-21'!BH32 ->  | G32: ='FO-DRE-21'!BI32 ->  | H32: ='FO-DRE-21'!BO32 ->  | I32: ='FO-DRE-21'!BP32 ->  | J32: ='FO-DRE-21'!BQ32 ->  | K32: ='FO-DRE-21'!BR32 ->  | L32: ='FO-DRE-21'!BS32 ->  | M32: ='FO-DRE-21'!BT32 ->  | N32: ='FO-DRE-21'!BU32 ->  | O32: ='FO-DRE-21'!BV32 -> 
A33: 25 | B33: ='FO-DRE-21'!BE33 ->  | C33: ='FO-DRE-21'!BF33 -> F/D | D33: ='FO-DRE-21'!BG33 -> F/D | F33: ='FO-DRE-21'!BH33 ->  | G33: ='FO-DRE-21'!BI33 ->  | H33: ='FO-DRE-21'!BO33 ->  | I33: ='FO-DRE-21'!BP33 ->  | J33: ='FO-DRE-21'!BQ33 ->  | K33: ='FO-DRE-21'!BR33 ->  | L33: ='FO-DRE-21'!BS33 ->  | M33: ='FO-DRE-21'!BT33 ->  | N33: ='FO-DRE-21'!BU33 ->  | O33: ='FO-DRE-21'!BV33 -> 
A34: 26 | B34: ='FO-DRE-21'!#REF! ->  | C34: ='FO-DRE-21'!#REF! ->  | D34: ='FO-DRE-21'!#REF! ->  | F34: ='FO-DRE-21'!#REF! ->  | G34: ='FO-DRE-21'!#REF! ->  | H34: ='FO-DRE-21'!#REF! ->  | I34: ='FO-DRE-21'!#REF! ->  | J34: ='FO-DRE-21'!#REF! ->  | K34: ='FO-DRE-21'!#REF! ->  | L34: ='FO-DRE-21'!#REF! ->  | M34: ='FO-DRE-21'!#REF! ->  | N34: ='FO-DRE-21'!#REF! ->  | O34: ='FO-DRE-21'!#REF! -> 
A35: 27 | B35: ='FO-DRE-21'!#REF! ->  | C35: ='FO-DRE-21'!#REF! ->  | D35: ='FO-DRE-21'!#REF! ->  | F35: ='FO-DRE-21'!#REF! ->  | G35: ='FO-DRE-21'!#REF! ->  | H35: ='FO-DRE-21'!#REF! ->  | I35: ='FO-DRE-21'!#REF! ->  | J35: ='FO-DRE-21'!#REF! ->  | K35: ='FO-DRE-21'!#REF! ->  | L35: ='FO-DRE-21'!#REF! ->  | M35: ='FO-DRE-21'!#REF! ->  | N35: ='FO-DRE-21'!#REF! ->  | O35: ='FO-DRE-21'!#REF! -> 
A36: 28 | B36: ='FO-DRE-21'!#REF! ->  | C36: ='FO-DRE-21'!#REF! ->  | D36: ='FO-DRE-21'!#REF! ->  | F36: ='FO-DRE-21'!#REF! ->  | G36: ='FO-DRE-21'!#REF! ->  | H36: ='FO-DRE-21'!#REF! ->  | I36: ='FO-DRE-21'!#REF! ->  | J36: ='FO-DRE-21'!#REF! ->  | K36: ='FO-DRE-21'!#REF! ->  | L36: ='FO-DRE-21'!#REF! ->  | M36: ='FO-DRE-21'!#REF! ->  | N36: ='FO-DRE-21'!#REF! ->  | O36: ='FO-DRE-21'!#REF! -> 
A37: 29 | B37: ='FO-DRE-21'!#REF! ->  | C37: ='FO-DRE-21'!#REF! ->  | D37: ='FO-DRE-21'!#REF! ->  | F37: ='FO-DRE-21'!#REF! ->  | G37: ='FO-DRE-21'!#REF! ->  | H37: ='FO-DRE-21'!#REF! ->  | I37: ='FO-DRE-21'!#REF! ->  | J37: ='FO-DRE-21'!#REF! ->  | K37: ='FO-DRE-21'!#REF! ->  | L37: ='FO-DRE-21'!#REF! ->  | M37: ='FO-DRE-21'!#REF! ->  | N37: ='FO-DRE-21'!#REF! ->  | O37: ='FO-DRE-21'!#REF! -> 
A38: 30 | B38: ='FO-DRE-21'!#REF! ->  | C38: ='FO-DRE-21'!#REF! ->  | D38: ='FO-DRE-21'!#REF! ->  | F38: ='FO-DRE-21'!#REF! ->  | G38: ='FO-DRE-21'!#REF! ->  | H38: ='FO-DRE-21'!#REF! ->  | I38: ='FO-DRE-21'!#REF! ->  | J38: ='FO-DRE-21'!#REF! ->  | K38: ='FO-DRE-21'!#REF! ->  | L38: ='FO-DRE-21'!#REF! ->  | M38: ='FO-DRE-21'!#REF! ->  | N38: ='FO-DRE-21'!#REF! ->  | O38: ='FO-DRE-21'!#REF! -> 
A39: 31 | B39: ='FO-DRE-21'!#REF! ->  | C39: ='FO-DRE-21'!#REF! ->  | D39: ='FO-DRE-21'!#REF! ->  | F39: ='FO-DRE-21'!#REF! ->  | G39: ='FO-DRE-21'!#REF! ->  | H39: ='FO-DRE-21'!#REF! ->  | I39: ='FO-DRE-21'!#REF! ->  | J39: ='FO-DRE-21'!#REF! ->  | K39: ='FO-DRE-21'!#REF! ->  | L39: ='FO-DRE-21'!#REF! ->  | M39: ='FO-DRE-21'!#REF! ->  | N39: ='FO-DRE-21'!#REF! ->  | O39: ='FO-DRE-21'!#REF! -> 
A40: 32 | B40: ='FO-DRE-21'!#REF! ->  | C40: ='FO-DRE-21'!#REF! ->  | D40: ='FO-DRE-21'!#REF! ->  | F40: ='FO-DRE-21'!#REF! ->  | G40: ='FO-DRE-21'!#REF! ->  | H40: ='FO-DRE-21'!#REF! ->  | I40: ='FO-DRE-21'!#REF! ->  | J40: ='FO-DRE-21'!#REF! ->  | K40: ='FO-DRE-21'!#REF! ->  | L40: ='FO-DRE-21'!#REF! ->  | M40: ='FO-DRE-21'!#REF! ->  | N40: ='FO-DRE-21'!#REF! ->  | O40: ='FO-DRE-21'!#REF! -> 
A41: 33 | B41: ='FO-DRE-21'!#REF! ->  | C41: ='FO-DRE-21'!#REF! ->  | D41: ='FO-DRE-21'!#REF! ->  | F41: ='FO-DRE-21'!#REF! ->  | G41: ='FO-DRE-21'!#REF! ->  | H41: ='FO-DRE-21'!#REF! ->  | I41: ='FO-DRE-21'!#REF! ->  | J41: ='FO-DRE-21'!#REF! ->  | K41: ='FO-DRE-21'!#REF! ->  | L41: ='FO-DRE-21'!#REF! ->  | M41: ='FO-DRE-21'!#REF! ->  | N41: ='FO-DRE-21'!#REF! ->  | O41: ='FO-DRE-21'!#REF! -> 
A42: 34 | B42: ='FO-DRE-21'!#REF! ->  | C42: ='FO-DRE-21'!#REF! ->  | D42: ='FO-DRE-21'!#REF! ->  | F42: ='FO-DRE-21'!#REF! ->  | G42: ='FO-DRE-21'!#REF! ->  | H42: ='FO-DRE-21'!#REF! ->  | I42: ='FO-DRE-21'!#REF! ->  | J42: ='FO-DRE-21'!#REF! ->  | K42: ='FO-DRE-21'!#REF! ->  | L42: ='FO-DRE-21'!#REF! ->  | M42: ='FO-DRE-21'!#REF! ->  | N42: ='FO-DRE-21'!#REF! ->  | O42: ='FO-DRE-21'!#REF! -> 
A43: 35 | B43: ='FO-DRE-21'!#REF! ->  | C43: ='FO-DRE-21'!#REF! ->  | D43: ='FO-DRE-21'!#REF! ->  | F43: ='FO-DRE-21'!#REF! ->  | G43: ='FO-DRE-21'!#REF! ->  | H43: ='FO-DRE-21'!#REF! ->  | I43: ='FO-DRE-21'!#REF! ->  | J43: ='FO-DRE-21'!#REF! ->  | K43: ='FO-DRE-21'!#REF! ->  | L43: ='FO-DRE-21'!#REF! ->  | M43: ='FO-DRE-21'!#REF! ->  | N43: ='FO-DRE-21'!#REF! ->  | O43: ='FO-DRE-21'!#REF! -> 
A44: 36 | B44: ='FO-DRE-21'!#REF! ->  | C44: ='FO-DRE-21'!#REF! ->  | D44: ='FO-DRE-21'!#REF! ->  | F44: ='FO-DRE-21'!#REF! ->  | G44: ='FO-DRE-21'!#REF! ->  | H44: ='FO-DRE-21'!#REF! ->  | I44: ='FO-DRE-21'!#REF! ->  | J44: ='FO-DRE-21'!#REF! ->  | K44: ='FO-DRE-21'!#REF! ->  | L44: ='FO-DRE-21'!#REF! ->  | M44: ='FO-DRE-21'!#REF! ->  | N44: ='FO-DRE-21'!#REF! ->  | O44: ='FO-DRE-21'!#REF! -> 
A45: 37 | B45: ='FO-DRE-21'!#REF! ->  | C45: ='FO-DRE-21'!#REF! ->  | D45: ='FO-DRE-21'!#REF! ->  | F45: ='FO-DRE-21'!#REF! ->  | G45: ='FO-DRE-21'!#REF! ->  | H45: ='FO-DRE-21'!#REF! ->  | I45: ='FO-DRE-21'!#REF! ->  | J45: ='FO-DRE-21'!#REF! ->  | K45: ='FO-DRE-21'!#REF! ->  | L45: ='FO-DRE-21'!#REF! ->  | M45: ='FO-DRE-21'!#REF! ->  | N45: ='FO-DRE-21'!#REF! ->  | O45: ='FO-DRE-21'!#REF! -> 
A46: 38 | B46: ='FO-DRE-21'!#REF! ->  | C46: ='FO-DRE-21'!#REF! ->  | D46: ='FO-DRE-21'!#REF! ->  | F46: ='FO-DRE-21'!#REF! ->  | G46: ='FO-DRE-21'!#REF! ->  | H46: ='FO-DRE-21'!#REF! ->  | I46: ='FO-DRE-21'!#REF! ->  | J46: ='FO-DRE-21'!#REF! ->  | K46: ='FO-DRE-21'!#REF! ->  | L46: ='FO-DRE-21'!#REF! ->  | M46: ='FO-DRE-21'!#REF! ->  | N46: ='FO-DRE-21'!#REF! ->  | O46: ='FO-DRE-21'!#REF! -> 
A47: 39 | B47: ='FO-DRE-21'!#REF! ->  | C47: ='FO-DRE-21'!#REF! ->  | D47: ='FO-DRE-21'!#REF! ->  | F47: ='FO-DRE-21'!#REF! ->  | G47: ='FO-DRE-21'!#REF! ->  | H47: ='FO-DRE-21'!#REF! ->  | I47: ='FO-DRE-21'!#REF! ->  | J47: ='FO-DRE-21'!#REF! ->  | K47: ='FO-DRE-21'!#REF! ->  | L47: ='FO-DRE-21'!#REF! ->  | M47: ='FO-DRE-21'!#REF! ->  | N47: ='FO-DRE-21'!#REF! ->  | O47: ='FO-DRE-21'!#REF! -> 
A48: 40 | B48: ='FO-DRE-21'!#REF! ->  | C48: ='FO-DRE-21'!#REF! ->  | D48: ='FO-DRE-21'!#REF! ->  | F48: ='FO-DRE-21'!#REF! ->  | G48: ='FO-DRE-21'!#REF! ->  | H48: ='FO-DRE-21'!#REF! ->  | I48: ='FO-DRE-21'!#REF! ->  | J48: ='FO-DRE-21'!#REF! ->  | K48: ='FO-DRE-21'!#REF! ->  | L48: ='FO-DRE-21'!#REF! ->  | M48: ='FO-DRE-21'!#REF! ->  | N48: ='FO-DRE-21'!#REF! ->  | O48: ='FO-DRE-21'!#REF! -> 
A49: 41 | B49: ='FO-DRE-21'!#REF! ->  | C49: ='FO-DRE-21'!#REF! ->  | D49: ='FO-DRE-21'!#REF! ->  | F49: ='FO-DRE-21'!#REF! ->  | G49: ='FO-DRE-21'!#REF! ->  | H49: ='FO-DRE-21'!#REF! ->  | I49: ='FO-DRE-21'!#REF! ->  | J49: ='FO-DRE-21'!#REF! ->  | K49: ='FO-DRE-21'!#REF! ->  | L49: ='FO-DRE-21'!#REF! ->  | M49: ='FO-DRE-21'!#REF! ->  | N49: ='FO-DRE-21'!#REF! ->  | O49: ='FO-DRE-21'!#REF! -> 
A50: 42 | B50: ='FO-DRE-21'!#REF! ->  | C50: ='FO-DRE-21'!#REF! ->  | D50: ='FO-DRE-21'!#REF! ->  | F50: ='FO-DRE-21'!#REF! ->  | G50: ='FO-DRE-21'!#REF! ->  | H50: ='FO-DRE-21'!#REF! ->  | I50: ='FO-DRE-21'!#REF! ->  | J50: ='FO-DRE-21'!#REF! ->  | K50: ='FO-DRE-21'!#REF! ->  | L50: ='FO-DRE-21'!#REF! ->  | M50: ='FO-DRE-21'!#REF! ->  | N50: ='FO-DRE-21'!#REF! ->  | O50: ='FO-DRE-21'!#REF! -> 
A51: 43 | B51: ='FO-DRE-21'!#REF! ->  | C51: ='FO-DRE-21'!#REF! ->  | D51: ='FO-DRE-21'!#REF! ->  | F51: ='FO-DRE-21'!#REF! ->  | G51: ='FO-DRE-21'!#REF! ->  | H51: ='FO-DRE-21'!#REF! ->  | I51: ='FO-DRE-21'!#REF! ->  | J51: ='FO-DRE-21'!#REF! ->  | K51: ='FO-DRE-21'!#REF! ->  | L51: ='FO-DRE-21'!#REF! ->  | M51: ='FO-DRE-21'!#REF! ->  | N51: ='FO-DRE-21'!#REF! ->  | O51: ='FO-DRE-21'!#REF! -> 
A52: 44 | B52: ='FO-DRE-21'!#REF! ->  | C52: ='FO-DRE-21'!#REF! ->  | D52: ='FO-DRE-21'!#REF! ->  | F52: ='FO-DRE-21'!#REF! ->  | G52: ='FO-DRE-21'!#REF! ->  | H52: ='FO-DRE-21'!#REF! ->  | I52: ='FO-DRE-21'!#REF! ->  | J52: ='FO-DRE-21'!#REF! ->  | K52: ='FO-DRE-21'!#REF! ->  | L52: ='FO-DRE-21'!#REF! ->  | M52: ='FO-DRE-21'!#REF! ->  | N52: ='FO-DRE-21'!#REF! ->  | O52: ='FO-DRE-21'!#REF! -> 
A53: 45 | B53: ='FO-DRE-21'!#REF! ->  | C53: ='FO-DRE-21'!#REF! ->  | D53: ='FO-DRE-21'!#REF! ->  | F53: ='FO-DRE-21'!#REF! ->  | G53: ='FO-DRE-21'!#REF! ->  | H53: ='FO-DRE-21'!#REF! ->  | I53: ='FO-DRE-21'!#REF! ->  | J53: ='FO-DRE-21'!#REF! ->  | K53: ='FO-DRE-21'!#REF! ->  | L53: ='FO-DRE-21'!#REF! ->  | M53: ='FO-DRE-21'!#REF! ->  | N53: ='FO-DRE-21'!#REF! ->  | O53: ='FO-DRE-21'!#REF! -> 
A54: 46 | B54: ='FO-DRE-21'!#REF! ->  | C54: ='FO-DRE-21'!#REF! ->  | D54: ='FO-DRE-21'!#REF! ->  | F54: ='FO-DRE-21'!#REF! ->  | G54: ='FO-DRE-21'!#REF! ->  | H54: ='FO-DRE-21'!#REF! ->  | I54: ='FO-DRE-21'!#REF! ->  | J54: ='FO-DRE-21'!#REF! ->  | K54: ='FO-DRE-21'!#REF! ->  | L54: ='FO-DRE-21'!#REF! ->  | M54: ='FO-DRE-21'!#REF! ->  | N54: ='FO-DRE-21'!#REF! ->  | O54: ='FO-DRE-21'!#REF! -> 
A55: 47 | B55: ='FO-DRE-21'!#REF! ->  | C55: ='FO-DRE-21'!#REF! ->  | D55: ='FO-DRE-21'!#REF! ->  | F55: ='FO-DRE-21'!#REF! ->  | G55: ='FO-DRE-21'!#REF! ->  | H55: ='FO-DRE-21'!#REF! ->  | I55: ='FO-DRE-21'!#REF! ->  | J55: ='FO-DRE-21'!#REF! ->  | K55: ='FO-DRE-21'!#REF! ->  | L55: ='FO-DRE-21'!#REF! ->  | M55: ='FO-DRE-21'!#REF! ->  | N55: ='FO-DRE-21'!#REF! ->  | O55: ='FO-DRE-21'!#REF! -> 
A56: 48 | B56: ='FO-DRE-21'!#REF! ->  | C56: ='FO-DRE-21'!#REF! ->  | D56: ='FO-DRE-21'!#REF! ->  | F56: ='FO-DRE-21'!#REF! ->  | G56: ='FO-DRE-21'!#REF! ->  | H56: ='FO-DRE-21'!#REF! ->  | I56: ='FO-DRE-21'!#REF! ->  | J56: ='FO-DRE-21'!#REF! ->  | K56: ='FO-DRE-21'!#REF! ->  | L56: ='FO-DRE-21'!#REF! ->  | M56: ='FO-DRE-21'!#REF! ->  | N56: ='FO-DRE-21'!#REF! ->  | O56: ='FO-DRE-21'!#REF! -> 
A57: 49 | B57: ='FO-DRE-21'!#REF! ->  | C57: ='FO-DRE-21'!#REF! ->  | D57: ='FO-DRE-21'!#REF! ->  | F57: ='FO-DRE-21'!#REF! ->  | G57: ='FO-DRE-21'!#REF! ->  | H57: ='FO-DRE-21'!#REF! ->  | I57: ='FO-DRE-21'!#REF! ->  | J57: ='FO-DRE-21'!#REF! ->  | K57: ='FO-DRE-21'!#REF! ->  | L57: ='FO-DRE-21'!#REF! ->  | M57: ='FO-DRE-21'!#REF! ->  | N57: ='FO-DRE-21'!#REF! ->  | O57: ='FO-DRE-21'!#REF! -> 
A58: 50 | B58: ='FO-DRE-21'!#REF! ->  | C58: ='FO-DRE-21'!#REF! ->  | D58: ='FO-DRE-21'!#REF! ->  | F58: ='FO-DRE-21'!#REF! ->  | G58: ='FO-DRE-21'!#REF! ->  | H58: ='FO-DRE-21'!#REF! ->  | I58: ='FO-DRE-21'!#REF! ->  | J58: ='FO-DRE-21'!#REF! ->  | K58: ='FO-DRE-21'!#REF! ->  | L58: ='FO-DRE-21'!#REF! ->  | M58: ='FO-DRE-21'!#REF! ->  | N58: ='FO-DRE-21'!#REF! ->  | O58: ='FO-DRE-21'!#REF! -> 
A59: 51 | B59: ='FO-DRE-21'!#REF! ->  | C59: ='FO-DRE-21'!#REF! ->  | D59: ='FO-DRE-21'!#REF! ->  | F59: ='FO-DRE-21'!#REF! ->  | G59: ='FO-DRE-21'!#REF! ->  | H59: ='FO-DRE-21'!#REF! ->  | I59: ='FO-DRE-21'!#REF! ->  | J59: ='FO-DRE-21'!#REF! ->  | K59: ='FO-DRE-21'!#REF! ->  | L59: ='FO-DRE-21'!#REF! ->  | M59: ='FO-DRE-21'!#REF! ->  | N59: ='FO-DRE-21'!#REF! ->  | O59: ='FO-DRE-21'!#REF! -> 
A60: 52 | B60: ='FO-DRE-21'!#REF! ->  | C60: ='FO-DRE-21'!#REF! ->  | D60: ='FO-DRE-21'!#REF! ->  | F60: ='FO-DRE-21'!#REF! ->  | G60: ='FO-DRE-21'!#REF! ->  | H60: ='FO-DRE-21'!#REF! ->  | I60: ='FO-DRE-21'!#REF! ->  | J60: ='FO-DRE-21'!#REF! ->  | K60: ='FO-DRE-21'!#REF! ->  | L60: ='FO-DRE-21'!#REF! ->  | M60: ='FO-DRE-21'!#REF! ->  | N60: ='FO-DRE-21'!#REF! ->  | O60: ='FO-DRE-21'!#REF! -> 
A61: 53 | B61: ='FO-DRE-21'!#REF! ->  | C61: ='FO-DRE-21'!#REF! ->  | D61: ='FO-DRE-21'!#REF! ->  | F61: ='FO-DRE-21'!#REF! ->  | G61: ='FO-DRE-21'!#REF! ->  | H61: ='FO-DRE-21'!#REF! ->  | I61: ='FO-DRE-21'!#REF! ->  | J61: ='FO-DRE-21'!#REF! ->  | K61: ='FO-DRE-21'!#REF! ->  | L61: ='FO-DRE-21'!#REF! ->  | M61: ='FO-DRE-21'!#REF! ->  | N61: ='FO-DRE-21'!#REF! ->  | O61: ='FO-DRE-21'!#REF! -> 
A62: 54 | B62: ='FO-DRE-21'!#REF! ->  | C62: ='FO-DRE-21'!#REF! ->  | D62: ='FO-DRE-21'!#REF! ->  | F62: ='FO-DRE-21'!#REF! ->  | G62: ='FO-DRE-21'!#REF! ->  | H62: ='FO-DRE-21'!#REF! ->  | I62: ='FO-DRE-21'!#REF! ->  | J62: ='FO-DRE-21'!#REF! ->  | K62: ='FO-DRE-21'!#REF! ->  | L62: ='FO-DRE-21'!#REF! ->  | M62: ='FO-DRE-21'!#REF! ->  | N62: ='FO-DRE-21'!#REF! ->  | O62: ='FO-DRE-21'!#REF! -> 
A63: 55 | B63: ='FO-DRE-21'!#REF! ->  | C63: ='FO-DRE-21'!#REF! ->  | D63: ='FO-DRE-21'!#REF! ->  | F63: ='FO-DRE-21'!#REF! ->  | G63: ='FO-DRE-21'!#REF! ->  | H63: ='FO-DRE-21'!#REF! ->  | I63: ='FO-DRE-21'!#REF! ->  | J63: ='FO-DRE-21'!#REF! ->  | K63: ='FO-DRE-21'!#REF! ->  | L63: ='FO-DRE-21'!#REF! ->  | M63: ='FO-DRE-21'!#REF! ->  | N63: ='FO-DRE-21'!#REF! ->  | O63: ='FO-DRE-21'!#REF! -> 
A64: 56 | B64: ='FO-DRE-21'!#REF! ->  | C64: ='FO-DRE-21'!#REF! ->  | D64: ='FO-DRE-21'!#REF! ->  | F64: ='FO-DRE-21'!#REF! ->  | G64: ='FO-DRE-21'!#REF! ->  | H64: ='FO-DRE-21'!#REF! ->  | I64: ='FO-DRE-21'!#REF! ->  | J64: ='FO-DRE-21'!#REF! ->  | K64: ='FO-DRE-21'!#REF! ->  | L64: ='FO-DRE-21'!#REF! ->  | M64: ='FO-DRE-21'!#REF! ->  | N64: ='FO-DRE-21'!#REF! ->  | O64: ='FO-DRE-21'!#REF! -> 
A65: 57 | B65: ='FO-DRE-21'!#REF! ->  | C65: ='FO-DRE-21'!#REF! ->  | D65: ='FO-DRE-21'!#REF! ->  | F65: ='FO-DRE-21'!#REF! ->  | G65: ='FO-DRE-21'!#REF! ->  | H65: ='FO-DRE-21'!#REF! ->  | I65: ='FO-DRE-21'!#REF! ->  | J65: ='FO-DRE-21'!#REF! ->  | K65: ='FO-DRE-21'!#REF! ->  | L65: ='FO-DRE-21'!#REF! ->  | M65: ='FO-DRE-21'!#REF! ->  | N65: ='FO-DRE-21'!#REF! ->  | O65: ='FO-DRE-21'!#REF! -> 
A66: 58 | B66: ='FO-DRE-21'!#REF! ->  | C66: ='FO-DRE-21'!#REF! ->  | D66: ='FO-DRE-21'!#REF! ->  | F66: ='FO-DRE-21'!#REF! ->  | G66: ='FO-DRE-21'!#REF! ->  | H66: ='FO-DRE-21'!#REF! ->  | I66: ='FO-DRE-21'!#REF! ->  | J66: ='FO-DRE-21'!#REF! ->  | K66: ='FO-DRE-21'!#REF! ->  | L66: ='FO-DRE-21'!#REF! ->  | M66: ='FO-DRE-21'!#REF! ->  | N66: ='FO-DRE-21'!#REF! ->  | O66: ='FO-DRE-21'!#REF! -> 
A67: 59 | B67: ='FO-DRE-21'!#REF! ->  | C67: ='FO-DRE-21'!#REF! ->  | D67: ='FO-DRE-21'!#REF! ->  | F67: ='FO-DRE-21'!#REF! ->  | G67: ='FO-DRE-21'!#REF! ->  | H67: ='FO-DRE-21'!#REF! ->  | I67: ='FO-DRE-21'!#REF! ->  | J67: ='FO-DRE-21'!#REF! ->  | K67: ='FO-DRE-21'!#REF! ->  | L67: ='FO-DRE-21'!#REF! ->  | M67: ='FO-DRE-21'!#REF! ->  | N67: ='FO-DRE-21'!#REF! ->  | O67: ='FO-DRE-21'!#REF! -> 
A68: 60 | B68: ='FO-DRE-21'!#REF! ->  | C68: ='FO-DRE-21'!#REF! ->  | D68: ='FO-DRE-21'!#REF! ->  | F68: ='FO-DRE-21'!#REF! ->  | G68: ='FO-DRE-21'!#REF! ->  | H68: ='FO-DRE-21'!#REF! ->  | I68: ='FO-DRE-21'!#REF! ->  | J68: ='FO-DRE-21'!#REF! ->  | K68: ='FO-DRE-21'!#REF! ->  | L68: ='FO-DRE-21'!#REF! ->  | M68: ='FO-DRE-21'!#REF! ->  | N68: ='FO-DRE-21'!#REF! ->  | O68: ='FO-DRE-21'!#REF! -> 
A69: 61 | B69: ='FO-DRE-21'!#REF! ->  | C69: ='FO-DRE-21'!#REF! ->  | D69: ='FO-DRE-21'!#REF! ->  | F69: ='FO-DRE-21'!#REF! ->  | G69: ='FO-DRE-21'!#REF! ->  | H69: ='FO-DRE-21'!#REF! ->  | I69: ='FO-DRE-21'!#REF! ->  | J69: ='FO-DRE-21'!#REF! ->  | K69: ='FO-DRE-21'!#REF! ->  | L69: ='FO-DRE-21'!#REF! ->  | M69: ='FO-DRE-21'!#REF! ->  | N69: ='FO-DRE-21'!#REF! ->  | O69: ='FO-DRE-21'!#REF! -> 
A70: 62 | B70: ='FO-DRE-21'!#REF! ->  | C70: ='FO-DRE-21'!#REF! ->  | D70: ='FO-DRE-21'!#REF! ->  | F70: ='FO-DRE-21'!#REF! ->  | G70: ='FO-DRE-21'!#REF! ->  | H70: ='FO-DRE-21'!#REF! ->  | I70: ='FO-DRE-21'!#REF! ->  | J70: ='FO-DRE-21'!#REF! ->  | K70: ='FO-DRE-21'!#REF! ->  | L70: ='FO-DRE-21'!#REF! ->  | M70: ='FO-DRE-21'!#REF! ->  | N70: ='FO-DRE-21'!#REF! ->  | O70: ='FO-DRE-21'!#REF! -> 
A71: 63 | B71: ='FO-DRE-21'!#REF! ->  | C71: ='FO-DRE-21'!#REF! ->  | D71: ='FO-DRE-21'!#REF! ->  | F71: ='FO-DRE-21'!#REF! ->  | G71: ='FO-DRE-21'!#REF! ->  | H71: ='FO-DRE-21'!#REF! ->  | I71: ='FO-DRE-21'!#REF! ->  | J71: ='FO-DRE-21'!#REF! ->  | K71: ='FO-DRE-21'!#REF! ->  | L71: ='FO-DRE-21'!#REF! ->  | M71: ='FO-DRE-21'!#REF! ->  | N71: ='FO-DRE-21'!#REF! ->  | O71: ='FO-DRE-21'!#REF! -> 
A72: 64 | B72: ='FO-DRE-21'!#REF! ->  | C72: ='FO-DRE-21'!#REF! ->  | D72: ='FO-DRE-21'!#REF! ->  | F72: ='FO-DRE-21'!#REF! ->  | G72: ='FO-DRE-21'!#REF! ->  | H72: ='FO-DRE-21'!#REF! ->  | I72: ='FO-DRE-21'!#REF! ->  | J72: ='FO-DRE-21'!#REF! ->  | K72: ='FO-DRE-21'!#REF! ->  | L72: ='FO-DRE-21'!#REF! ->  | M72: ='FO-DRE-21'!#REF! ->  | N72: ='FO-DRE-21'!#REF! ->  | O72: ='FO-DRE-21'!#REF! -> 
A73: 65 | B73: ='FO-DRE-21'!#REF! ->  | C73: ='FO-DRE-21'!#REF! ->  | D73: ='FO-DRE-21'!#REF! ->  | F73: ='FO-DRE-21'!#REF! ->  | G73: ='FO-DRE-21'!#REF! ->  | H73: ='FO-DRE-21'!#REF! ->  | I73: ='FO-DRE-21'!#REF! ->  | J73: ='FO-DRE-21'!#REF! ->  | K73: ='FO-DRE-21'!#REF! ->  | L73: ='FO-DRE-21'!#REF! ->  | M73: ='FO-DRE-21'!#REF! ->  | N73: ='FO-DRE-21'!#REF! ->  | O73: ='FO-DRE-21'!#REF! -> 
A74: 66 | B74: ='FO-DRE-21'!#REF! ->  | C74: ='FO-DRE-21'!#REF! ->  | D74: ='FO-DRE-21'!#REF! ->  | F74: ='FO-DRE-21'!#REF! ->  | G74: ='FO-DRE-21'!#REF! ->  | H74: ='FO-DRE-21'!#REF! ->  | I74: ='FO-DRE-21'!#REF! ->  | J74: ='FO-DRE-21'!#REF! ->  | K74: ='FO-DRE-21'!#REF! ->  | L74: ='FO-DRE-21'!#REF! ->  | M74: ='FO-DRE-21'!#REF! ->  | N74: ='FO-DRE-21'!#REF! ->  | O74: ='FO-DRE-21'!#REF! -> 
A75: 67 | B75: ='FO-DRE-21'!#REF! ->  | C75: ='FO-DRE-21'!#REF! ->  | D75: ='FO-DRE-21'!#REF! ->  | F75: ='FO-DRE-21'!#REF! ->  | G75: ='FO-DRE-21'!#REF! ->  | H75: ='FO-DRE-21'!#REF! ->  | I75: ='FO-DRE-21'!#REF! ->  | J75: ='FO-DRE-21'!#REF! ->  | K75: ='FO-DRE-21'!#REF! ->  | L75: ='FO-DRE-21'!#REF! ->  | M75: ='FO-DRE-21'!#REF! ->  | N75: ='FO-DRE-21'!#REF! ->  | O75: ='FO-DRE-21'!#REF! -> 
A76: 68 | B76: ='FO-DRE-21'!#REF! ->  | C76: ='FO-DRE-21'!#REF! ->  | D76: ='FO-DRE-21'!#REF! ->  | F76: ='FO-DRE-21'!#REF! ->  | G76: ='FO-DRE-21'!#REF! ->  | H76: ='FO-DRE-21'!#REF! ->  | I76: ='FO-DRE-21'!#REF! ->  | J76: ='FO-DRE-21'!#REF! ->  | K76: ='FO-DRE-21'!#REF! ->  | L76: ='FO-DRE-21'!#REF! ->  | M76: ='FO-DRE-21'!#REF! ->  | N76: ='FO-DRE-21'!#REF! ->  | O76: ='FO-DRE-21'!#REF! -> 
A77: 69 | B77: ='FO-DRE-21'!#REF! ->  | C77: ='FO-DRE-21'!#REF! ->  | D77: ='FO-DRE-21'!#REF! ->  | F77: ='FO-DRE-21'!#REF! ->  | G77: ='FO-DRE-21'!#REF! ->  | H77: ='FO-DRE-21'!#REF! ->  | I77: ='FO-DRE-21'!#REF! ->  | J77: ='FO-DRE-21'!#REF! ->  | K77: ='FO-DRE-21'!#REF! ->  | L77: ='FO-DRE-21'!#REF! ->  | M77: ='FO-DRE-21'!#REF! ->  | N77: ='FO-DRE-21'!#REF! ->  | O77: ='FO-DRE-21'!#REF! -> 
A78: 70 | B78: ='FO-DRE-21'!#REF! ->  | C78: ='FO-DRE-21'!#REF! ->  | D78: ='FO-DRE-21'!#REF! ->  | F78: ='FO-DRE-21'!#REF! ->  | G78: ='FO-DRE-21'!#REF! ->  | H78: ='FO-DRE-21'!#REF! ->  | I78: ='FO-DRE-21'!#REF! ->  | J78: ='FO-DRE-21'!#REF! ->  | K78: ='FO-DRE-21'!#REF! ->  | L78: ='FO-DRE-21'!#REF! ->  | M78: ='FO-DRE-21'!#REF! ->  | N78: ='FO-DRE-21'!#REF! ->  | O78: ='FO-DRE-21'!#REF! -> 
A79: 71 | B79: ='FO-DRE-21'!#REF! ->  | C79: ='FO-DRE-21'!#REF! ->  | D79: ='FO-DRE-21'!#REF! ->  | F79: ='FO-DRE-21'!#REF! ->  | G79: ='FO-DRE-21'!#REF! ->  | H79: ='FO-DRE-21'!#REF! ->  | I79: ='FO-DRE-21'!#REF! ->  | J79: ='FO-DRE-21'!#REF! ->  | K79: ='FO-DRE-21'!#REF! ->  | L79: ='FO-DRE-21'!#REF! ->  | M79: ='FO-DRE-21'!#REF! ->  | N79: ='FO-DRE-21'!#REF! ->  | O79: ='FO-DRE-21'!#REF! -> 
A80: 72 | B80: ='FO-DRE-21'!#REF! ->  | C80: ='FO-DRE-21'!#REF! ->  | D80: ='FO-DRE-21'!#REF! ->  | F80: ='FO-DRE-21'!#REF! ->  | G80: ='FO-DRE-21'!#REF! ->  | H80: ='FO-DRE-21'!#REF! ->  | I80: ='FO-DRE-21'!#REF! ->  | J80: ='FO-DRE-21'!#REF! ->  | K80: ='FO-DRE-21'!#REF! ->  | L80: ='FO-DRE-21'!#REF! ->  | M80: ='FO-DRE-21'!#REF! ->  | N80: ='FO-DRE-21'!#REF! ->  | O80: ='FO-DRE-21'!#REF! -> 
A81: 73 | B81: ='FO-DRE-21'!#REF! ->  | C81: ='FO-DRE-21'!#REF! ->  | D81: ='FO-DRE-21'!#REF! ->  | F81: ='FO-DRE-21'!#REF! ->  | G81: ='FO-DRE-21'!#REF! ->  | H81: ='FO-DRE-21'!#REF! ->  | I81: ='FO-DRE-21'!#REF! ->  | J81: ='FO-DRE-21'!#REF! ->  | K81: ='FO-DRE-21'!#REF! ->  | L81: ='FO-DRE-21'!#REF! ->  | M81: ='FO-DRE-21'!#REF! ->  | N81: ='FO-DRE-21'!#REF! ->  | O81: ='FO-DRE-21'!#REF! -> 
A82: 74 | B82: ='FO-DRE-21'!#REF! ->  | C82: ='FO-DRE-21'!#REF! ->  | D82: ='FO-DRE-21'!#REF! ->  | F82: ='FO-DRE-21'!#REF! ->  | G82: ='FO-DRE-21'!#REF! ->  | H82: ='FO-DRE-21'!#REF! ->  | I82: ='FO-DRE-21'!#REF! ->  | J82: ='FO-DRE-21'!#REF! ->  | K82: ='FO-DRE-21'!#REF! ->  | L82: ='FO-DRE-21'!#REF! ->  | M82: ='FO-DRE-21'!#REF! ->  | N82: ='FO-DRE-21'!#REF! ->  | O82: ='FO-DRE-21'!#REF! -> 
A83: 75 | B83: ='FO-DRE-21'!#REF! ->  | C83: ='FO-DRE-21'!#REF! ->  | D83: ='FO-DRE-21'!#REF! ->  | F83: ='FO-DRE-21'!#REF! ->  | G83: ='FO-DRE-21'!#REF! ->  | H83: ='FO-DRE-21'!#REF! ->  | I83: ='FO-DRE-21'!#REF! ->  | J83: ='FO-DRE-21'!#REF! ->  | K83: ='FO-DRE-21'!#REF! ->  | L83: ='FO-DRE-21'!#REF! ->  | M83: ='FO-DRE-21'!#REF! ->  | N83: ='FO-DRE-21'!#REF! ->  | O83: ='FO-DRE-21'!#REF! -> 
A84: 76 | B84: ='FO-DRE-21'!#REF! ->  | C84: ='FO-DRE-21'!#REF! ->  | D84: ='FO-DRE-21'!#REF! ->  | F84: ='FO-DRE-21'!#REF! ->  | G84: ='FO-DRE-21'!#REF! ->  | H84: ='FO-DRE-21'!#REF! ->  | I84: ='FO-DRE-21'!#REF! ->  | J84: ='FO-DRE-21'!#REF! ->  | K84: ='FO-DRE-21'!#REF! ->  | L84: ='FO-DRE-21'!#REF! ->  | M84: ='FO-DRE-21'!#REF! ->  | N84: ='FO-DRE-21'!#REF! ->  | O84: ='FO-DRE-21'!#REF! -> 
A85: 77 | B85: ='FO-DRE-21'!#REF! ->  | C85: ='FO-DRE-21'!#REF! ->  | D85: ='FO-DRE-21'!#REF! ->  | F85: ='FO-DRE-21'!#REF! ->  | G85: ='FO-DRE-21'!#REF! ->  | H85: ='FO-DRE-21'!#REF! ->  | I85: ='FO-DRE-21'!#REF! ->  | J85: ='FO-DRE-21'!#REF! ->  | K85: ='FO-DRE-21'!#REF! ->  | L85: ='FO-DRE-21'!#REF! ->  | M85: ='FO-DRE-21'!#REF! ->  | N85: ='FO-DRE-21'!#REF! ->  | O85: ='FO-DRE-21'!#REF! -> 
A86: 78 | B86: ='FO-DRE-21'!#REF! ->  | C86: ='FO-DRE-21'!#REF! ->  | D86: ='FO-DRE-21'!#REF! ->  | F86: ='FO-DRE-21'!#REF! ->  | G86: ='FO-DRE-21'!#REF! ->  | H86: ='FO-DRE-21'!#REF! ->  | I86: ='FO-DRE-21'!#REF! ->  | J86: ='FO-DRE-21'!#REF! ->  | K86: ='FO-DRE-21'!#REF! ->  | L86: ='FO-DRE-21'!#REF! ->  | M86: ='FO-DRE-21'!#REF! ->  | N86: ='FO-DRE-21'!#REF! ->  | O86: ='FO-DRE-21'!#REF! -> 
A87: 79 | B87: ='FO-DRE-21'!#REF! ->  | C87: ='FO-DRE-21'!#REF! ->  | D87: ='FO-DRE-21'!#REF! ->  | F87: ='FO-DRE-21'!#REF! ->  | G87: ='FO-DRE-21'!#REF! ->  | H87: ='FO-DRE-21'!#REF! ->  | I87: ='FO-DRE-21'!#REF! ->  | J87: ='FO-DRE-21'!#REF! ->  | K87: ='FO-DRE-21'!#REF! ->  | L87: ='FO-DRE-21'!#REF! ->  | M87: ='FO-DRE-21'!#REF! ->  | N87: ='FO-DRE-21'!#REF! ->  | O87: ='FO-DRE-21'!#REF! -> 
A88: 80 | B88: ='FO-DRE-21'!#REF! ->  | C88: ='FO-DRE-21'!#REF! ->  | D88: ='FO-DRE-21'!#REF! ->  | F88: ='FO-DRE-21'!#REF! ->  | G88: ='FO-DRE-21'!#REF! ->  | H88: ='FO-DRE-21'!#REF! ->  | I88: ='FO-DRE-21'!#REF! ->  | J88: ='FO-DRE-21'!#REF! ->  | K88: ='FO-DRE-21'!#REF! ->  | L88: ='FO-DRE-21'!#REF! ->  | M88: ='FO-DRE-21'!#REF! ->  | N88: ='FO-DRE-21'!#REF! ->  | O88: ='FO-DRE-21'!#REF! -> 
A89: 81 | B89: ='FO-DRE-21'!#REF! ->  | C89: ='FO-DRE-21'!#REF! ->  | D89: ='FO-DRE-21'!#REF! ->  | F89: ='FO-DRE-21'!#REF! ->  | G89: ='FO-DRE-21'!#REF! ->  | H89: ='FO-DRE-21'!#REF! ->  | I89: ='FO-DRE-21'!#REF! ->  | J89: ='FO-DRE-21'!#REF! ->  | K89: ='FO-DRE-21'!#REF! ->  | L89: ='FO-DRE-21'!#REF! ->  | M89: ='FO-DRE-21'!#REF! ->  | N89: ='FO-DRE-21'!#REF! ->  | O89: ='FO-DRE-21'!#REF! -> 
A90: 82 | B90: ='FO-DRE-21'!#REF! ->  | C90: ='FO-DRE-21'!#REF! ->  | D90: ='FO-DRE-21'!#REF! ->  | F90: ='FO-DRE-21'!#REF! ->  | G90: ='FO-DRE-21'!#REF! ->  | H90: ='FO-DRE-21'!#REF! ->  | I90: ='FO-DRE-21'!#REF! ->  | J90: ='FO-DRE-21'!#REF! ->  | K90: ='FO-DRE-21'!#REF! ->  | L90: ='FO-DRE-21'!#REF! ->  | M90: ='FO-DRE-21'!#REF! ->  | N90: ='FO-DRE-21'!#REF! ->  | O90: ='FO-DRE-21'!#REF! -> 
A91: 83 | B91: ='FO-DRE-21'!#REF! ->  | C91: ='FO-DRE-21'!#REF! ->  | D91: ='FO-DRE-21'!#REF! ->  | F91: ='FO-DRE-21'!#REF! ->  | G91: ='FO-DRE-21'!#REF! ->  | H91: ='FO-DRE-21'!#REF! ->  | I91: ='FO-DRE-21'!#REF! ->  | J91: ='FO-DRE-21'!#REF! ->  | K91: ='FO-DRE-21'!#REF! ->  | L91: ='FO-DRE-21'!#REF! ->  | M91: ='FO-DRE-21'!#REF! ->  | N91: ='FO-DRE-21'!#REF! ->  | O91: ='FO-DRE-21'!#REF! -> 
A92: 84 | B92: ='FO-DRE-21'!#REF! ->  | C92: ='FO-DRE-21'!#REF! ->  | D92: ='FO-DRE-21'!#REF! ->  | F92: ='FO-DRE-21'!#REF! ->  | G92: ='FO-DRE-21'!#REF! ->  | H92: ='FO-DRE-21'!#REF! ->  | I92: ='FO-DRE-21'!#REF! ->  | J92: ='FO-DRE-21'!#REF! ->  | K92: ='FO-DRE-21'!#REF! ->  | L92: ='FO-DRE-21'!#REF! ->  | M92: ='FO-DRE-21'!#REF! ->  | N92: ='FO-DRE-21'!#REF! ->  | O92: ='FO-DRE-21'!#REF! -> 
A93: 85 | B93: ='FO-DRE-21'!#REF! ->  | C93: ='FO-DRE-21'!#REF! ->  | D93: ='FO-DRE-21'!#REF! ->  | F93: ='FO-DRE-21'!#REF! ->  | G93: ='FO-DRE-21'!#REF! ->  | H93: ='FO-DRE-21'!#REF! ->  | I93: ='FO-DRE-21'!#REF! ->  | J93: ='FO-DRE-21'!#REF! ->  | K93: ='FO-DRE-21'!#REF! ->  | L93: ='FO-DRE-21'!#REF! ->  | M93: ='FO-DRE-21'!#REF! ->  | N93: ='FO-DRE-21'!#REF! ->  | O93: ='FO-DRE-21'!#REF! -> 
A94: CERTIFICACIÓN DE LA PERSONA NATURAL, REPRESENTANTE LEGAL O PERSONA AUTORIZADA Certifico que el presente proyecto técnico fue elaborado acorde con mis necesidades de comunicación | K94: CERTIFICACIÓN DEL PROFESIONAL TÉCNICO (RESPONSABLE TÉCNICO) Certifico que el presente proyecto técnico fue elaborado por el suscrito y asumo la responsabilidad técnica
A95: NOMBRES Y APELLIDOS: | F95: ='FO-DRE-21'!DI11 -> 0 | K95: NOMBRES Y APELLIDOS: | M95: ='FO-DRE-21'!DI12 -> 0
A96: FECHA: | F96: FIRMA | K96: FECHA: | M96: FIRMA
A97: =TODAY() -> 2016-10-24 | K97: =TODAY() -> 2016-10-24

Sheet Hoja1 (hidden)
A1: LISTAS DESPLEGABLES | X1: 2.15 | Z1: 0.003333333333 | AD1: 0.01 | AH1: 0.01 | AL1: 0.01
I2: VHF | J2: SEMIDUPLEX | K2: 5
A3: PRIVADO | F3: CONCESION | H3: No. | I3: Tx | K3: Rx | M3: Shifter | N3: Modo de operación | V3: 902 - 928 | X3: Banda 2400-2483,5 | AB3: Banda 5725-5850 | AF3: Banda 5725-5850 | AJ3: Banda 5470-5725
A4: EXPLOTACIÓN | F4: MODIFICACIÓN | H4: 1 | I4: 138 | J4: 138.475 | K4: 143 | L4: 143.475 | M4: 5 | N4: Semidúplex | V4: 2400 - 2483.5 | X4: Ganancia [dBd] | Z4: Potencia [W] | AB4: Ganancia [dBd] | AD4: Potencia [W] | AF4: Ganancia [dBd] | AH4: Potencia [W] | AJ4: Ganancia [dBd] | AL4: Potencia [W]
F5: RENOVACIÓN | H5: 3 | I5: 138.525 | J5: 138.675 | K5: 143.525 | L5: 143.675 | M5: 5 | N5: Semidúplex | V5: 5150 – 5250 | X5: 0 | Y5: 0 | Z5: =POWER(10,Y5/10) -> 1 | AB5: 0 | AC5: 0 | AD5: =POWER(10,AC5/10) -> 1 | AF5: 0 | AG5: =10*LOG(0.05,10) -> -13.01029996 | AH5: =POWER(10,AG5/10) -> 0.05 | AJ5: 0 | AK5: =10*LOG(0.25,10) -> -6.020599913 | AL5: =POWER(10,AK5/10) -> 0.25
A6: SECUENCIA DIRECTA | H6: 5 | I6: 138.725 | J6: 138.9875 | K6: 143.725 | L6: 143.9875 | M6: 5 | N6: Semidúplex | V6: 5250 – 5350 | X6: 0.01 | Y6: 0 | Z6: =POWER(10,Y6/10) -> 1 | AB6: 0.01 | AC6: 0 | AD6: =POWER(10,AC6/10) -> 1 | AF6: 0.01 | AG6: =10*LOG(0.05,10) -> -13.01029996 | AH6: =POWER(10,AG6/10) -> 0.05 | AJ6: 0.01 | AK6: =10*LOG(0.25,10) -> -6.020599913 | AL6: =POWER(10,AK6/10) -> 0.25
A7: TDMA | H7: 15 | I7: 150.0625 | J7: 151.0125 | K7: 155.0625 | L7: 156.0125 | M7: 5 | N7: Semidúplex | V7: 5470 – 5725 | X7: 0.02 | Y7: 0 | Z7: 1 | AB7: 0.02 | AC7: 0 | AD7: 1 | AF7: 0.02 | AG7: -13.01029996 | AH7: 0.05 | AJ7: 0.02 | AK7: -6.020599913 | AL7: 0.25
A8: FHSS | F8: HF | H8: 21 | I8: 153.2875 | J8: 154.9875 | K8: 158.2875 | L8: 159.9875 | M8: 5 | N8: Semidúplex | V8: 5725 - 5850 | X8: 0.03 | Y8: 0 | Z8: 1 | AB8: 0.03 | AC8: 0 | AD8: 1 | AF8: 0.03 | AG8: -13.01029996 | AH8: 0.05 | AJ8: 0.03 | AK8: -6.020599913 | AL8: 0.25
A9: HIBRIDO | F9: VHF | H9: 34 | I9: 168 | J9: 168.9875 | K9: 173 | L9: 173.9875 | M9: 5 | N9: Semidúplex | X9: 0.04 | Y9: 0 | Z9: 1 | AB9: 0.04 | AC9: 0 | AD9: 1 | AF9: 0.04 | AG9: -13.01029996 | AH9: 0.05 | AJ9: 0.04 | AK9: -6.020599913 | AL9: 0.25
A10: OFDM | F10: UHF | X10: 0.05 | Y10: 0 | Z10: 1 | AB10: 0.05 | AC10: 0 | AD10: 1 | AF10: 0.05 | AG10: -13.01029996 | AH10: 0.05 | AJ10: 0.05 | AK10: -6.020599913 | AL10: 0.25
A11: OTRO | F11: SHF | I11: VHF | J11: SEMIDUPLEX | K11: 1 | V11: SIM | X11: 0.06 | Y11: 0 | Z11: 1 | AB11: 0.06 | AC11: 0 | AD11: 1 | AF11: 0.06 | AG11: -13.01029996 | AH11: 0.05 | AJ11: 0.06 | AK11: -6.020599913 | AL11: 0.25
F12: EHF | H12: No. | I12: Tx | K12: Rx | M12: Shifter | N12: Modo de operación | V12: SEM | X12: 0.07 | Y12: 0 | Z12: 1 | AB12: 0.07 | AC12: 0 | AD12: 1 | AF12: 0.07 | AG12: -13.01029996 | AH12: 0.05 | AJ12: 0.07 | AK12: -6.020599913 | AL12: 0.25
A13: ° ' . '' | B13: ° ' . ''W | H13: 6 | I13: 139 | J13: 139.5875 | K13: 140 | L13: 140.5875 | M13: 1 | N13: Semidúplex | V13: FUL | X13: 0.08 | Y13: 0 | Z13: 1 | AB13: 0.08 | AC13: 0 | AD13: 1 | AF13: 0.08 | AG13: -13.01029996 | AH13: 0.05 | AJ13: 0.08 | AK13: -6.020599913 | AL13: 0.25
H14: 8 | I14: 139.7125 | J14: 139.9875 | K14: 140.7125 | L14: 140.9875 | M14: 1 | N14: Semidúplex | X14: 0.09 | Y14: 0 | Z14: 1 | AB14: 0.09 | AC14: 0 | AD14: 1 | AF14: 0.09 | AG14: -13.01029996 | AH14: 0.05 | AJ14: 0.09 | AK14: -6.020599913 | AL14: 0.25
A15: S | B15: W | H15: 9 | I15: 141 | J15: 141.6875 | K15: 142 | L15: 142.6875 | M15: 1 | N15: Semidúplex | X15: 0.1 | Y15: 0 | Z15: 1 | AB15: 0.1 | AC15: 0 | AD15: 1 | AF15: 0.1 | AG15: -13.01029996 | AH15: 0.05 | AJ15: 0.1 | AK15: -6.020599913 | AL15: 0.25
A16: N | H16: 11 | I16: 141.8125 | J16: 141.9875 | K16: 142.8125 | L16: 142.9875 | M16: 1 | N16: Semidúplex | V16: 12.5 kHz | X16: 0.11 | Y16: 0 | Z16: 1 | AB16: 0.11 | AC16: 0 | AD16: 1 | AF16: 0.11 | AG16: -13.01029996 | AH16: 0.05 | AJ16: 0.11 | AK16: -6.020599913 | AL16: 0.25
H17: 12 | I17: 148 | J17: 148.8875 | K17: 149 | L17: 149.8875 | M17: 1 | N17: Semidúplex | V17: 25 kHz | X17: 0.12 | Y17: 0 | Z17: 1 | AB17: 0.12 | AC17: 0 | AD17: 1 | AF17: 0.12 | AG17: -13.01029996 | AH17: 0.05 | AJ17: 0.12 | AK17: -6.020599913 | AL17: 0.25
A18: 0 | B18: 0 | D18: 0 | F18: TIPO DE CONFIGURACIÓN DEL SISTEMA | H18: 22 | I18: 160 | J18: 160.4875 | K18: 161 | L18: 161.4875 | M18: 1 | N18: Semidúplex | X18: 0.13 | Y18: 0 | Z18: 1 | AB18: 0.13 | AC18: 0 | AD18: 1 | AF18: 0.13 | AG18: -13.01029996 | AH18: 0.05 | AJ18: 0.13 | AK18: -6.020599913 | AL18: 0.25
A19: 1 | B19: 1 | D19: 0.01 | F19: Punto - Punto | H19: 27 | I19: 162.0375 | J19: 162.9875 | K19: 163.0375 | L19: 163.9875 | M19: 1 | N19: Semidúplex | X19: 0.14 | Y19: 0 | Z19: 1 | AB19: 0.14 | AC19: 0 | AD19: 1 | AF19: 0.14 | AG19: -13.01029996 | AH19: 0.05 | AJ19: 0.14 | AK19: -6.020599913 | AL19: 0.25
B20: 2 | D20: 0.02 | F20: Punto - Multipunto | H20: 28 | I20: 164 | J20: 164.2625 | K20: 165 | L20: 165.2625 | M20: 1 | N20: Semidúplex | X20: 0.15 | Y20: 0 | Z20: 1 | AB20: 0.15 | AC20: 0 | AD20: 1 | AF20: 0.15 | AG20: -13.01029996 | AH20: 0.05 | AJ20: 0.15 | AK20: -6.020599913 | AL20: 0.25
B21: 3 | D21: 0.03 | H21: 30 | I21: 164.7125 | J21: 164.9875 | K21: 165.7125 | L21: 165.9875 | M21: 1 | N21: Semidúplex | X21: 0.16 | Y21: 0 | Z21: 1 | AB21: 0.16 | AC21: 0 | AD21: 1 | AF21: 0.16 | AG21: -13.01029996 | AH21: 0.05 | AJ21: 0.16 | AK21: -6.020599913 | AL21: 0.25
B22: 4 | D22: 0.04 | H22: 31 | I22: 166 | J22: 166.2125 | K22: 167 | L22: 167.2125 | M22: 1 | N22: Semidúplex | X22: 0.17 | Y22: 0 | Z22: 1 | AB22: 0.17 | AC22: 0 | AD22: 1 | AF22: 0.17 | AG22: -13.01029996 | AH22: 0.05 | AJ22: 0.17 | AK22: -6.020599913 | AL22: 0.25
B23: 5 | D23: 0.05 | F23: Canalización | H23: 33 | I23: 166.6375 | J23: 166.9875 | K23: 167.6375 | L23: 167.9875 | M23: 1 | N23: Semidúplex | X23: 0.18 | Y23: 0 | Z23: 1 | AB23: 0.18 | AC23: 0 | AD23: 1 | AF23: 0.18 | AG23: -13.01029996 | AH23: 0.05 | AJ23: 0.18 | AK23: -6.020599913 | AL23: 0.25
D24: 0.06 | F24: VHF - 1 MHz | H24: 35 | I24: 169 | J24: 169.3125 | K24: 170 | L24: 170.3125 | M24: 1 | N24: Semidúplex | X24: 0.19 | Y24: 0 | Z24: 1 | AB24: 0.19 | AC24: 0 | AD24: 1 | AF24: 0.19 | AG24: -13.01029996 | AH24: 0.05 | AJ24: 0.19 | AK24: -6.020599913 | AL24: 0.25
D25: 0.07 | F25: VHF - 5 MHz | H25: 39 | I25: 169.9125 | J25: 169.9875 | K25: 170.9125 | L25: 170.9875 | M25: 1 | N25: Semidúplex | X25: 0.2 | Y25: 0 | Z25: 1 | AB25: 0.2 | AC25: 0 | AD25: 1 | AF25: 0.2 | AG25: -13.01029996 | AH25: 0.05 | AJ25: 0.2 | AK25: -6.020599913 | AL25: 0.25
D26: 0.08 | F26: UHF - 5 MHz | H26: 40 | I26: 171 | J26: 171.9875 | K26: 172 | L26: 172.9875 | M26: 1 | N26: Semidúplex | X26: 0.21 | Y26: 0 | Z26: 1 | AB26: 0.21 | AC26: 0 | AD26: 1 | AF26: 0.21 | AG26: -13.01029996 | AH26: 0.05 | AJ26: 0.21 | AK26: -6.020599913 | AL26: 0.25
A27: Estructuras: | D27: 0.09 | F27: UHF - 6 MHz | X27: 0.22 | Y27: 0 | Z27: 1 | AB27: 0.22 | AC27: 0 | AD27: 1 | AF27: 0.22 | AG27: -13.01029996 | AH27: 0.05 | AJ27: 0.22 | AK27: -6.020599913 | AL27: 0.25
A28: Torre Autosopotada | D28: 0.1 | F28: UHF - 10 MHz | X28: 0.23 | Y28: 0 | Z28: 1 | AB28: 0.23 | AC28: 0 | AD28: 1 | AF28: 0.23 | AG28: -13.01029996 | AH28: 0.05 | AJ28: 0.23 | AK28: -6.020599913 | AL28: 0.25
A29: Torre no Autosoportada | D29: 0.11 | X29: 0.24 | Y29: 0 | Z29: 1 | AB29: 0.24 | AC29: 0 | AD29: 1 | AF29: 0.24 | AG29: -13.01029996 | AH29: 0.05 | AJ29: 0.24 | AK29: -6.020599913 | AL29: 0.25
A30: Mastil | D30: 0.12 | I30: VHF | J30: SIMPLEX | X30: 0.25 | Y30: 0 | Z30: 1 | AB30: 0.25 | AC30: 0 | AD30: 1 | AF30: 0.25 | AG30: -13.01029996 | AH30: 0.05 | AJ30: 0.25 | AK30: -6.020599913 | AL30: 0.25
A31: Empotrada en edificación | D31: 0.13 | H31: No. | I31: Tx | K31: Shifter | L31: Modo de operación | X31: 0.26 | Y31: 0 | Z31: 1 | AB31: 0.26 | AC31: 0 | AD31: 1 | AF31: 0.26 | AG31: -13.01029996 | AH31: 0.05 | AJ31: 0.26 | AK31: -6.020599913 | AL31: 0.25
A32: Otras | D32: 0.14 | H32: 2 | I32: 143.4875 | J32: 143.5125 | K32: --- | L32: Símplex | X32: 0.27 | Y32: 0 | Z32: 1 | AB32: 0.27 | AC32: 0 | AD32: 1 | AF32: 0.27 | AG32: -13.01029996 | AH32: 0.05 | AJ32: 0.27 | AK32: -6.020599913 | AL32: 0.25
D33: 0.15 | F33: Radiolocalización | H33: 4 | I33: 143.6875 | J33: 143.7125 | K33: --- | L33: Símplex | X33: 0.28 | Y33: 0 | Z33: 1 | AB33: 0.28 | AC33: 0 | AD33: 1 | AF33: 0.28 | AG33: -13.01029996 | AH33: 0.05 | AJ33: 0.28 | AK33: -6.020599913 | AL33: 0.25
A34: Antenas: | D34: 0.16 | F34: Radionavegación | H34: 7 | I34: 140.6 | J34: 140.7 | K34: --- | L34: Símplex | X34: 0.29 | Y34: 0 | Z34: 1 | AB34: 0.29 | AC34: 0 | AD34: 1 | AF34: 0.29 | AG34: -13.01029996 | AH34: 0.05 | AJ34: 0.29 | AK34: -6.020599913 | AL34: 0.25
A35: Monopolo | D35: 0.17 | F35: Ayudas a la Meteorología | H35: 10 | I35: 142.7 | J35: 142.8 | K35: --- | L35: Símplex | X35: 0.3 | Y35: 0 | Z35: 1 | AB35: 0.3 | AC35: 0 | AD35: 1 | AF35: 0.3 | AG35: -13.01029996 | AH35: 0.05 | AJ35: 0.3 | AK35: -6.020599913 | AL35: 0.25
A36: Dipolo | D36: 0.18 | F36: Otros | H36: 13 | I36: 148.9 | J36: 148.9875 | K36: --- | L36: Símplex | X36: 0.31 | Y36: 0 | Z36: 1 | AB36: 0.31 | AC36: 0 | AD36: 1 | AF36: 0.31 | AG36: -13.01029996 | AH36: 0.05 | AJ36: 0.31 | AK36: -6.020599913 | AL36: 0.25
A37: 4-Dipolos | D37: 0.19 | H37: 14 | I37: 155 | J37: 155.025 | K37: --- | L37: Símplex | X37: 0.32 | Y37: 0 | Z37: 1 | AB37: 0.32 | AC37: 0 | AD37: 1 | AF37: 0.32 | AG37: -13.01029996 | AH37: 0.05 | AJ37: 0.32 | AK37: -6.020599913 | AL37: 0.25
A38: 8-Dipolos | D38: 0.2 | H38: 16 | I38: 151.025 | J38: 151.4875 | K38: --- | L38: Símplex | X38: 0.33 | Y38: 0 | Z38: 1 | AB38: 0.33 | AC38: 0 | AD38: 1 | AF38: 0.33 | AG38: -13.01029996 | AH38: 0.05 | AJ38: 0.33 | AK38: -6.020599913 | AL38: 0.25
A39: 16-Dipolos | D39: 0.21 | F39: Primario | H39: 18 | I39: 152.0875 | J39: 152.3875 | K39: --- | L39: Símplex | X39: 0.34 | Y39: 0 | Z39: 1 | AB39: 0.34 | AC39: 0 | AD39: 1 | AF39: 0.34 | AG39: -13.01029996 | AH39: 0.05 | AJ39: 0.34 | AK39: -6.020599913 | AL39: 0.25
A40: Yagi | D40: 0.22 | F40: Secundario | H40: 20 | I40: 157.4375 | J40: 158.275 | K40: --- | L40: Símplex | X40: 0.35 | Y40: 0 | Z40: 1 | AB40: 0.35 | AC40: 0 | AD40: 1 | AF40: 0.35 | AG40: -13.01029996 | AH40: 0.05 | AJ40: 0.35 | AK40: -6.020599913 | AL40: 0.25
A41: Panel | D41: 0.23 | F41: Onda continua | H41: 23 | I41: 160.5 | J41: 160.6125 | K41: --- | L41: Símplex | X41: 0.36 | Y41: 0 | Z41: 1 | AB41: 0.36 | AC41: 0 | AD41: 1 | AF41: 0.36 | AG41: -13.01029996 | AH41: 0.05 | AJ41: 0.36 | AK41: -6.020599913 | AL41: 0.25
A42: Otro | D42: 0.24 | F42: Onda pulsada | H42: 25 | I42: 160.9625 | J42: 160.9875 | K42: --- | L42: Símplex | X42: 0.37 | Y42: 0 | Z42: 1 | AB42: 0.37 | AC42: 0 | AD42: 1 | AF42: 0.37 | AG42: -13.01029996 | AH42: 0.05 | AJ42: 0.37 | AK42: -6.020599913 | AL42: 0.25
D43: 0.25 | H43: 26 | I43: 163 | J43: 163.025 | K43: --- | L43: Símplex | X43: 0.38 | Y43: 0 | Z43: 1 | AB43: 0.38 | AC43: 0 | AD43: 1 | AF43: 0.38 | AG43: -13.01029996 | AH43: 0.05 | AJ43: 0.38 | AK43: -6.020599913 | AL43: 0.25
A44: POLARIZACION: | D44: 0.26 | H44: 29 | I44: 165.275 | J44: 165.7 | K44: --- | L44: Símplex | X44: 0.39 | Y44: 0 | Z44: 1 | AB44: 0.39 | AC44: 0 | AD44: 1 | AF44: 0.39 | AG44: -13.01029996 | AH44: 0.05 | AJ44: 0.39 | AK44: -6.020599913 | AL44: 0.25
A45: Horizontal | D45: 0.27 | H45: 32 | I45: 167.225 | J45: 167.625 | K45: --- | L45: Símplex | X45: 0.4 | Y45: 0 | Z45: 1 | AB45: 0.4 | AC45: 0 | AD45: 1 | AF45: 0.4 | AG45: -13.01029996 | AH45: 0.05 | AJ45: 0.4 | AK45: -6.020599913 | AL45: 0.25
A46: Vertical | D46: 0.28 | H46: 36 | I46: 170.325 | J46: 170.3875 | K46: --- | L46: Símplex | X46: 0.41 | Y46: 0 | Z46: 1 | AB46: 0.41 | AC46: 0 | AD46: 1 | AF46: 0.41 | AG46: -13.01029996 | AH46: 0.05 | AJ46: 0.41 | AK46: -6.020599913 | AL46: 0.25
A47: Circular | D47: 0.29 | H47: 38 | I47: 169.8875 | J47: 169.9 | K47: --- | L47: Símplex | X47: 0.42 | Y47: 0 | Z47: 1 | AB47: 0.42 | AC47: 0 | AD47: 1 | AF47: 0.42 | AG47: -13.01029996 | AH47: 0.05 | AJ47: 0.42 | AK47: -6.020599913 | AL47: 0.25
A48: Eliptica | D48: 0.3 | X48: 0.43 | Y48: 0 | Z48: 1 | AB48: 0.43 | AC48: 0 | AD48: 1 | AF48: 0.43 | AG48: -13.01029996 | AH48: 0.05 | AJ48: 0.43 | AK48: -6.020599913 | AL48: 0.25
A49: Cruzada | D49: 0.31 | X49: 0.44 | Y49: 0 | Z49: 1 | AB49: 0.44 | AC49: 0 | AD49: 1 | AF49: 0.44 | AG49: -13.01029996 | AH49: 0.05 | AJ49: 0.44 | AK49: -6.020599913 | AL49: 0.25
D50: 0.32 | X50: 0.45 | Y50: 0 | Z50: 1 | AB50: 0.45 | AC50: 0 | AD50: 1 | AF50: 0.45 | AG50: -13.01029996 | AH50: 0.05 | AJ50: 0.45 | AK50: -6.020599913 | AL50: 0.25
D51: 0.33 | X51: 0.46 | Y51: 0 | Z51: 1 | AB51: 0.46 | AC51: 0 | AD51: 1 | AF51: 0.46 | AG51: -13.01029996 | AH51: 0.05 | AJ51: 0.46 | AK51: -6.020599913 | AL51: 0.25
D52: 0.34 | X52: 0.47 | Y52: 0 | Z52: 1 | AB52: 0.47 | AC52: 0 | AD52: 1 | AF52: 0.47 | AG52: -13.01029996 | AH52: 0.05 | AJ52: 0.47 | AK52: -6.020599913 | AL52: 0.25
D53: 0.35 | X53: 0.48 | Y53: 0 | Z53: 1 | AB53: 0.48 | AC53: 0 | AD53: 1 | AF53: 0.48 | AG53: -13.01029996 | AH53: 0.05 | AJ53: 0.48 | AK53: -6.020599913 | AL53: 0.25
D54: 0.36 | X54: 0.49 | Y54: 0 | Z54: 1 | AB54: 0.49 | AC54: 0 | AD54: 1 | AF54: 0.49 | AG54: -13.01029996 | AH54: 0.05 | AJ54: 0.49 | AK54: -6.020599913 | AL54: 0.25
D55: 0.37 | X55: 0.5 | Y55: 0 | Z55: 1 | AB55: 0.5 | AC55: 0 | AD55: 1 | AF55: 0.5 | AG55: -13.01029996 | AH55: 0.05 | AJ55: 0.5 | AK55: -6.020599913 | AL55: 0.25
D56: 0.38 | X56: 0.51 | Y56: 0 | Z56: 1 | AB56: 0.51 | AC56: 0 | AD56: 1 | AF56: 0.51 | AG56: -13.01029996 | AH56: 0.05 | AJ56: 0.51 | AK56: -6.020599913 | AL56: 0.25
A57: PROVINCIAS | D57: 0.39 | X57: 0.52 | Y57: 0 | Z57: 1 | AB57: 0.52 | AC57: 0 | AD57: 1 | AF57: 0.52 | AG57: -13.01029996 | AH57: 0.05 | AJ57: 0.52 | AK57: -6.020599913 | AL57: 0.25
A58: Azuay | D58: 0.4 | X58: 0.53 | Y58: 0 | Z58: 1 | AB58: 0.53 | AC58: 0 | AD58: 1 | AF58: 0.53 | AG58: -13.01029996 | AH58: 0.05 | AJ58: 0.53 | AK58: -6.020599913 | AL58: 0.25
A59: Bolívar | D59: 0.41 | X59: 0.54 | Y59: 0 | Z59: 1 | AB59: 0.54 | AC59: 0 | AD59: 1 | AF59: 0.54 | AG59: -13.01029996 | AH59: 0.05 | AJ59: 0.54 | AK59: -6.020599913 | AL59: 0.25
A60: Cañar | D60: 0.42 | X60: 0.55 | Y60: 0 | Z60: 1 | AB60: 0.55 | AC60: 0 | AD60: 1 | AF60: 0.55 | AG60: -13.01029996 | AH60: 0.05 | AJ60: 0.55 | AK60: -6.020599913 | AL60: 0.25
A61: Carchi | D61: 0.43 | X61: 0.56 | Y61: 0 | Z61: 1 | AB61: 0.56 | AC61: 0 | AD61: 1 | AF61: 0.56 | AG61: -13.01029996 | AH61: 0.05 | AJ61: 0.56 | AK61: -6.020599913 | AL61: 0.25
A62: Chimborazo | D62: 0.44 | X62: 0.57 | Y62: 0 | Z62: 1 | AB62: 0.57 | AC62: 0 | AD62: 1 | AF62: 0.57 | AG62: -13.01029996 | AH62: 0.05 | AJ62: 0.57 | AK62: -6.020599913 | AL62: 0.25
A63: Cotopaxi | D63: 0.45 | X63: 0.58 | Y63: 0 | Z63: 1 | AB63: 0.58 | AC63: 0 | AD63: 1 | AF63: 0.58 | AG63: -13.01029996 | AH63: 0.05 | AJ63: 0.58 | AK63: -6.020599913 | AL63: 0.25
A64: El Oro | D64: 0.46 | X64: 0.59 | Y64: 0 | Z64: 1 | AB64: 0.59 | AC64: 0 | AD64: 1 | AF64: 0.59 | AG64: -13.01029996 | AH64: 0.05 | AJ64: 0.59 | AK64: -6.020599913 | AL64: 0.25
A65: Esmeraldas | D65: 0.47 | X65: 0.6 | Y65: 0 | Z65: 1 | AB65: 0.6 | AC65: 0 | AD65: 1 | AF65: 0.6 | AG65: -13.01029996 | AH65: 0.05 | AJ65: 0.6 | AK65: -6.020599913 | AL65: 0.25
A66: Galápagos | D66: 0.48 | X66: 0.61 | Y66: 0 | Z66: 1 | AB66: 0.61 | AC66: 0 | AD66: 1 | AF66: 0.61 | AG66: -13.01029996 | AH66: 0.05 | AJ66: 0.61 | AK66: -6.020599913 | AL66: 0.25
A67: Guayas | D67: 0.49 | X67: 0.62 | Y67: 0 | Z67: 1 | AB67: 0.62 | AC67: 0 | AD67: 1 | AF67: 0.62 | AG67: -13.01029996 | AH67: 0.05 | AJ67: 0.62 | AK67: -6.020599913 | AL67: 0.25
A68: Imbabura | D68: 0.5 | X68: 0.63 | Y68: 0 | Z68: 1 | AB68: 0.63 | AC68: 0 | AD68: 1 | AF68: 0.63 | AG68: -13.01029996 | AH68: 0.05 | AJ68: 0.63 | AK68: -6.020599913 | AL68: 0.25
A69: Loja | D69: 0.51 | X69: 0.64 | Y69: 0 | Z69: 1 | AB69: 0.64 | AC69: 0 | AD69: 1 | AF69: 0.64 | AG69: -13.01029996 | AH69: 0.05 | AJ69: 0.64 | AK69: -6.020599913 | AL69: 0.25
A70: Los Ríos | D70: 0.52 | X70: 0.65 | Y70: 0 | Z70: =POWER(10,Y70/10) -> 1 | AB70: 0.65 | AC70: 0 | AD70: =POWER(10,AC70/10) -> 1 | AF70: 0.65 | AG70: =10*LOG(0.05,10) -> -13.01029996 | AH70: =POWER(10,AG70/10) -> 0.05 | AJ70: 0.65 | AK70: =10*LOG(0.25,10) -> -6.020599913 | AL70: =POWER(10,AK70/10) -> 0.25
A71: Manabí | D71: 0.53 | X71: 0.66 | Y71: 0 | Z71: 1 | AB71: 0.66 | AC71: 0 | AD71: 1 | AF71: 0.66 | AG71: -13.01029996 | AH71: 0.05 | AJ71: 0.66 | AK71: -6.020599913 | AL71: 0.25
A72: Morona Santiago | D72: 0.54 | X72: 0.67 | Y72: 0 | Z72: 1 | AB72: 0.67 | AC72: 0 | AD72: 1 | AF72: 0.67 | AG72: -13.01029996 | AH72: 0.05 | AJ72: 0.67 | AK72: -6.020599913 | AL72: 0.25
A73: Napo | D73: 0.55 | X73: 0.68 | Y73: 0 | Z73: 1 | AB73: 0.68 | AC73: 0 | AD73: 1 | AF73: 0.68 | AG73: -13.01029996 | AH73: 0.05 | AJ73: 0.68 | AK73: -6.020599913 | AL73: 0.25
A74: Orellana | D74: 0.56 | X74: 0.69 | Y74: 0 | Z74: 1 | AB74: 0.69 | AC74: 0 | AD74: 1 | AF74: 0.69 | AG74: -13.01029996 | AH74: 0.05 | AJ74: 0.69 | AK74: -6.020599913 | AL74: 0.25
A75: Pastaza | D75: 0.57 | X75: 0.7 | Y75: 0 | Z75: 1 | AB75: 0.7 | AC75: 0 | AD75: 1 | AF75: 0.7 | AG75: -13.01029996 | AH75: 0.05 | AJ75: 0.7 | AK75: -6.020599913 | AL75: 0.25
A76: Pichincha | D76: 0.58 | X76: 0.71 | Y76: 0 | Z76: 1 | AB76: 0.71 | AC76: 0 | AD76: 1 | AF76: 0.71 | AG76: -13.01029996 | AH76: 0.05 | AJ76: 0.71 | AK76: -6.020599913 | AL76: 0.25
A77: Santa Elena | D77: 0.59 | X77: 0.72 | Y77: 0 | Z77: 1 | AB77: 0.72 | AC77: 0 | AD77: 1 | AF77: 0.72 | AG77: -13.01029996 | AH77: 0.05 | AJ77: 0.72 | AK77: -6.020599913 | AL77: 0.25
A78: Santo Domingo de los Tsáchilas | D78: 0.6 | X78: 0.73 | Y78: 0 | Z78: 1 | AB78: 0.73 | AC78: 0 | AD78: 1 | AF78: 0.73 | AG78: -13.01029996 | AH78: 0.05 | AJ78: 0.73 | AK78: -6.020599913 | AL78: 0.25
A79: Sucumbíos | D79: 0.61 | X79: 0.74 | Y79: 0 | Z79: 1 | AB79: 0.74 | AC79: 0 | AD79: 1 | AF79: 0.74 | AG79: -13.01029996 | AH79: 0.05 | AJ79: 0.74 | AK79: -6.020599913 | AL79: 0.25
A80: Tungurahua | D80: 0.62 | X80: 0.75 | Y80: 0 | Z80: 1 | AB80: 0.75 | AC80: 0 | AD80: 1 | AF80: 0.75 | AG80: -13.01029996 | AH80: 0.05 | AJ80: 0.75 | AK80: -6.020599913 | AL80: 0.25
A81: Zamora Chinchipe | D81: 0.63 | X81: 0.76 | Y81: 0 | Z81: 1 | AB81: 0.76 | AC81: 0 | AD81: 1 | AF81: 0.76 | AG81: -13.01029996 | AH81: 0.05 | AJ81: 0.76 | AK81: -6.020599913 | AL81: 0.25
D82: 0.64 | X82: 0.77 | Y82: 0 | Z82: 1 | AB82: 0.77 | AC82: 0 | AD82: 1 | AF82: 0.77 | AG82: -13.01029996 | AH82: 0.05 | AJ82: 0.77 | AK82: -6.020599913 | AL82: 0.25
D83: 0.65 | X83: 0.78 | Y83: 0 | Z83: 1 | AB83: 0.78 | AC83: 0 | AD83: 1 | AF83: 0.78 | AG83: -13.01029996 | AH83: 0.05 | AJ83: 0.78 | AK83: -6.020599913 | AL83: 0.25
A84: T. ESTACION | D84: 0.66 | X84: 0.79 | Y84: 0 | Z84: 1 | AB84: 0.79 | AC84: 0 | AD84: 1 | AF84: 0.79 | AG84: -13.01029996 | AH84: 0.05 | AJ84: 0.79 | AK84: -6.020599913 | AL84: 0.25
A85: REPETIDOR | D85: 0.67 | X85: 0.8 | Y85: 0 | Z85: 1 | AB85: 0.8 | AC85: 0 | AD85: 1 | AF85: 0.8 | AG85: -13.01029996 | AH85: 0.05 | AJ85: 0.8 | AK85: -6.020599913 | AL85: 0.25
A86: FIJA | D86: 0.68 | X86: 0.81 | Y86: 0 | Z86: 1 | AB86: 0.81 | AC86: 0 | AD86: 1 | AF86: 0.81 | AG86: -13.01029996 | AH86: 0.05 | AJ86: 0.81 | AK86: -6.020599913 | AL86: 0.25
A87: MOVIL | D87: 0.69 | X87: 0.82 | Y87: 0 | Z87: 1 | AB87: 0.82 | AC87: 0 | AD87: 1 | AF87: 0.82 | AG87: -13.01029996 | AH87: 0.05 | AJ87: 0.82 | AK87: -6.020599913 | AL87: 0.25
A88: PORTATIL | D88: 0.7 | X88: 0.83 | Y88: 0 | Z88: 1 | AB88: 0.83 | AC88: 0 | AD88: 1 | AF88: 0.83 | AG88: -13.01029996 | AH88: 0.05 | AJ88: 0.83 | AK88: -6.020599913 | AL88: 0.25
A89: RADIOBASE | D89: 0.71 | X89: 0.84 | Y89: 0 | Z89: 1 | AB89: 0.84 | AC89: 0 | AD89: 1 | AF89: 0.84 | AG89: -13.01029996 | AH89: 0.05 | AJ89: 0.84 | AK89: -6.020599913 | AL89: 0.25
D90: 0.72 | X90: 0.85 | Y90: 0 | Z90: 1 | AB90: 0.85 | AC90: 0 | AD90: 1 | AF90: 0.85 | AG90: -13.01029996 | AH90: 0.05 | AJ90: 0.85 | AK90: -6.020599913 | AL90: 0.25
D91: 0.73 | X91: 0.86 | Y91: 0 | Z91: 1 | AB91: 0.86 | AC91: 0 | AD91: 1 | AF91: 0.86 | AG91: -13.01029996 | AH91: 0.05 | AJ91: 0.86 | AK91: -6.020599913 | AL91: 0.25
D92: 0.74 | X92: 0.87 | Y92: 0 | Z92: 1 | AB92: 0.87 | AC92: 0 | AD92: 1 | AF92: 0.87 | AG92: -13.01029996 | AH92: 0.05 | AJ92: 0.87 | AK92: -6.020599913 | AL92: 0.25
A93: Estación | D93: 0.75 | X93: 0.88 | Y93: 0 | Z93: 1 | AB93: 0.88 | AC93: 0 | AD93: 1 | AF93: 0.88 | AG93: -13.01029996 | AH93: 0.05 | AJ93: 0.88 | AK93: -6.020599913 | AL93: 0.25
A94: Autorización – A | B94: A | D94: 0.76 | X94: 0.89 | Y94: 0 | Z94: 1 | AB94: 0.89 | AC94: 0 | AD94: 1 | AF94: 0.89 | AG94: -13.01029996 | AH94: 0.05 | AJ94: 0.89 | AK94: -6.020599913 | AL94: 0.25
A95: Modificación – M | B95: M | D95: 0.77 | X95: 0.9 | Y95: 0 | Z95: 1 | AB95: 0.9 | AC95: 0 | AD95: 1 | AF95: 0.9 | AG95: -13.01029996 | AH95: 0.05 | AJ95: 0.9 | AK95: -6.020599913 | AL95: 0.25
A96: Incremento – I | B96: I | D96: 0.78 | X96: 0.91 | Y96: 0 | Z96: 1 | AB96: 0.91 | AC96: 0 | AD96: 1 | AF96: 0.91 | AG96: -13.01029996 | AH96: 0.05 | AJ96: 0.91 | AK96: -6.020599913 | AL96: 0.25
A97: Eliminación – E | B97: E | D97: 0.79 | X97: 0.92 | Y97: 0 | Z97: 1 | AB97: 0.92 | AC97: 0 | AD97: 1 | AF97: 0.92 | AG97: -13.01029996 | AH97: 0.05 | AJ97: 0.92 | AK97: -6.020599913 | AL97: 0.25
D98: 0.8 | X98: 0.93 | Y98: 0 | Z98: 1 | AB98: 0.93 | AC98: 0 | AD98: 1 | AF98: 0.93 | AG98: -13.01029996 | AH98: 0.05 | AJ98: 0.93 | AK98: -6.020599913 | AL98: 0.25
D99: 0.81 | X99: 0.94 | Y99: 0 | Z99: 1 | AB99: 0.94 | AC99: 0 | AD99: 1 | AF99: 0.94 | AG99: -13.01029996 | AH99: 0.05 | AJ99: 0.94 | AK99: -6.020599913 | AL99: 0.25
D100: 0.82 | X100: 0.95 | Y100: 0 | Z100: 1 | AB100: 0.95 | AC100: 0 | AD100: 1 | AF100: 0.95 | AG100: -13.01029996 | AH100: 0.05 | AJ100: 0.95 | AK100: -6.020599913 | AL100: 0.25
A101: MODULACIONES: | D101: 0.83 | X101: 0.96 | Y101: 0 | Z101: 1 | AB101: 0.96 | AC101: 0 | AD101: 1 | AF101: 0.96 | AG101: -13.01029996 | AH101: 0.05 | AJ101: 0.96 | AK101: -6.020599913 | AL101: 0.25
A102: AM | D102: 0.84 | X102: 0.97 | Y102: 0 | Z102: 1 | AB102: 0.97 | AC102: 0 | AD102: 1 | AF102: 0.97 | AG102: -13.01029996 | AH102: 0.05 | AJ102: 0.97 | AK102: -6.020599913 | AL102: 0.25
A103: FM | D103: 0.85 | X103: 0.98 | Y103: 0 | Z103: 1 | AB103: 0.98 | AC103: 0 | AD103: 1 | AF103: 0.98 | AG103: -13.01029996 | AH103: 0.05 | AJ103: 0.98 | AK103: -6.020599913 | AL103: 0.25
A104: FSK | D104: 0.86 | X104: 0.99 | Y104: 0 | Z104: 1 | AB104: 0.99 | AC104: 0 | AD104: 1 | AF104: 0.99 | AG104: -13.01029996 | AH104: 0.05 | AJ104: 0.99 | AK104: -6.020599913 | AL104: 0.25
A105: MSK | D105: 0.87 | X105: 1 | Y105: 0 | Z105: 1 | AB105: 1 | AC105: 0 | AD105: 1 | AF105: 1 | AG105: -13.01029996 | AH105: 0.05 | AJ105: 1 | AK105: -6.020599913 | AL105: 0.25
A106: PSK | D106: 0.88 | X106: 1.01 | Y106: 0 | Z106: 1 | AB106: 1.01 | AC106: 0 | AD106: 1 | AF106: 1.01 | AG106: -13.01029996 | AH106: 0.05 | AJ106: 1.01 | AK106: -6.020599913 | AL106: 0.25
A107: BPSK | D107: 0.89 | X107: 1.02 | Y107: 0 | Z107: 1 | AB107: 1.02 | AC107: 0 | AD107: 1 | AF107: 1.02 | AG107: -13.01029996 | AH107: 0.05 | AJ107: 1.02 | AK107: -6.020599913 | AL107: 0.25
A108: QPSK | D108: 0.9 | X108: 1.03 | Y108: 0 | Z108: 1 | AB108: 1.03 | AC108: 0 | AD108: 1 | AF108: 1.03 | AG108: -13.01029996 | AH108: 0.05 | AJ108: 1.03 | AK108: -6.020599913 | AL108: 0.25
A109: 8QAM | D109: 0.91 | X109: 1.04 | Y109: 0 | Z109: 1 | AB109: 1.04 | AC109: 0 | AD109: 1 | AF109: 1.04 | AG109: -13.01029996 | AH109: 0.05 | AJ109: 1.04 | AK109: -6.020599913 | AL109: 0.25
A110: 16QAM | D110: 0.92 | X110: 1.05 | Y110: 0 | Z110: 1 | AB110: 1.05 | AC110: 0 | AD110: 1 | AF110: 1.05 | AG110: -13.01029996 | AH110: 0.05 | AJ110: 1.05 | AK110: -6.020599913 | AL110: 0.25
A111: 64QAM | D111: 0.93 | X111: 1.06 | Y111: 0 | Z111: 1 | AB111: 1.06 | AC111: 0 | AD111: 1 | AF111: 1.06 | AG111: -13.01029996 | AH111: 0.05 | AJ111: 1.06 | AK111: -6.020599913 | AL111: 0.25
D112: 0.94 | X112: 1.07 | Y112: 0 | Z112: 1 | AB112: 1.07 | AC112: 0 | AD112: 1 | AF112: 1.07 | AG112: -13.01029996 | AH112: 0.05 | AJ112: 1.07 | AK112: -6.020599913 | AL112: 0.25
D113: 0.95 | X113: 1.08 | Y113: 0 | Z113: 1 | AB113: 1.08 | AC113: 0 | AD113: 1 | AF113: 1.08 | AG113: -13.01029996 | AH113: 0.05 | AJ113: 1.08 | AK113: -6.020599913 | AL113: 0.25
D114: 0.96 | X114: 1.09 | Y114: 0 | Z114: 1 | AB114: 1.09 | AC114: 0 | AD114: 1 | AF114: 1.09 | AG114: -13.01029996 | AH114: 0.05 | AJ114: 1.09 | AK114: -6.020599913 | AL114: 0.25
D115: 0.97 | X115: 1.1 | Y115: 0 | Z115: 1 | AB115: 1.1 | AC115: 0 | AD115: 1 | AF115: 1.1 | AG115: -13.01029996 | AH115: 0.05 | AJ115: 1.1 | AK115: -6.020599913 | AL115: 0.25
D116: 0.98 | X116: 1.11 | Y116: 0 | Z116: 1 | AB116: 1.11 | AC116: 0 | AD116: 1 | AF116: 1.11 | AG116: -13.01029996 | AH116: 0.05 | AJ116: 1.11 | AK116: -6.020599913 | AL116: 0.25
D117: 0.99 | X117: 1.12 | Y117: 0 | Z117: 1 | AB117: 1.12 | AC117: 0 | AD117: 1 | AF117: 1.12 | AG117: -13.01029996 | AH117: 0.05 | AJ117: 1.12 | AK117: -6.020599913 | AL117: 0.25
D118: 1 | X118: 1.13 | Y118: 0 | Z118: 1 | AB118: 1.13 | AC118: 0 | AD118: 1 | AF118: 1.13 | AG118: -13.01029996 | AH118: 0.05 | AJ118: 1.13 | AK118: -6.020599913 | AL118: 0.25
D119: 1.01 | X119: 1.14 | Y119: 0 | Z119: 1 | AB119: 1.14 | AC119: 0 | AD119: 1 | AF119: 1.14 | AG119: -13.01029996 | AH119: 0.05 | AJ119: 1.14 | AK119: -6.020599913 | AL119: 0.25
D120: 1.02 | X120: 1.15 | Y120: 0 | Z120: 1 | AB120: 1.15 | AC120: 0 | AD120: 1 | AF120: 1.15 | AG120: -13.01029996 | AH120: 0.05 | AJ120: 1.15 | AK120: -6.020599913 | AL120: 0.25
D121: 1.03 | X121: 1.16 | Y121: 0 | Z121: 1 | AB121: 1.16 | AC121: 0 | AD121: 1 | AF121: 1.16 | AG121: -13.01029996 | AH121: 0.05 | AJ121: 1.16 | AK121: -6.020599913 | AL121: 0.25
D122: 1.04 | X122: 1.17 | Y122: 0 | Z122: 1 | AB122: 1.17 | AC122: 0 | AD122: 1 | AF122: 1.17 | AG122: -13.01029996 | AH122: 0.05 | AJ122: 1.17 | AK122: -6.020599913 | AL122: 0.25
D123: 1.05 | X123: 1.18 | Y123: 0 | Z123: 1 | AB123: 1.18 | AC123: 0 | AD123: 1 | AF123: 1.18 | AG123: -13.01029996 | AH123: 0.05 | AJ123: 1.18 | AK123: -6.020599913 | AL123: 0.25
D124: 1.06 | X124: 1.19 | Y124: 0 | Z124: 1 | AB124: 1.19 | AC124: 0 | AD124: 1 | AF124: 1.19 | AG124: -13.01029996 | AH124: 0.05 | AJ124: 1.19 | AK124: -6.020599913 | AL124: 0.25
D125: 1.07 | X125: 1.2 | Y125: 0 | Z125: 1 | AB125: 1.2 | AC125: 0 | AD125: 1 | AF125: 1.2 | AG125: -13.01029996 | AH125: 0.05 | AJ125: 1.2 | AK125: -6.020599913 | AL125: 0.25
D126: 1.08 | X126: 1.21 | Y126: 0 | Z126: 1 | AB126: 1.21 | AC126: 0 | AD126: 1 | AF126: 1.21 | AG126: -13.01029996 | AH126: 0.05 | AJ126: 1.21 | AK126: -6.020599913 | AL126: 0.25
D127: 1.09 | X127: 1.22 | Y127: 0 | Z127: 1 | AB127: 1.22 | AC127: 0 | AD127: 1 | AF127: 1.22 | AG127: -13.01029996 | AH127: 0.05 | AJ127: 1.22 | AK127: -6.020599913 | AL127: 0.25
D128: 1.1 | X128: 1.23 | Y128: 0 | Z128: 1 | AB128: 1.23 | AC128: 0 | AD128: 1 | AF128: 1.23 | AG128: -13.01029996 | AH128: 0.05 | AJ128: 1.23 | AK128: -6.020599913 | AL128: 0.25
D129: 1.11 | X129: 1.24 | Y129: 0 | Z129: 1 | AB129: 1.24 | AC129: 0 | AD129: 1 | AF129: 1.24 | AG129: -13.01029996 | AH129: 0.05 | AJ129: 1.24 | AK129: -6.020599913 | AL129: 0.25
D130: 1.12 | X130: 1.25 | Y130: 0 | Z130: 1 | AB130: 1.25 | AC130: 0 | AD130: 1 | AF130: 1.25 | AG130: -13.01029996 | AH130: 0.05 | AJ130: 1.25 | AK130: -6.020599913 | AL130: 0.25
D131: 1.13 | X131: 1.26 | Y131: 0 | Z131: 1 | AB131: 1.26 | AC131: 0 | AD131: 1 | AF131: 1.26 | AG131: -13.01029996 | AH131: 0.05 | AJ131: 1.26 | AK131: -6.020599913 | AL131: 0.25
D132: 1.14 | X132: 1.27 | Y132: 0 | Z132: 1 | AB132: 1.27 | AC132: 0 | AD132: 1 | AF132: 1.27 | AG132: -13.01029996 | AH132: 0.05 | AJ132: 1.27 | AK132: -6.020599913 | AL132: 0.25
D133: 1.15 | X133: 1.28 | Y133: 0 | Z133: 1 | AB133: 1.28 | AC133: 0 | AD133: 1 | AF133: 1.28 | AG133: -13.01029996 | AH133: 0.05 | AJ133: 1.28 | AK133: -6.020599913 | AL133: 0.25
D134: 1.16 | X134: 1.29 | Y134: 0 | Z134: =POWER(10,Y134/10) -> 1 | AB134: 1.29 | AC134: 0 | AD134: =POWER(10,AC134/10) -> 1 | AF134: 1.29 | AG134: =10*LOG(0.05,10) -> -13.01029996 | AH134: =POWER(10,AG134/10) -> 0.05 | AJ134: 1.29 | AK134: =10*LOG(0.25,10) -> -6.020599913 | AL134: =POWER(10,AK134/10) -> 0.25
D135: 1.17 | X135: 1.3 | Y135: 0 | Z135: 1 | AB135: 1.3 | AC135: 0 | AD135: 1 | AF135: 1.3 | AG135: -13.01029996 | AH135: 0.05 | AJ135: 1.3 | AK135: -6.020599913 | AL135: 0.25
D136: 1.18 | X136: 1.31 | Y136: 0 | Z136: 1 | AB136: 1.31 | AC136: 0 | AD136: 1 | AF136: 1.31 | AG136: -13.01029996 | AH136: 0.05 | AJ136: 1.31 | AK136: -6.020599913 | AL136: 0.25
D137: 1.19 | X137: 1.32 | Y137: 0 | Z137: 1 | AB137: 1.32 | AC137: 0 | AD137: 1 | AF137: 1.32 | AG137: -13.01029996 | AH137: 0.05 | AJ137: 1.32 | AK137: -6.020599913 | AL137: 0.25
D138: 1.2 | X138: 1.33 | Y138: 0 | Z138: 1 | AB138: 1.33 | AC138: 0 | AD138: 1 | AF138: 1.33 | AG138: -13.01029996 | AH138: 0.05 | AJ138: 1.33 | AK138: -6.020599913 | AL138: 0.25
D139: 1.21 | X139: 1.34 | Y139: 0 | Z139: 1 | AB139: 1.34 | AC139: 0 | AD139: 1 | AF139: 1.34 | AG139: -13.01029996 | AH139: 0.05 | AJ139: 1.34 | AK139: -6.020599913 | AL139: 0.25
D140: 1.22 | X140: 1.35 | Y140: 0 | Z140: 1 | AB140: 1.35 | AC140: 0 | AD140: 1 | AF140: 1.35 | AG140: -13.01029996 | AH140: 0.05 | AJ140: 1.35 | AK140: -6.020599913 | AL140: 0.25
D141: 1.23 | X141: 1.36 | Y141: 0 | Z141: 1 | AB141: 1.36 | AC141: 0 | AD141: 1 | AF141: 1.36 | AG141: -13.01029996 | AH141: 0.05 | AJ141: 1.36 | AK141: -6.020599913 | AL141: 0.25
D142: 1.24 | X142: 1.37 | Y142: 0 | Z142: 1 | AB142: 1.37 | AC142: 0 | AD142: 1 | AF142: 1.37 | AG142: -13.01029996 | AH142: 0.05 | AJ142: 1.37 | AK142: -6.020599913 | AL142: 0.25
D143: 1.25 | X143: 1.38 | Y143: 0 | Z143: 1 | AB143: 1.38 | AC143: 0 | AD143: 1 | AF143: 1.38 | AG143: -13.01029996 | AH143: 0.05 | AJ143: 1.38 | AK143: -6.020599913 | AL143: 0.25
D144: 1.26 | X144: 1.39 | Y144: 0 | Z144: 1 | AB144: 1.39 | AC144: 0 | AD144: 1 | AF144: 1.39 | AG144: -13.01029996 | AH144: 0.05 | AJ144: 1.39 | AK144: -6.020599913 | AL144: 0.25
D145: 1.27 | X145: 1.4 | Y145: 0 | Z145: 1 | AB145: 1.4 | AC145: 0 | AD145: 1 | AF145: 1.4 | AG145: -13.01029996 | AH145: 0.05 | AJ145: 1.4 | AK145: -6.020599913 | AL145: 0.25
D146: 1.28 | X146: 1.41 | Y146: 0 | Z146: 1 | AB146: 1.41 | AC146: 0 | AD146: 1 | AF146: 1.41 | AG146: -13.01029996 | AH146: 0.05 | AJ146: 1.41 | AK146: -6.020599913 | AL146: 0.25
D147: 1.29 | X147: 1.42 | Y147: 0 | Z147: 1 | AB147: 1.42 | AC147: 0 | AD147: 1 | AF147: 1.42 | AG147: -13.01029996 | AH147: 0.05 | AJ147: 1.42 | AK147: -6.020599913 | AL147: 0.25
D148: 1.3 | X148: 1.43 | Y148: 0 | Z148: 1 | AB148: 1.43 | AC148: 0 | AD148: 1 | AF148: 1.43 | AG148: -13.01029996 | AH148: 0.05 | AJ148: 1.43 | AK148: -6.020599913 | AL148: 0.25
D149: 1.31 | X149: 1.44 | Y149: 0 | Z149: 1 | AB149: 1.44 | AC149: 0 | AD149: 1 | AF149: 1.44 | AG149: -13.01029996 | AH149: 0.05 | AJ149: 1.44 | AK149: -6.020599913 | AL149: 0.25
D150: 1.32 | X150: 1.45 | Y150: 0 | Z150: 1 | AB150: 1.45 | AC150: 0 | AD150: 1 | AF150: 1.45 | AG150: -13.01029996 | AH150: 0.05 | AJ150: 1.45 | AK150: -6.020599913 | AL150: 0.25
D151: 1.33 | X151: 1.46 | Y151: 0 | Z151: 1 | AB151: 1.46 | AC151: 0 | AD151: 1 | AF151: 1.46 | AG151: -13.01029996 | AH151: 0.05 | AJ151: 1.46 | AK151: -6.020599913 | AL151: 0.25
D152: 1.34 | X152: 1.47 | Y152: 0 | Z152: 1 | AB152: 1.47 | AC152: 0 | AD152: 1 | AF152: 1.47 | AG152: -13.01029996 | AH152: 0.05 | AJ152: 1.47 | AK152: -6.020599913 | AL152: 0.25
D153: 1.35 | X153: 1.48 | Y153: 0 | Z153: 1 | AB153: 1.48 | AC153: 0 | AD153: 1 | AF153: 1.48 | AG153: -13.01029996 | AH153: 0.05 | AJ153: 1.48 | AK153: -6.020599913 | AL153: 0.25
D154: 1.36 | X154: 1.49 | Y154: 0 | Z154: 1 | AB154: 1.49 | AC154: 0 | AD154: 1 | AF154: 1.49 | AG154: -13.01029996 | AH154: 0.05 | AJ154: 1.49 | AK154: -6.020599913 | AL154: 0.25
D155: 1.37 | X155: 1.5 | Y155: 0 | Z155: 1 | AB155: 1.5 | AC155: 0 | AD155: 1 | AF155: 1.5 | AG155: -13.01029996 | AH155: 0.05 | AJ155: 1.5 | AK155: -6.020599913 | AL155: 0.25
D156: 1.38 | X156: 1.51 | Y156: 0 | Z156: 1 | AB156: 1.51 | AC156: 0 | AD156: 1 | AF156: 1.51 | AG156: -13.01029996 | AH156: 0.05 | AJ156: 1.51 | AK156: -6.020599913 | AL156: 0.25
D157: 1.39 | X157: 1.52 | Y157: 0 | Z157: 1 | AB157: 1.52 | AC157: 0 | AD157: 1 | AF157: 1.52 | AG157: -13.01029996 | AH157: 0.05 | AJ157: 1.52 | AK157: -6.020599913 | AL157: 0.25
D158: 1.4 | X158: 1.53 | Y158: 0 | Z158: 1 | AB158: 1.53 | AC158: 0 | AD158: 1 | AF158: 1.53 | AG158: -13.01029996 | AH158: 0.05 | AJ158: 1.53 | AK158: -6.020599913 | AL158: 0.25
D159: 1.41 | X159: 1.54 | Y159: 0 | Z159: 1 | AB159: 1.54 | AC159: 0 | AD159: 1 | AF159: 1.54 | AG159: -13.01029996 | AH159: 0.05 | AJ159: 1.54 | AK159: -6.020599913 | AL159: 0.25
D160: 1.42 | X160: 1.55 | Y160: 0 | Z160: 1 | AB160: 1.55 | AC160: 0 | AD160: 1 | AF160: 1.55 | AG160: -13.01029996 | AH160: 0.05 | AJ160: 1.55 | AK160: -6.020599913 | AL160: 0.25
D161: 1.43 | X161: 1.56 | Y161: 0 | Z161: 1 | AB161: 1.56 | AC161: 0 | AD161: 1 | AF161: 1.56 | AG161: -13.01029996 | AH161: 0.05 | AJ161: 1.56 | AK161: -6.020599913 | AL161: 0.25
D162: 1.44 | X162: 1.57 | Y162: 0 | Z162: 1 | AB162: 1.57 | AC162: 0 | AD162: 1 | AF162: 1.57 | AG162: -13.01029996 | AH162: 0.05 | AJ162: 1.57 | AK162: -6.020599913 | AL162: 0.25
D163: 1.45 | X163: 1.58 | Y163: 0 | Z163: 1 | AB163: 1.58 | AC163: 0 | AD163: 1 | AF163: 1.58 | AG163: -13.01029996 | AH163: 0.05 | AJ163: 1.58 | AK163: -6.020599913 | AL163: 0.25
D164: 1.46 | X164: 1.59 | Y164: 0 | Z164: 1 | AB164: 1.59 | AC164: 0 | AD164: 1 | AF164: 1.59 | AG164: -13.01029996 | AH164: 0.05 | AJ164: 1.59 | AK164: -6.020599913 | AL164: 0.25
D165: 1.47 | X165: 1.6 | Y165: 0 | Z165: 1 | AB165: 1.6 | AC165: 0 | AD165: 1 | AF165: 1.6 | AG165: -13.01029996 | AH165: 0.05 | AJ165: 1.6 | AK165: -6.020599913 | AL165: 0.25
D166: 1.48 | X166: 1.61 | Y166: 0 | Z166: 1 | AB166: 1.61 | AC166: 0 | AD166: 1 | AF166: 1.61 | AG166: -13.01029996 | AH166: 0.05 | AJ166: 1.61 | AK166: -6.020599913 | AL166: 0.25
D167: 1.49 | X167: 1.62 | Y167: 0 | Z167: 1 | AB167: 1.62 | AC167: 0 | AD167: 1 | AF167: 1.62 | AG167: -13.01029996 | AH167: 0.05 | AJ167: 1.62 | AK167: -6.020599913 | AL167: 0.25
D168: 1.5 | X168: 1.63 | Y168: 0 | Z168: 1 | AB168: 1.63 | AC168: 0 | AD168: 1 | AF168: 1.63 | AG168: -13.01029996 | AH168: 0.05 | AJ168: 1.63 | AK168: -6.020599913 | AL168: 0.25
D169: 1.51 | X169: 1.64 | Y169: 0 | Z169: 1 | AB169: 1.64 | AC169: 0 | AD169: 1 | AF169: 1.64 | AG169: -13.01029996 | AH169: 0.05 | AJ169: 1.64 | AK169: -6.020599913 | AL169: 0.25
D170: 1.52 | X170: 1.65 | Y170: 0 | Z170: 1 | AB170: 1.65 | AC170: 0 | AD170: 1 | AF170: 1.65 | AG170: -13.01029996 | AH170: 0.05 | AJ170: 1.65 | AK170: -6.020599913 | AL170: 0.25
D171: 1.53 | X171: 1.66 | Y171: 0 | Z171: 1 | AB171: 1.66 | AC171: 0 | AD171: 1 | AF171: 1.66 | AG171: -13.01029996 | AH171: 0.05 | AJ171: 1.66 | AK171: -6.020599913 | AL171: 0.25
D172: 1.54 | X172: 1.67 | Y172: 0 | Z172: 1 | AB172: 1.67 | AC172: 0 | AD172: 1 | AF172: 1.67 | AG172: -13.01029996 | AH172: 0.05 | AJ172: 1.67 | AK172: -6.020599913 | AL172: 0.25
D173: 1.55 | X173: 1.68 | Y173: 0 | Z173: 1 | AB173: 1.68 | AC173: 0 | AD173: 1 | AF173: 1.68 | AG173: -13.01029996 | AH173: 0.05 | AJ173: 1.68 | AK173: -6.020599913 | AL173: 0.25
D174: 1.56 | X174: 1.69 | Y174: 0 | Z174: 1 | AB174: 1.69 | AC174: 0 | AD174: 1 | AF174: 1.69 | AG174: -13.01029996 | AH174: 0.05 | AJ174: 1.69 | AK174: -6.020599913 | AL174: 0.25
D175: 1.57 | X175: 1.7 | Y175: 0 | Z175: 1 | AB175: 1.7 | AC175: 0 | AD175: 1 | AF175: 1.7 | AG175: -13.01029996 | AH175: 0.05 | AJ175: 1.7 | AK175: -6.020599913 | AL175: 0.25
D176: 1.58 | X176: 1.71 | Y176: 0 | Z176: 1 | AB176: 1.71 | AC176: 0 | AD176: 1 | AF176: 1.71 | AG176: -13.01029996 | AH176: 0.05 | AJ176: 1.71 | AK176: -6.020599913 | AL176: 0.25
D177: 1.59 | X177: 1.72 | Y177: 0 | Z177: 1 | AB177: 1.72 | AC177: 0 | AD177: 1 | AF177: 1.72 | AG177: -13.01029996 | AH177: 0.05 | AJ177: 1.72 | AK177: -6.020599913 | AL177: 0.25
D178: 1.6 | X178: 1.73 | Y178: 0 | Z178: 1 | AB178: 1.73 | AC178: 0 | AD178: 1 | AF178: 1.73 | AG178: -13.01029996 | AH178: 0.05 | AJ178: 1.73 | AK178: -6.020599913 | AL178: 0.25
D179: 1.61 | X179: 1.74 | Y179: 0 | Z179: 1 | AB179: 1.74 | AC179: 0 | AD179: 1 | AF179: 1.74 | AG179: -13.01029996 | AH179: 0.05 | AJ179: 1.74 | AK179: -6.020599913 | AL179: 0.25
D180: 1.62 | X180: 1.75 | Y180: 0 | Z180: 1 | AB180: 1.75 | AC180: 0 | AD180: 1 | AF180: 1.75 | AG180: -13.01029996 | AH180: 0.05 | AJ180: 1.75 | AK180: -6.020599913 | AL180: 0.25
D181: 1.63 | X181: 1.76 | Y181: 0 | Z181: 1 | AB181: 1.76 | AC181: 0 | AD181: 1 | AF181: 1.76 | AG181: -13.01029996 | AH181: 0.05 | AJ181: 1.76 | AK181: -6.020599913 | AL181: 0.25
D182: 1.64 | X182: 1.77 | Y182: 0 | Z182: 1 | AB182: 1.77 | AC182: 0 | AD182: 1 | AF182: 1.77 | AG182: -13.01029996 | AH182: 0.05 | AJ182: 1.77 | AK182: -6.020599913 | AL182: 0.25
D183: 1.65 | X183: 1.78 | Y183: 0 | Z183: 1 | AB183: 1.78 | AC183: 0 | AD183: 1 | AF183: 1.78 | AG183: -13.01029996 | AH183: 0.05 | AJ183: 1.78 | AK183: -6.020599913 | AL183: 0.25
D184: 1.66 | X184: 1.79 | Y184: 0 | Z184: 1 | AB184: 1.79 | AC184: 0 | AD184: 1 | AF184: 1.79 | AG184: -13.01029996 | AH184: 0.05 | AJ184: 1.79 | AK184: -6.020599913 | AL184: 0.25
D185: 1.67 | X185: 1.8 | Y185: 0 | Z185: 1 | AB185: 1.8 | AC185: 0 | AD185: 1 | AF185: 1.8 | AG185: -13.01029996 | AH185: 0.05 | AJ185: 1.8 | AK185: -6.020599913 | AL185: 0.25
D186: 1.68 | X186: 1.81 | Y186: 0 | Z186: 1 | AB186: 1.81 | AC186: 0 | AD186: 1 | AF186: 1.81 | AG186: -13.01029996 | AH186: 0.05 | AJ186: 1.81 | AK186: -6.020599913 | AL186: 0.25
D187: 1.69 | X187: 1.82 | Y187: 0 | Z187: 1 | AB187: 1.82 | AC187: 0 | AD187: 1 | AF187: 1.82 | AG187: -13.01029996 | AH187: 0.05 | AJ187: 1.82 | AK187: -6.020599913 | AL187: 0.25
D188: 1.7 | X188: 1.83 | Y188: 0 | Z188: 1 | AB188: 1.83 | AC188: 0 | AD188: 1 | AF188: 1.83 | AG188: -13.01029996 | AH188: 0.05 | AJ188: 1.83 | AK188: -6.020599913 | AL188: 0.25
D189: 1.71 | X189: 1.84 | Y189: 0 | Z189: 1 | AB189: 1.84 | AC189: 0 | AD189: 1 | AF189: 1.84 | AG189: -13.01029996 | AH189: 0.05 | AJ189: 1.84 | AK189: -6.020599913 | AL189: 0.25
D190: 1.72 | X190: 1.85 | Y190: 0 | Z190: 1 | AB190: 1.85 | AC190: 0 | AD190: 1 | AF190: 1.85 | AG190: -13.01029996 | AH190: 0.05 | AJ190: 1.85 | AK190: -6.020599913 | AL190: 0.25
D191: 1.73 | X191: 1.86 | Y191: 0 | Z191: 1 | AB191: 1.86 | AC191: 0 | AD191: 1 | AF191: 1.86 | AG191: -13.01029996 | AH191: 0.05 | AJ191: 1.86 | AK191: -6.020599913 | AL191: 0.25
D192: 1.74 | X192: 1.87 | Y192: 0 | Z192: 1 | AB192: 1.87 | AC192: 0 | AD192: 1 | AF192: 1.87 | AG192: -13.01029996 | AH192: 0.05 | AJ192: 1.87 | AK192: -6.020599913 | AL192: 0.25
D193: 1.75 | X193: 1.88 | Y193: 0 | Z193: 1 | AB193: 1.88 | AC193: 0 | AD193: 1 | AF193: 1.88 | AG193: -13.01029996 | AH193: 0.05 | AJ193: 1.88 | AK193: -6.020599913 | AL193: 0.25
D194: 1.76 | X194: 1.89 | Y194: 0 | Z194: 1 | AB194: 1.89 | AC194: 0 | AD194: 1 | AF194: 1.89 | AG194: -13.01029996 | AH194: 0.05 | AJ194: 1.89 | AK194: -6.020599913 | AL194: 0.25
D195: 1.77 | X195: 1.9 | Y195: 0 | Z195: 1 | AB195: 1.9 | AC195: 0 | AD195: 1 | AF195: 1.9 | AG195: -13.01029996 | AH195: 0.05 | AJ195: 1.9 | AK195: -6.020599913 | AL195: 0.25
D196: 1.78 | X196: 1.91 | Y196: 0 | Z196: 1 | AB196: 1.91 | AC196: 0 | AD196: 1 | AF196: 1.91 | AG196: -13.01029996 | AH196: 0.05 | AJ196: 1.91 | AK196: -6.020599913 | AL196: 0.25
D197: 1.79 | X197: 1.92 | Y197: 0 | Z197: 1 | AB197: 1.92 | AC197: 0 | AD197: 1 | AF197: 1.92 | AG197: -13.01029996 | AH197: 0.05 | AJ197: 1.92 | AK197: -6.020599913 | AL197: 0.25
D198: 1.8 | X198: 1.93 | Y198: 0 | Z198: =POWER(10,Y198/10) -> 1 | AB198: 1.93 | AC198: 0 | AD198: =POWER(10,AC198/10) -> 1 | AF198: 1.93 | AG198: =10*LOG(0.05,10) -> -13.01029996 | AH198: =POWER(10,AG198/10) -> 0.05 | AJ198: 1.93 | AK198: =10*LOG(0.25,10) -> -6.020599913 | AL198: =POWER(10,AK198/10) -> 0.25
D199: 1.81 | X199: 1.94 | Y199: 0 | Z199: 1 | AB199: 1.94 | AC199: 0 | AD199: 1 | AF199: 1.94 | AG199: -13.01029996 | AH199: 0.05 | AJ199: 1.94 | AK199: -6.020599913 | AL199: 0.25
D200: 1.82 | X200: 1.95 | Y200: 0 | Z200: 1 | AB200: 1.95 | AC200: 0 | AD200: 1 | AF200: 1.95 | AG200: -13.01029996 | AH200: 0.05 | AJ200: 1.95 | AK200: -6.020599913 | AL200: 0.25
... 2050 more rows

Sheet GlobalMapper (hidden)

Sheet Hoja2 (hidden)
